NUMERO_MANDATO;RIGA_MANDATO;QUIET;IMPORTO_RIGA;IMPORTO_MANDATO;BENEFICIARIO;CIG;TITOLO_PAGAMENTO;DATA_MANDATO;CAPITOLO;ARTICOLO;NUMERO_IMPEGNO;TITOLO;DESCR_TITOLO;LIVELLO_II;DESCR_LIVELLO_II;LIVELLO_III;DESCR_LIVELLO_III;LIVELLO_IV;DESCR_LIVELLO_IV;LIVELLO_V;DESCR_LIVELLO_V;DATA_PAG_EFF
2;1;9999999;51,07;107,5;ENEL ENERGIA SPA;97224145D7;SALDO Fatt.n. 004397130057  del 11/12/2023 NOVEMBRE 2023 - CONSUMI ALLOGGIO VIA DON GALLERANI CALTANA;08/01/2024;134;30;908;1;Spese correnti;3;Acquisto di beni e servizi;2;Acquisto di servizi;5;Utenze e canoni;4;Energia elettrica;10/01/2024
2;2;9999999;56,43;107,5;ENEL ENERGIA SPA;97224145D7;SALDO Fatt.n. 004395928945  del 10/12/2023 NOVEMBRE 2023 - CONSUMI PARCHEGGIO SMS;08/01/2024;134;30;908;1;Spese correnti;3;Acquisto di beni e servizi;2;Acquisto di servizi;5;Utenze e canoni;4;Energia elettrica;10/01/2024
3;1;9999999;1.321,09;1.321,09;ENEL ENERGIA SPA;97224145D7;SALDO Fatt.n. 004397130058  del 11/12/2023 NOVEMBRE 2023 - CONSUMI SEDE MUNICIPALE;08/01/2024;134;31;909;1;Spese correnti;3;Acquisto di beni e servizi;2;Acquisto di servizi;5;Utenze e canoni;4;Energia elettrica;10/01/2024
4;1;9999999;-523,82;2.347,13;ENEL ENERGIA SPA;97224145D7;SALDO Fatt.n. 004398539546  del 20/12/2023 NOTA DI ACCREDITO PER CONG. CONSUMI;08/01/2024;1334;30;910;1;Spese correnti;3;Acquisto di beni e servizi;2;Acquisto di servizi;5;Utenze e canoni;4;Energia elettrica;10/01/2024
4;2;9999999;-11,76;2.347,13;ENEL ENERGIA SPA;97224145D7;SALDO Fatt.n. 004398539547  del 20/12/2023 NOTA DI ACCREDITO PER CONG. CONSUMI;08/01/2024;1334;30;910;1;Spese correnti;3;Acquisto di beni e servizi;2;Acquisto di servizi;5;Utenze e canoni;4;Energia elettrica;10/01/2024
4;3;9999999;2,81;2.347,13;ENEL ENERGIA SPA;97224145D7;SALDO Fatt.n. 004397130052  del 11/12/2023 CONG. CONSUMI  SC. ELEM. CALTANA;08/01/2024;1334;30;910;1;Spese correnti;3;Acquisto di beni e servizi;2;Acquisto di servizi;5;Utenze e canoni;4;Energia elettrica;10/01/2024
4;4;9999999;534,25;2.347,13;ENEL ENERGIA SPA;97224145D7;SALDO Fatt.n. 004397130050  del 11/12/2023 CONG. CONSUMI SC. ELEM - MEDIA SMS;08/01/2024;1334;30;910;1;Spese correnti;3;Acquisto di beni e servizi;2;Acquisto di servizi;5;Utenze e canoni;4;Energia elettrica;10/01/2024
4;5;9999999;2.345,65;2.347,13;ENEL ENERGIA SPA;97224145D7;SALDO Fatt.n. 004398478386  del 19/12/2023 NOVEMBRE 2023 - CONSUMI SC. ELEM - SC. MEDIA SMS;08/01/2024;1334;30;910;1;Spese correnti;3;Acquisto di beni e servizi;2;Acquisto di servizi;5;Utenze e canoni;4;Energia elettrica;10/01/2024
5;1;9999999;261;261;ENEL ENERGIA SPA;97224145D7;ACCONTO Fatt.n. 004398478387  del 19/12/2023 NOVEMBRE 2023 - CONSUMI SC. ELEM - PALESTRA - ASILO S.ANGELO;08/01/2024;1334;30;910;1;Spese correnti;3;Acquisto di beni e servizi;2;Acquisto di servizi;5;Utenze e canoni;4;Energia elettrica;10/01/2024
6;1;9999999;783,46;783,46;ENEL ENERGIA SPA;97224145D7;ACCONTO Fatt.n. 004398478387  del 19/12/2023 NOVEMBRE 2023 - CONSUMI SC. ELEM - PALESTRA - ASILO S.ANGELO;08/01/2024;1334;30;910;1;Spese correnti;3;Acquisto di beni e servizi;2;Acquisto di servizi;5;Utenze e canoni;4;Energia elettrica;10/01/2024
7;1;9999999;1,84;1,84;ENEL ENERGIA SPA;97224145D7;ACCONTO Fatt.n. 004397130051  del 11/12/2023 CONG. CONSUMI SC. ELEM - PALESTRA STIGLIANO;08/01/2024;1334;30;910;1;Spese correnti;3;Acquisto di beni e servizi;2;Acquisto di servizi;5;Utenze e canoni;4;Energia elettrica;10/01/2024
8;1;9999999;1,98;1,98;ENEL ENERGIA SPA;97224145D7;ACCONTO Fatt.n. 004397130051  del 11/12/2023 CONG. CONSUMI SC. ELEM - PALESTRA STIGLIANO;08/01/2024;1334;30;910;1;Spese correnti;3;Acquisto di beni e servizi;2;Acquisto di servizi;5;Utenze e canoni;4;Energia elettrica;10/01/2024
9;1;9999999;252;252;ENEL ENERGIA SPA;97224145D7;ACCONTO Fatt.n. 004398089786  del 12/12/2023 NOVEMBRE 2023 - CONSUMI SC. ELEM - PALESTRA STIGLIANO;08/01/2024;1334;30;910;1;Spese correnti;3;Acquisto di beni e servizi;2;Acquisto di servizi;5;Utenze e canoni;4;Energia elettrica;10/01/2024
10;1;9999999;270,81;270,81;ENEL ENERGIA SPA;97224145D7;ACCONTO Fatt.n. 004398089786  del 12/12/2023 NOVEMBRE 2023 - CONSUMI SC. ELEM - PALESTRA STIGLIANO;08/01/2024;1334;30;910;1;Spese correnti;3;Acquisto di beni e servizi;2;Acquisto di servizi;5;Utenze e canoni;4;Energia elettrica;10/01/2024
11;1;9999999;9,39;9,39;ENEL ENERGIA SPA;97224145D7;SALDO Fatt.n. 004397130055  del 11/12/2023 CONG. CONSUMI IMP. SPORT. CASELLE;08/01/2024;1934;0;912;1;Spese correnti;3;Acquisto di beni e servizi;2;Acquisto di servizi;5;Utenze e canoni;4;Energia elettrica;10/01/2024
12;1;9999999;486,24;486,24;ENEL ENERGIA SPA;97224145D7;SALDO Fatt.n. 004398478388  del 19/12/2023 NOVEMBRE 2023 - CONSUMI IMP. SPORT. SMS;08/01/2024;1934;0;912;1;Spese correnti;3;Acquisto di beni e servizi;2;Acquisto di servizi;5;Utenze e canoni;4;Energia elettrica;10/01/2024
13;1;9999999;261;261;ENEL ENERGIA SPA;97224145D7;SALDO Fatt.n. 004398478387  del 19/12/2023 NOVEMBRE 2023 - CONSUMI SC. ELEM - PALESTRA - ASILO S.ANGELO;08/01/2024;1934;0;912;1;Spese correnti;3;Acquisto di beni e servizi;2;Acquisto di servizi;5;Utenze e canoni;4;Energia elettrica;10/01/2024
14;1;9999999;2,76;2,76;ENEL ENERGIA SPA;97224145D7;SALDO Fatt.n. 004397130051  del 11/12/2023 CONG. CONSUMI SC. ELEM - PALESTRA STIGLIANO;08/01/2024;1934;0;912;1;Spese correnti;3;Acquisto di beni e servizi;2;Acquisto di servizi;5;Utenze e canoni;4;Energia elettrica;10/01/2024
15;1;9999999;378;378;ENEL ENERGIA SPA;97224145D7;SALDO Fatt.n. 004398089786  del 12/12/2023 NOVEMBRE 2023 - CONSUMI SC. ELEM - PALESTRA STIGLIANO;08/01/2024;1934;0;912;1;Spese correnti;3;Acquisto di beni e servizi;2;Acquisto di servizi;5;Utenze e canoni;4;Energia elettrica;10/01/2024
16;1;9999999;-33,33;875,64;ENEL ENERGIA SPA;97224145D7;SALDO Fatt.n. 004397130054  del 11/12/2023 NOTA DI ACCREDITO PER CONG. CONSUMI VILLA FARSETTI;08/01/2024;4234;0;914;1;Spese correnti;3;Acquisto di beni e servizi;2;Acquisto di servizi;5;Utenze e canoni;4;Energia elettrica;10/01/2024
16;2;9999999;34,11;875,64;ENEL ENERGIA SPA;97224145D7;SALDO Fatt.n. 004398539549  del 20/12/2023 CONG. CONSUMI VILLA FARSETTI;08/01/2024;4234;0;914;1;Spese correnti;3;Acquisto di beni e servizi;2;Acquisto di servizi;5;Utenze e canoni;4;Energia elettrica;10/01/2024
16;3;9999999;874,86;875,64;ENEL ENERGIA SPA;97224145D7;SALDO Fatt.n. 004398478385  del 19/12/2023 NOVEMBRE 2023 - CONSUMI VILLA FARSETTI;08/01/2024;4234;0;914;1;Spese correnti;3;Acquisto di beni e servizi;2;Acquisto di servizi;5;Utenze e canoni;4;Energia elettrica;10/01/2024
17;1;9999999;63,42;63,42;ENEL ENERGIA SPA;97224145D7;SALDO Fatt.n. 004397130056  del 11/12/2023 NOVEMBRE 2023 - CONSUMI CIMITERO STIGLIANO - LAMPADE VOTIVE;08/01/2024;4434;0;915;1;Spese correnti;3;Acquisto di beni e servizi;2;Acquisto di servizi;5;Utenze e canoni;4;Energia elettrica;10/01/2024
18;1;9999999;375,71;28.074,25;ENEL ENERGIA SPA;97224145D7;SALDO Fatt.n. 004398128509  del 12/12/2023 NOVEMBRE 2023 - CONSUMI ILLUMINAZIONE PUBBLICA;08/01/2024;3544;0;916;1;Spese correnti;3;Acquisto di beni e servizi;2;Acquisto di servizi;15;Contratti di servizio pubblico;15;Contratti di servizio per l'illuminazione pubblica;10/01/2024
18;2;9999999;5.403,32;28.074,25;ENEL ENERGIA SPA;97224145D7;SALDO Fatt.n. 004398128510  del 12/12/2023 NOVEMBRE 2023 - CONSUMI ILLUMINAZIONE PUBBLICA;08/01/2024;3544;0;916;1;Spese correnti;3;Acquisto di beni e servizi;2;Acquisto di servizi;15;Contratti di servizio pubblico;15;Contratti di servizio per l'illuminazione pubblica;10/01/2024
18;3;9999999;22.295,22;28.074,25;ENEL ENERGIA SPA;97224145D7;SALDO Fatt.n. 004398128508  del 12/12/2023 NOVEMBRE 2023 - CONSUMI ILLUMINAZIONE PUBBLICA;08/01/2024;3544;0;916;1;Spese correnti;3;Acquisto di beni e servizi;2;Acquisto di servizi;15;Contratti di servizio pubblico;15;Contratti di servizio per l'illuminazione pubblica;10/01/2024
22;1;9999999;9.919,04;9.919,04;COMUNE DI MIRANO; ;RIMBORSO QUOTA PARTE RIDUZIONE TRASFERIMENTI ERARIALI PER CONTRIBUTO AGES PER IL SEGRETARIO IN CONVENZIONE DI SEGRETERIA PER ANNO 2023;08/01/2024;151;0;1101;1;Spese correnti;4;Trasferimenti correnti;1;Trasferimenti correnti a Amministrazioni Pubbliche;2;Trasferimenti correnti a Amministrazioni Locali;3;Trasferimenti correnti a Comuni;10/01/2024
23;1;9999999;5,88;5,88;COMUNE DI MIRANO; ;NS. PROT.195 RIMBORSO SPESE DI NOTIFICA;08/01/2024;146;0;48;1;Spese correnti;3;Acquisto di beni e servizi;2;Acquisto di servizi;17;Servizi finanziari;999;Spese per servizi finanziari n.a.c.;10/01/2024
24;1;9999999;10.000,00;10.000,00;ASILO INFANTILE F.T.CROVATO; ;CONTRIBUTO ECONOMICO DA DESTINARE ALLE SCUOLE DELLINFANZIA PARITARIE CHE HANNO ATTIVATO UNA SEZIONE DI NIDO INTEGRATO O UNA SEZIONE PRIMAVERA, ANNO SCOLASTICO 2023/2024.;08/01/2024;3759;0;1002;1;Spese correnti;4;Trasferimenti correnti;4;Trasferimenti correnti a Istituzioni Sociali Private;1;Trasferimenti correnti a Istituzioni Sociali Private;1;Trasferimenti correnti a Istituzioni Sociali Private;10/01/2024
25;1;9999999;4.000,00;4.000,00;SCUOLA MATERNA MARIA BAMBINA; ;CONTRIBUTO ECONOMICO DA DESTINARE ALLE SCUOLE DELLINFANZIA PARITARIE CHE HANNO ATTIVATO UNA SEZIONE DI NIDO INTEGRATO O UNA SEZIONE PRIMAVERA, ANNO SCOLASTICO 2023/2024.;08/01/2024;3759;0;1003;1;Spese correnti;4;Trasferimenti correnti;4;Trasferimenti correnti a Istituzioni Sociali Private;1;Trasferimenti correnti a Istituzioni Sociali Private;1;Trasferimenti correnti a Istituzioni Sociali Private;10/01/2024
26;1;9999999;14.000,00;14.000,00;SC.MAT.MADONNA DEL ROSARIO-ASILO NIDO; ;CONTRIBUTO ECONOMICO DA DESTINARE ALLE SCUOLE DELLINFANZIA PARITARIE CHE HANNO ATTIVATO UNA SEZIONE DI NIDO INTEGRATO O UNA SEZIONE PRIMAVERA, ANNO SCOLASTICO 2023/2024.;08/01/2024;3759;0;1004;1;Spese correnti;4;Trasferimenti correnti;4;Trasferimenti correnti a Istituzioni Sociali Private;1;Trasferimenti correnti a Istituzioni Sociali Private;1;Trasferimenti correnti a Istituzioni Sociali Private;10/01/2024
27;1;9999999;244;244;BAR SESTO SENSO SAS DI KATHERINA FAVARON;ZAF3A0B126;SALDO Fatt.n. 40  del 20/12/2023 RINFRESCO PER INAUGURAZIONE PISTA CICLABILE STIGLIANO;08/01/2024;31;0;144;1;Spese correnti;3;Acquisto di beni e servizi;2;Acquisto di servizi;2;Organizzazione eventi, pubblicita` e servizi per trasferta;999;Altre spese per relazioni pubbliche, convegni e mostre, pubblicita` n.a.c;10/01/2024
28;1;9999999;87,47;87,47;MEB SRL;ZC839D1F3A;SALDO Fatt.n. 066332  del 21/12/2023 MATERIALE ELETTRICO PER MANUTENZIONI;08/01/2024;521;0;98;1;Spese correnti;3;Acquisto di beni e servizi;1;Acquisto di beni;2;Altri beni di consumo;999;Altri beni e materiali di consumo n.a.c.;10/01/2024
29;1;9999999;398,94;398,94;GRAFICHE E. GASPARI SRL;Z273D0EAD5;SALDO Fatt.n. 17962/S  del 22/12/2023;08/01/2024;621;0;862;1;Spese correnti;3;Acquisto di beni e servizi;1;Acquisto di beni;2;Altri beni di consumo;1;Carta, cancelleria e stampati;10/01/2024
30;1;9999999;453,6;453,6;E.S.A. ELECOMP SERVIZI ASCENSORI SRL;Z25350B12E;ACCONTO Fatt.n. FC0068813-0  del 15/12/2023 MANUTENZIONE  IMPIANTI ELEVATORI - PERIODO LUGLIO - DICEMBRE 2023;08/01/2024;1338;0;133;1;Spese correnti;3;Acquisto di beni e servizi;2;Acquisto di servizi;9;Manutenzione ordinaria e riparazioni;11;Manutenzione ordinaria e riparazioni di altri beni materiali;10/01/2024
31;1;9999999;80,76;80,76;E.S.A. ELECOMP SERVIZI ASCENSORI SRL;Z25350B12E;SALDO Fatt.n. FC0068813-0  del 15/12/2023 MANUTENZIONE  IMPIANTI ELEVATORI - PERIODO LUGLIO - DICEMBRE 2023;08/01/2024;1338;0;270;1;Spese correnti;3;Acquisto di beni e servizi;2;Acquisto di servizi;9;Manutenzione ordinaria e riparazioni;11;Manutenzione ordinaria e riparazioni di altri beni materiali;10/01/2024
32;1;9999999;632,67;632,67;CENTRO BIBLIOTECHE LOVAT SRL;Z61399458C;SALDO Fatt.n. 1006-23  del 15/12/2023 VOLUMI PER BIBLIOTECA;08/01/2024;1820;0;56;1;Spese correnti;3;Acquisto di beni e servizi;1;Acquisto di beni;1;Giornali, riviste e pubblicazioni;2;Pubblicazioni;10/01/2024
33;1;9999999;1.999,99;1.999,99;VENICE AMBITEC SCARL;Z033DD7307;SALDO Fatt.n. 77/001  del 22/12/2023 VERIFICA STATICA VISIVA E STRUMENTALE SU ALBERATURE POSTE NEL COMUNE SMS;08/01/2024;2549;0;1098;1;Spese correnti;3;Acquisto di beni e servizi;2;Acquisto di servizi;99;Altri servizi;9;Acquisto di sevizi per verde e arredo urbano;10/01/2024
34;1;9999999;342,57;342,57;TOLOMIO SRL;ZF53DD6F9F;ACCONTO Fatt.n. 141 PA  del 21/12/2023 FORNITURA CONGLOMERATO BITUMINOSO RIGENERATO AL 95% A FREDDO;08/01/2024;3538;0;1096;1;Spese correnti;3;Acquisto di beni e servizi;2;Acquisto di servizi;9;Manutenzione ordinaria e riparazioni;8;Manutenzione ordinaria e riparazioni di beni immobili;10/01/2024
35;1;9999999;3.468,26;3.468,26;WESTERN CO SRL;ZC23D6C78C;SALDO Fatt.n. 2302626  del 21/12/2023 FORNITURA LAMPIONI PER MANUTENZIONE ILLUMINAZIONE PUBBLICA VIA VOLPIN;08/01/2024;3538;0;987;1;Spese correnti;3;Acquisto di beni e servizi;2;Acquisto di servizi;9;Manutenzione ordinaria e riparazioni;4;Manutenzione ordinaria e riparazioni di impianti e macchinari;10/01/2024
36;1;9999999;899,45;899,45;P. & G. AUTOSERVICE SNC;ZE73D9CA5D;SALDO Fatt.n. 5PA  del 23/12/2023 MANUTENZIONE PARCO MEZZI COMUNALI DICEMBRE 2023;08/01/2024;3538;0;1021;1;Spese correnti;3;Acquisto di beni e servizi;2;Acquisto di servizi;9;Manutenzione ordinaria e riparazioni;1;Manutenzione ordinaria e riparazioni di mezzi di trasporto ad uso civile, di sicurezza e ordine pubblico;10/01/2024
37;1;9999999;900;900;TOLOMIO SRL;ZF53DD6F9F;SALDO Fatt.n. 141 PA  del 21/12/2023 FORNITURA CONGLOMERATO BITUMINOSO RIGENERATO AL 95% A FREDDO;08/01/2024;3538;0;1096;1;Spese correnti;3;Acquisto di beni e servizi;2;Acquisto di servizi;9;Manutenzione ordinaria e riparazioni;8;Manutenzione ordinaria e riparazioni di beni immobili;10/01/2024
38;1;9999999;24,85;50,1;C/C/P 1039683022 -RISCOSSIONE COATTIVA EX ICP DPA; ;SPESE GESTIONE CONTO CORRENTE  POSTALE 1039683022 NOVEMBRE 2023 RISCOSSIONE COATTIVA;08/01/2024;146;0;52;1;Spese correnti;3;Acquisto di beni e servizi;2;Acquisto di servizi;17;Servizi finanziari;999;Spese per servizi finanziari n.a.c.;10/01/2024
38;2;9999999;25,25;50,1;C/C/P 1039683022 -RISCOSSIONE COATTIVA EX ICP DPA; ;SPESE GESTIONE CONTO CORRENTE  POSTALE 1039683022 DICEMBRE 2023 RISCOSSIONE COATTIVA;08/01/2024;146;0;52;1;Spese correnti;3;Acquisto di beni e servizi;2;Acquisto di servizi;17;Servizi finanziari;999;Spese per servizi finanziari n.a.c.;10/01/2024
40;1;9999999;835,3;835,3;AGENZIA DELLE ENTRATE - IVA; ;LIQUIDAZIONE IVA COMMERCIALE MESE DI DICEMBRE 2023;09/01/2024;291;0;22;1;Spese correnti;10;Altre spese correnti;3;Versamenti IVA a debito;1;Versamenti IVA a debito per le gestioni commerciali;1;Versamenti IVA a debito per le gestioni commerciali;16/01/2024
41;1;9999999;490;490;OMESSO NOMINATIVO NEL RISPETTO DELLA NORMATIVA SULLA PROTEZIONE DATI PERSONALI; ;DICEMBRE 2023 INTEGRAZIONE RETTA CASA DI RIPOSO RESIDENZA RIVIERA DEL BRENTA -;10/01/2024;3844;0;125;1;Spese correnti;3;Acquisto di beni e servizi;2;Acquisto di servizi;15;Contratti di servizio pubblico;8;Contratti di servizio di assistenza sociale residenziale e semiresidenziale;15/01/2024
42;1;9999999;86,98;86,98;ENILIVE SPA;Z063967AC5;ACCONTO Fatt.n. 30330297  del 30/11/2023 NOVEMBRE 2023 - FORNITURA METANO;10/01/2024;521;0;949;1;Spese correnti;3;Acquisto di beni e servizi;1;Acquisto di beni;2;Altri beni di consumo;2;Carburanti, combustibili e lubrificanti;12/01/2024
43;1;9999999;19,14;19,14;ENILIVE SPA;Z063967AC5;SALDO Fatt.n. 30330297  del 30/11/2023 NOVEMBRE 2023 - FORNITURA METANO;10/01/2024;521;0;949;1;Spese correnti;3;Acquisto di beni e servizi;1;Acquisto di beni;2;Altri beni di consumo;2;Carburanti, combustibili e lubrificanti;15/01/2024
44;1;9999999;25,59;25,59;C/C/P 15453301 SERVIZIO DI TESORERIA COM; ;SPESE GESTIONE CONTO CORRENTE  POSTALE 15453301 DICEMBRE 2023;10/01/2024;146;0;52;1;Spese correnti;3;Acquisto di beni e servizi;2;Acquisto di servizi;17;Servizi finanziari;999;Spese per servizi finanziari n.a.c.;15/01/2024
46;1;9999999;1.500,00;1.500,00;PELLAI ROBERTO;Z593D71C00;SALDO Fatt.n. 168  del 13/12/2023 COMPENSO PER INCONTRO DI DIVULGAZIONE SUL RUOLO DEL PADRE NELLO SVILUPPO EMOZIONALE DEGLI ADOLESCENTI;10/01/2024;1341;0;985;1;Spese correnti;3;Acquisto di beni e servizi;2;Acquisto di servizi;11;Prestazioni professionali e specialistiche;999;Altre prestazioni professionali e specialistiche n.a.c.;15/01/2024
47;1;9999999;110;110;C/C/P 10299303 POLIZIA LOCALE SERVIZIO D; ;SPESE GESTIONE CONTO CORRENTE POSTALE;11/01/2024;146;0;52;1;Spese correnti;3;Acquisto di beni e servizi;2;Acquisto di servizi;17;Servizi finanziari;999;Spese per servizi finanziari n.a.c.;15/01/2024
48;1;9999999;110;110;DIVERSI CCP LAMPADE VOTIVE C/C/P 19041300; ;SPESE GESTIONE CONTO CORRENTE POSTALE;11/01/2024;146;0;52;1;Spese correnti;3;Acquisto di beni e servizi;2;Acquisto di servizi;17;Servizi finanziari;999;Spese per servizi finanziari n.a.c.;15/01/2024
49;1;9999999;150;150;DIVERSI-VERSAMENTO I.C.I. TOSAP C/C/P 12261301; ;SPESE GESTIONE CONTO CORRENTE POSTALE;11/01/2024;146;0;4;1;Spese correnti;3;Acquisto di beni e servizi;2;Acquisto di servizi;17;Servizi finanziari;999;Spese per servizi finanziari n.a.c.;15/01/2024
51;1;9999999;290,24;290,24;FORNITECNICA S.R.L.;ZA934CBAAD;SALDO Fatt.n. 000343PA23  del 14/12/2023 COSTO COPIA CONGUAGLIO ANNO 2023;11/01/2024;748;0;62;1;Spese correnti;3;Acquisto di beni e servizi;2;Acquisto di servizi;19;Servizi informatici e di telecomunicazioni;9;Servizi per le postazioni di lavoro e relativa manutenzione;15/01/2024
52;1;9999999;514,21;514,21;KYOCERA DOCUMENT SOLUTIONS ITALIA SPA;ZB93086395;ACCONTO Fatt.n. 1010874295  del 22/12/2023 FOTOCOPIATRICI 32 - LOTTO 5 - 60 MESI - CANONE PERIODO DAL 13.09.2023 AL 12.12.2023;11/01/2024;748;0;106;1;Spese correnti;3;Acquisto di beni e servizi;2;Acquisto di servizi;19;Servizi informatici e di telecomunicazioni;7;Servizi di gestione documentale;15/01/2024
53;1;9999999;270,41;270,41;KYOCERA DOCUMENT SOLUTIONS ITALIA SPA;Z202CF11D4;SALDO Fatt.n. 1010874294  del 22/12/2023 FOTOCOPIATRICI 31 - LOTTO 3 - 60 MESI CANONE DAL 18/09/2023 AL 17/12/2023;11/01/2024;748;0;450;1;Spese correnti;3;Acquisto di beni e servizi;2;Acquisto di servizi;19;Servizi informatici e di telecomunicazioni;9;Servizi per le postazioni di lavoro e relativa manutenzione;15/01/2024
54;1;9999999;824,4;824,4;VODAFONE ITALIA SPA;Z6C2BED875;ACCONTO Fatt.n. AP21176385  del 30/12/2023 PERIODO 25 OTTOBRE  23 DICEMBRE 2023 TELEFONIA;11/01/2024;1334;0;1052;1;Spese correnti;3;Acquisto di beni e servizi;2;Acquisto di servizi;5;Utenze e canoni;1;Telefonia fissa;15/01/2024
55;1;9999999;59,62;1.584,39;VODAFONE ITALIA SPA;Z6C2BED875;SALDO Fatt.n. AP21176728  del 30/12/2023 PERIODO 25 OTTOBRE  23 DICEMBRE 2023 TELEFONIA;11/01/2024;1334;0;24;1;Spese correnti;3;Acquisto di beni e servizi;2;Acquisto di servizi;5;Utenze e canoni;1;Telefonia fissa;15/01/2024
55;2;9999999;109,58;1.584,39;VODAFONE ITALIA SPA;Z6C2BED875;SALDO Fatt.n. AP21176385  del 30/12/2023 PERIODO 25 OTTOBRE  23 DICEMBRE 2023 TELEFONIA;11/01/2024;1334;0;24;1;Spese correnti;3;Acquisto di beni e servizi;2;Acquisto di servizi;5;Utenze e canoni;1;Telefonia fissa;15/01/2024
55;3;9999999;247,41;1.584,39;VODAFONE ITALIA SPA;Z6C2BED875;SALDO Fatt.n. AP21176729  del 30/12/2023 PERIODO 25 OTTOBRE  23 DICEMBRE 2023 TELEFONIA;11/01/2024;1334;0;24;1;Spese correnti;3;Acquisto di beni e servizi;2;Acquisto di servizi;5;Utenze e canoni;1;Telefonia fissa;15/01/2024
55;4;9999999;1.167,78;1.584,39;VODAFONE ITALIA SPA;Z6C2BED875;SALDO Fatt.n. AP21176487  del 30/12/2023 PERIODO 25 OTTOBRE  23 DICEMBRE 2023 TELEFONIA;11/01/2024;1334;0;24;1;Spese correnti;3;Acquisto di beni e servizi;2;Acquisto di servizi;5;Utenze e canoni;1;Telefonia fissa;15/01/2024
56;1;9999999;74,4;1.192,50;TIM SPA - TELECOM ITALIA SPA;Z502F0ADA2;SALDO Fatt.n. 8E01044045  del 12/12/2023 PERIODO 1-2024 OTT-NOV 2023 UTENZA CENTRO PRELIEVI;11/01/2024;134;0;1050;1;Spese correnti;3;Acquisto di beni e servizi;2;Acquisto di servizi;5;Utenze e canoni;1;Telefonia fissa;15/01/2024
56;2;9999999;74,4;1.192,50;TIM SPA - TELECOM ITALIA SPA;Z502F0ADA2;SALDO Fatt.n. 8E01044766  del 12/12/2023 PERIODO 1-2024 OTT-NOV 2023 FAX BIBLIOTECA;11/01/2024;134;0;1050;1;Spese correnti;3;Acquisto di beni e servizi;2;Acquisto di servizi;5;Utenze e canoni;1;Telefonia fissa;15/01/2024
56;3;9999999;74,4;1.192,50;TIM SPA - TELECOM ITALIA SPA;Z502F0ADA2;SALDO Fatt.n. 8E01046070  del 12/12/2023 PERIODO 1-2024 OTT-NOV 2023 FAX SEDE MUNICIPALE;11/01/2024;134;0;1050;1;Spese correnti;3;Acquisto di beni e servizi;2;Acquisto di servizi;5;Utenze e canoni;1;Telefonia fissa;15/01/2024
56;4;9999999;99,2;1.192,50;TIM SPA - TELECOM ITALIA SPA;Z502F0ADA2;SALDO Fatt.n. 8E01041471  del 12/12/2023 PERIODO 1-2024 OTT-NOV 2023 FAX POLIZIA LOCALE;11/01/2024;134;0;1050;1;Spese correnti;3;Acquisto di beni e servizi;2;Acquisto di servizi;5;Utenze e canoni;1;Telefonia fissa;15/01/2024
56;5;9999999;111,4;1.192,50;TIM SPA - TELECOM ITALIA SPA;Z502F0ADA2;SALDO Fatt.n. 8E01047447  del 12/12/2023 PERIODO 1-2024 OTT-NOV 2023 UTENZA SERVIZI SOCIALI;11/01/2024;134;0;1050;1;Spese correnti;3;Acquisto di beni e servizi;2;Acquisto di servizi;5;Utenze e canoni;1;Telefonia fissa;15/01/2024
56;6;9999999;116,08;1.192,50;TIM SPA - TELECOM ITALIA SPA;Z502F0ADA2;SALDO Fatt.n. 8E01046464  del 12/12/2023 PERIODO 1-2024 OTT-NOV 2023 UTENZA SEDE MUNICIPALE;11/01/2024;134;0;1050;1;Spese correnti;3;Acquisto di beni e servizi;2;Acquisto di servizi;5;Utenze e canoni;1;Telefonia fissa;15/01/2024
56;7;9999999;124;1.192,50;TIM SPA - TELECOM ITALIA SPA;Z502F0ADA2;SALDO Fatt.n. 8E01042926  del 12/12/2023 PERIODO 1-2024 OTT-NOV 2023 UTENZA POLIZIA LOCALE;11/01/2024;134;0;1050;1;Spese correnti;3;Acquisto di beni e servizi;2;Acquisto di servizi;5;Utenze e canoni;1;Telefonia fissa;15/01/2024
56;8;9999999;124;1.192,50;TIM SPA - TELECOM ITALIA SPA;Z502F0ADA2;SALDO Fatt.n. 8E01042999  del 12/12/2023 PERIODO 1-2024 OTT-NOV 2023 UTENZA SEDE MUNICIPALE;11/01/2024;134;0;1050;1;Spese correnti;3;Acquisto di beni e servizi;2;Acquisto di servizi;5;Utenze e canoni;1;Telefonia fissa;15/01/2024
56;9;9999999;124;1.192,50;TIM SPA - TELECOM ITALIA SPA;Z502F0ADA2;SALDO Fatt.n. 8E01046465  del 12/12/2023 PERIODO 1-2024 OTT-NOV 2023 UTENZA BIBLIOTECA;11/01/2024;134;0;1050;1;Spese correnti;3;Acquisto di beni e servizi;2;Acquisto di servizi;5;Utenze e canoni;1;Telefonia fissa;15/01/2024
56;10;9999999;134,22;1.192,50;TIM SPA - TELECOM ITALIA SPA;Z502F0ADA2;SALDO Fatt.n. 8E01044323  del 12/12/2023 PERIODO 1-2024 OTT-NOV 2023 UTENZA SEDE MUNICIPALE;11/01/2024;134;0;1050;1;Spese correnti;3;Acquisto di beni e servizi;2;Acquisto di servizi;5;Utenze e canoni;1;Telefonia fissa;15/01/2024
56;11;9999999;136,4;1.192,50;TIM SPA - TELECOM ITALIA SPA;Z502F0ADA2;SALDO Fatt.n. 8E01045576  del 12/12/2023 PERIODO 1-2024 OTT-NOV 2023 FAX CENTRO PRELIEVI;11/01/2024;134;0;1050;1;Spese correnti;3;Acquisto di beni e servizi;2;Acquisto di servizi;5;Utenze e canoni;1;Telefonia fissa;15/01/2024
57;1;9999999;136,67;1.249,01;TIM SPA - TELECOM ITALIA SPA;ZE027DF92B;SALDO Fatt.n. 4220424800077419  del 12/12/2023 PERIODO 1-2024 OTT-NOV 2023 CONNETTIVITA BACKUP SEDE MUNICIPALE;11/01/2024;134;0;1051;1;Spese correnti;3;Acquisto di beni e servizi;2;Acquisto di servizi;5;Utenze e canoni;999;Utenze e canoni per altri servizi n.a.c.;15/01/2024
57;2;9999999;1.112,34;1.249,01;TIM SPA - TELECOM ITALIA SPA;ZE027DF92B;SALDO Fatt.n. 4220424800077644  del 12/12/2023 PERIODO 1-2024 OTT-NOV 2023 CONNETTIVITA FIBRA GBE;11/01/2024;134;0;1051;1;Spese correnti;3;Acquisto di beni e servizi;2;Acquisto di servizi;5;Utenze e canoni;999;Utenze e canoni per altri servizi n.a.c.;15/01/2024
58;1;9999999;382,45;382,45;TIM SPA - TELECOM ITALIA SPA;ZA738154E0;ACCONTO Fatt.n. 8E01046582  del 12/12/2023 PERIODO 1-2024 OTT-NOV 2023 CONNETTIVITA FIBRA GBE;11/01/2024;134;0;179;1;Spese correnti;3;Acquisto di beni e servizi;2;Acquisto di servizi;5;Utenze e canoni;999;Utenze e canoni per altri servizi n.a.c.;15/01/2024
59;1;9999999;484,22;484,22;TIM SPA - TELECOM ITALIA SPA;ZC0320B772;SALDO Fatt.n. 8E01046582  del 12/12/2023 PERIODO 1-2024 OTT-NOV 2023 CONNETTIVITA FIBRA GBE;11/01/2024;134;32;178;1;Spese correnti;3;Acquisto di beni e servizi;2;Acquisto di servizi;5;Utenze e canoni;2;Telefonia mobile;15/01/2024
60;1;9999999;270,69;270,69;KYOCERA DOCUMENT SOLUTIONS ITALIA SPA;ZB93086395;SALDO Fatt.n. 1010874295  del 22/12/2023 FOTOCOPIATRICI 32 - LOTTO 5 - 60 MESI - CANONE PERIODO DAL 13.09.2023 AL 12.12.2023;11/01/2024;748;0;106;1;Spese correnti;3;Acquisto di beni e servizi;2;Acquisto di servizi;19;Servizi informatici e di telecomunicazioni;7;Servizi di gestione documentale;15/01/2024
61;1;9999999;440,43;440,43;TIM SPA - TELECOM ITALIA SPA;ZC0320B772;SALDO Fatt.n. 7X05735464  del 12/12/2023 PERIODO 1-2024 OTT-NOV 2023 CONVENZIONE CONSIP TELEFONIA MOBILE 8;11/01/2024;134;32;178;1;Spese correnti;3;Acquisto di beni e servizi;2;Acquisto di servizi;5;Utenze e canoni;2;Telefonia mobile;15/01/2024
62;1;9999999;617,27;617,27;SARV ANTINCENDI SRL;Z4F378F562;ACCONTO Fatt.n. PA0000017  del 22/12/2023 CONTROLLO 2 SEMESTRE  ESTINTORI PORTATILI - IDRANTE A COLONNA - DEFIBRILLATORI;11/01/2024;548;0;798;1;Spese correnti;3;Acquisto di beni e servizi;2;Acquisto di servizi;9;Manutenzione ordinaria e riparazioni;11;Manutenzione ordinaria e riparazioni di altri beni materiali;15/01/2024
63;1;9999999;2.000,00;2.000,00;OMESSO NOMINATIVO NEL RISPETTO DELLA NORMATIVA SULLA PROTEZIONE DATI PERSONALI;Z9F3DD662B;ACCONTO Fatt.n. 15  del 22/12/2023 TINTEGGIATURA PARETI FABBRICATI COMUNALI;11/01/2024;548;0;1094;1;Spese correnti;3;Acquisto di beni e servizi;2;Acquisto di servizi;9;Manutenzione ordinaria e riparazioni;11;Manutenzione ordinaria e riparazioni di altri beni materiali;15/01/2024
64;1;9999999;60;60;INTERAZIONE SRL;ZD23D28994;SALDO Fatt.n. 225/03  del 18/12/2023  PARTECIPAZIONE AL WEBINAR TERZA GIORNATA DI FORMAZIONE FISCALE DEL 21.11.2023 DIPENDENTE SETTORE ECONOMICO;11/01/2024;833;0;885;1;Spese correnti;3;Acquisto di beni e servizi;2;Acquisto di servizi;4;Acquisto di servizi per formazione e addestramento del personale dell'ente;999;Acquisto di servizi per altre spese per formazione e addestramento n.a.c.;15/01/2024
65;1;9999999;4.093,19;4.093,19;OMESSO NOMINATIVO NEL RISPETTO DELLA NORMATIVA SULLA PROTEZIONE DATI PERSONALI;Z4F378F562;ACCONTO Fatt.n. PA0000017  del 22/12/2023 CONTROLLO 2 SEMESTRE  ESTINTORI PORTATILI - IDRANTE A COLONNA - DEFIBRILLATORI;11/01/2024;1338;0;796;1;Spese correnti;3;Acquisto di beni e servizi;2;Acquisto di servizi;9;Manutenzione ordinaria e riparazioni;11;Manutenzione ordinaria e riparazioni di altri beni materiali;15/01/2024
66;1;9999999;2.900,00;2.900,00;MATTESCO DANIELE;Z9F3DD662B;SALDO Fatt.n. 15  del 22/12/2023 TINTEGGIATURA PARETI FABBRICATI COMUNALI;11/01/2024;1338;0;1095;1;Spese correnti;3;Acquisto di beni e servizi;2;Acquisto di servizi;9;Manutenzione ordinaria e riparazioni;11;Manutenzione ordinaria e riparazioni di altri beni materiali;15/01/2024
67;1;9999999;4.500,00;4.500,00;SARV ANTINCENDI SRL;Z4F378F562;SALDO Fatt.n. PA0000017  del 22/12/2023 CONTROLLO 2 SEMESTRE  ESTINTORI PORTATILI - IDRANTE A COLONNA - DEFIBRILLATORI;11/01/2024;1938;0;797;1;Spese correnti;3;Acquisto di beni e servizi;2;Acquisto di servizi;9;Manutenzione ordinaria e riparazioni;11;Manutenzione ordinaria e riparazioni di altri beni materiali;15/01/2024
68;1;9999999;2.669,41;2.669,41;TREVISAN FEDERICO;9124726A18;ACCONTO Fatt.n. 11/B00  del 20/12/2023 SERVIZIO DI SFALCIO ERBA BANCHINE STRADALI;11/01/2024;2549;0;335;1;Spese correnti;3;Acquisto di beni e servizi;2;Acquisto di servizi;99;Altri servizi;9;Acquisto di sevizi per verde e arredo urbano;15/01/2024
69;1;9999999;4.000,00;4.000,00;SCANTAMBURLO PIETRO;913650419E;ACCONTO Fatt.n. 150  del 21/12/2023 PULIZIA E RIORDINO CENTRI URBANI;11/01/2024;2549;0;337;1;Spese correnti;3;Acquisto di beni e servizi;2;Acquisto di servizi;99;Altri servizi;9;Acquisto di sevizi per verde e arredo urbano;15/01/2024
70;1;9999999;6.169,21;6.169,21;L'ISOLA SOC. COOPERATIVA SOCIALE;9135335CEA;ACCONTO Fatt.n. 24/PA  del 22/12/2023 MANUTENZIONE VERDE PUBBLICO;11/01/2024;2549;0;338;1;Spese correnti;3;Acquisto di beni e servizi;2;Acquisto di servizi;99;Altri servizi;9;Acquisto di sevizi per verde e arredo urbano;15/01/2024
71;1;9999999;27.470,20;27.470,20;ALADINO SOC.COOP.SOCIALE;95305781C5;SALDO Fatt.n. 28/2  del 20/12/2023 MANUTENZIONE PATRIMONIO ARBOREO E AREE VERDI;11/01/2024;2549;0;450;1;Spese correnti;3;Acquisto di beni e servizi;2;Acquisto di servizi;99;Altri servizi;9;Acquisto di sevizi per verde e arredo urbano;15/01/2024
72;1;9999999;17.216,73;17.216,73;SCANTAMBURLO PIETRO;913650419E;SALDO Fatt.n. 150  del 21/12/2023 PULIZIA E RIORDINO CENTRI URBANI;11/01/2024;2549;0;1019;1;Spese correnti;3;Acquisto di beni e servizi;2;Acquisto di servizi;99;Altri servizi;9;Acquisto di sevizi per verde e arredo urbano;15/01/2024
73;1;9999999;16.942,26;16.942,26;L'ISOLA SOC. COOPERATIVA SOCIALE;9135335CEA;SALDO Fatt.n. 24/PA  del 22/12/2023 MANUTENZIONE VERDE PUBBLICO;11/01/2024;2549;0;1020;1;Spese correnti;3;Acquisto di beni e servizi;2;Acquisto di servizi;99;Altri servizi;9;Acquisto di sevizi per verde e arredo urbano;15/01/2024
74;1;9999999;17.193,24;17.193,24;TREVISAN FEDERICO;9124726A18;SALDO Fatt.n. 11/B00  del 20/12/2023 SERVIZIO DI SFALCIO ERBA BANCHINE STRADALI;11/01/2024;2549;0;1024;1;Spese correnti;3;Acquisto di beni e servizi;2;Acquisto di servizi;99;Altri servizi;9;Acquisto di sevizi per verde e arredo urbano;15/01/2024
75;1;9999999;5.612,00;5.612,00;CALCIO EXPRESS EMPORIO SPORT SRL;Z673CE76EF;SALDO Fatt.n. 797  del 20/12/2023 FORNITURA N. 2 PANCHINE PER ALLENATORI E RISERVE IMP. SPORT. CALTANA;11/01/2024;8469;0;849;2;Spese in conto capitale;2;Investimenti fissi lordi e acquisto di terreni;1;Beni materiali;9;Beni immobili;16;Impianti sportivi;15/01/2024
76;1;9999999;10.172,85;10.172,85;BOXXAPPS SRL;9782399308;SALDO Fatt.n. 1/231139  del 19/12/2023 INVESTIMENTO 1.3  DATI E INTEROPERABILITA - MISURA 1.3.1 PIATTAFORMA DIGITALE NAZIONALE DATI, FINANZIATO DALL'UNIONE EUROPEA - NEXTGENERATIONEU;11/01/2024;8600;0;401;2;Spese in conto capitale;2;Investimenti fissi lordi e acquisto di terreni;3;Beni immateriali;99;Spese di investimento per beni immateriali n.a.c.;1;Spese di investimento per beni immateriali n.a.c.;15/01/2024
77;1;9999999;197,76;197,76;DOLOMITI ENERGIA SPA;9740529ACE;SALDO Fatt.n. 42306225347  del 21/12/2023 NOVEMBRE 2023 CONSUMI ALLOGGIO VIA D. GALLERANI CALTANA;11/01/2024;134;30;342;1;Spese correnti;3;Acquisto di beni e servizi;2;Acquisto di servizi;5;Utenze e canoni;6;Gas;15/01/2024
78;1;9999999;2,92;2,92;DOLOMITI ENERGIA SPA;9740529ACE;SALDO Fatt.n. 42306225346  del 21/12/2023 NOVEMBRE 2023 CONSUMI IMMOBILE COMUNALE VIA OLIMPIA SMS;11/01/2024;134;30;342;1;Spese correnti;3;Acquisto di beni e servizi;2;Acquisto di servizi;5;Utenze e canoni;6;Gas;15/01/2024
79;1;9999999;1.923,31;1.923,31;DOLOMITI ENERGIA SPA;9740529ACE;SALDO Fatt.n. 42306225344  del 21/12/2023 NOVEMBRE 2023 CONSUMI SEDE MUNICIPALE;11/01/2024;134;31;343;1;Spese correnti;3;Acquisto di beni e servizi;2;Acquisto di servizi;5;Utenze e canoni;6;Gas;15/01/2024
80;1;9999999;711,03;711,03;DOLOMITI ENERGIA SPA;9740529ACE;ACCONTO Fatt.n. 42306225349  del 21/12/2023 NOVEMBRE 2023 CONSUMI PALESTRA SMS;11/01/2024;1334;30;344;1;Spese correnti;3;Acquisto di beni e servizi;2;Acquisto di servizi;5;Utenze e canoni;6;Gas;15/01/2024
81;1;9999999;788;788;DOLOMITI ENERGIA SPA;9740529ACE;ACCONTO Fatt.n. 42306225340  del 21/12/2023 NOVEMBRE 2023 CONSUMI SC. ELEM - PALESTRA VETERNIGO;11/01/2024;1334;30;344;1;Spese correnti;3;Acquisto di beni e servizi;2;Acquisto di servizi;5;Utenze e canoni;6;Gas;15/01/2024
82;1;9999999;1.291,26;1.291,26;DOLOMITI ENERGIA SPA;9740529ACE;ACCONTO Fatt.n. 42306225340  del 21/12/2023 NOVEMBRE 2023 CONSUMI SC. ELEM - PALESTRA VETERNIGO;11/01/2024;1334;30;344;1;Spese correnti;3;Acquisto di beni e servizi;2;Acquisto di servizi;5;Utenze e canoni;6;Gas;15/01/2024
83;1;9999999;1.744,69;1.744,69;DOLOMITI ENERGIA SPA;9740529ACE;SALDO Fatt.n. 42306225342  del 21/12/2023 NOVEMBRE 2023 CONSUMI SC. ELEM. CALTANA;11/01/2024;1334;30;344;1;Spese correnti;3;Acquisto di beni e servizi;2;Acquisto di servizi;5;Utenze e canoni;6;Gas;15/01/2024
84;1;9999999;524;524;DOLOMITI ENERGIA SPA;9740529ACE;ACCONTO Fatt.n. 42306225345  del 21/12/2023 NOVEMBRE 2023 CONSUMI SC. ELEM - PALESTRA - ASILO S.ANGELO;11/01/2024;1334;30;344;1;Spese correnti;3;Acquisto di beni e servizi;2;Acquisto di servizi;5;Utenze e canoni;6;Gas;15/01/2024
85;1;9999999;1.574,39;1.574,39;DOLOMITI ENERGIA SPA;9740529ACE;ACCONTO Fatt.n. 42306225345  del 21/12/2023 NOVEMBRE 2023 CONSUMI SC. ELEM - PALESTRA - ASILO S.ANGELO;11/01/2024;1334;30;344;1;Spese correnti;3;Acquisto di beni e servizi;2;Acquisto di servizi;5;Utenze e canoni;6;Gas;15/01/2024
86;1;9999999;312,5;312,5;DOLOMITI ENERGIA SPA;9740529ACE;ACCONTO Fatt.n. 42306225348  del 21/12/2023 NOVEMBRE 2023 CONSUMI SC. ELEM -SC.  MEDIA SMS;11/01/2024;1334;30;344;1;Spese correnti;3;Acquisto di beni e servizi;2;Acquisto di servizi;5;Utenze e canoni;6;Gas;15/01/2024
87;1;9999999;4.619,11;4.619,11;DOLOMITI ENERGIA SPA;9740529ACE;SALDO Fatt.n. 42306225348  del 21/12/2023 NOVEMBRE 2023 CONSUMI SC. ELEM -SC.  MEDIA SMS;11/01/2024;1334;30;940;1;Spese correnti;3;Acquisto di beni e servizi;2;Acquisto di servizi;5;Utenze e canoni;6;Gas;15/01/2024
88;1;9999999;524,8;524,8;DOLOMITI ENERGIA SPA;9740529ACE;ACCONTO Fatt.n. 42306225339  del 21/12/2023 NOVEMBRE 2023 CONSUMI SC. ELEM - PALESTRA STIGLIANO;11/01/2024;1334;30;940;1;Spese correnti;3;Acquisto di beni e servizi;2;Acquisto di servizi;5;Utenze e canoni;6;Gas;15/01/2024
89;1;9999999;563,29;563,29;DOLOMITI ENERGIA SPA;9740529ACE;ACCONTO Fatt.n. 42306225339  del 21/12/2023 NOVEMBRE 2023 CONSUMI SC. ELEM - PALESTRA STIGLIANO;11/01/2024;1334;30;940;1;Spese correnti;3;Acquisto di beni e servizi;2;Acquisto di servizi;5;Utenze e canoni;6;Gas;15/01/2024
90;1;9999999;535;535;DOLOMITI ENERGIA SPA;9740529ACE;ACCONTO Fatt.n. 42306225343  del 21/12/2023 NOVEMBRE 2023 CONSUMI SC. ELEM - PALESTRA CASELLE;11/01/2024;1334;30;940;1;Spese correnti;3;Acquisto di beni e servizi;2;Acquisto di servizi;5;Utenze e canoni;6;Gas;15/01/2024
91;1;9999999;1.607,12;1.607,12;DOLOMITI ENERGIA SPA;9740529ACE;ACCONTO Fatt.n. 42306225343  del 21/12/2023 NOVEMBRE 2023 CONSUMI SC. ELEM - PALESTRA CASELLE;11/01/2024;1334;30;940;1;Spese correnti;3;Acquisto di beni e servizi;2;Acquisto di servizi;5;Utenze e canoni;6;Gas;15/01/2024
92;1;9999999;1.115,79;1.115,79;DOLOMITI ENERGIA SPA;9740529ACE;ACCONTO Fatt.n. 42306225351  del 21/12/2023 NOVEMBRE 2023 CONSUMI PALESTRA CALTANA;11/01/2024;1334;30;940;1;Spese correnti;3;Acquisto di beni e servizi;2;Acquisto di servizi;5;Utenze e canoni;6;Gas;15/01/2024
93;1;9999999;2.335,43;2.335,43;DOLOMITI ENERGIA SPA;9740529ACE;ACCONTO Fatt.n. 42306225341  del 21/12/2023 NOVEMBRE 2023 CONSUMI VILLA FARSETTI;11/01/2024;1834;0;345;1;Spese correnti;3;Acquisto di beni e servizi;2;Acquisto di servizi;5;Utenze e canoni;6;Gas;15/01/2024
94;1;9999999;407,67;407,67;DOLOMITI ENERGIA SPA;9740529ACE;SALDO Fatt.n. 42306225352  del 21/12/2023 NOVEMBRE 2023 CONSUMI IMP. SPORT. PARROCCHIA CASELLE;11/01/2024;1934;0;346;1;Spese correnti;3;Acquisto di beni e servizi;2;Acquisto di servizi;5;Utenze e canoni;6;Gas;15/01/2024
95;1;9999999;711,02;711,02;DOLOMITI ENERGIA SPA;9740529ACE;SALDO Fatt.n. 42306225349  del 21/12/2023 NOVEMBRE 2023 CONSUMI PALESTRA SMS;11/01/2024;1934;0;346;1;Spese correnti;3;Acquisto di beni e servizi;2;Acquisto di servizi;5;Utenze e canoni;6;Gas;15/01/2024
96;1;9999999;788;788;DOLOMITI ENERGIA SPA;9740529ACE;SALDO Fatt.n. 42306225340  del 21/12/2023 NOVEMBRE 2023 CONSUMI SC. ELEM - PALESTRA VETERNIGO;11/01/2024;1934;0;346;1;Spese correnti;3;Acquisto di beni e servizi;2;Acquisto di servizi;5;Utenze e canoni;6;Gas;15/01/2024
97;1;9999999;524;524;DOLOMITI ENERGIA SPA;9740529ACE;SALDO Fatt.n. 42306225345  del 21/12/2023 NOVEMBRE 2023 CONSUMI SC. ELEM - PALESTRA - ASILO S.ANGELO;11/01/2024;1934;0;346;1;Spese correnti;3;Acquisto di beni e servizi;2;Acquisto di servizi;5;Utenze e canoni;6;Gas;15/01/2024
98;1;9999999;787,2;787,2;DOLOMITI ENERGIA SPA;9740529ACE;SALDO Fatt.n. 42306225339  del 21/12/2023 NOVEMBRE 2023 CONSUMI SC. ELEM - PALESTRA STIGLIANO;11/01/2024;1934;0;346;1;Spese correnti;3;Acquisto di beni e servizi;2;Acquisto di servizi;5;Utenze e canoni;6;Gas;15/01/2024
99;1;9999999;535;535;DOLOMITI ENERGIA SPA;9740529ACE;SALDO Fatt.n. 42306225343  del 21/12/2023 NOVEMBRE 2023 CONSUMI SC. ELEM - PALESTRA CASELLE;11/01/2024;1934;0;346;1;Spese correnti;3;Acquisto di beni e servizi;2;Acquisto di servizi;5;Utenze e canoni;6;Gas;15/01/2024
100;1;9999999;1.115,78;1.115,78;DOLOMITI ENERGIA SPA;9740529ACE;SALDO Fatt.n. 42306225351  del 21/12/2023 NOVEMBRE 2023 CONSUMI PALESTRA CALTANA;11/01/2024;1934;0;346;1;Spese correnti;3;Acquisto di beni e servizi;2;Acquisto di servizi;5;Utenze e canoni;6;Gas;15/01/2024
101;1;9999999;262,76;262,76;DOLOMITI ENERGIA SPA;9740529ACE;SALDO Fatt.n. 42306225350  del 21/12/2023 NOVEMBRE 2023 CONSUMI MAGAZZINO COMUNALE;11/01/2024;3534;0;347;1;Spese correnti;3;Acquisto di beni e servizi;2;Acquisto di servizi;5;Utenze e canoni;6;Gas;15/01/2024
102;1;9999999;589,45;589,45;DOLOMITI ENERGIA SPA;9740529ACE;SALDO Fatt.n. 42306225341  del 21/12/2023 NOVEMBRE 2023 CONSUMI VILLA FARSETTI;11/01/2024;4234;0;348;1;Spese correnti;3;Acquisto di beni e servizi;2;Acquisto di servizi;5;Utenze e canoni;6;Gas;15/01/2024
103;1;9999999;150;150;OMESSO NOMINATIVO NEL RISPETTO DELLA NORMATIVA SULLA PROTEZIONE DATI PERSONALI; ;GENNAIO 2024 AFFIDAMENTO FAMILIARE TEMPORANEO DI MINORE;15/01/2024;3757;50;680;1;Spese correnti;4;Trasferimenti correnti;2;Trasferimenti correnti a Famiglie;2;Interventi assistenziali;999;Altri assegni e sussidi assistenziali;17/01/2024
104;1;9999999;150;150;OMESSO NOMINATIVO NEL RISPETTO DELLA NORMATIVA SULLA PROTEZIONE DATI PERSONALI; ;DICEMBRE 2023 AFFIDO FAMILIARE;15/01/2024;3757;50;619;1;Spese correnti;4;Trasferimenti correnti;2;Trasferimenti correnti a Famiglie;2;Interventi assistenziali;999;Altri assegni e sussidi assistenziali;17/01/2024
105;1;9999999;150;150;OMESSO NOMINATIVO NEL RISPETTO DELLA NORMATIVA SULLA PROTEZIONE DATI PERSONALI; ;GENNAIO 2024 AFFIDO FAMILIARE;15/01/2024;3757;50;619;1;Spese correnti;4;Trasferimenti correnti;2;Trasferimenti correnti a Famiglie;2;Interventi assistenziali;999;Altri assegni e sussidi assistenziali;17/01/2024
106;1;9999999;3.434,30;3.434,30;SYSTEMDOC SRL;Z7E3DBBA9D;SALDO Fatt.n. 65-PA  del 27/12/2023 PIATTAFORMA DI MESSAGGISTICA ISTANTANEA DICO - RICARICA CREDITI ED ATTIVAZIONE NUOVI SERVIZI;15/01/2024;748;0;1045;1;Spese correnti;3;Acquisto di beni e servizi;2;Acquisto di servizi;19;Servizi informatici e di telecomunicazioni;1;Gestione e manutenzione applicazioni;17/01/2024
107;1;9999999;3.785,29;3.785,29;UNIFORMI ITALIANE S.R.L.;Z3E3D262AB;SALDO Fatt.n. 99/FE  del 28/12/2023 FORNITURA VESTIARIO INVERNALE STAGIONE 2023/2024 PER LA POLIZIA LOCALE;15/01/2024;1121;6;884;1;Spese correnti;3;Acquisto di beni e servizi;1;Acquisto di beni;2;Altri beni di consumo;4;Vestiario;17/01/2024
108;1;9999999;2.745,00;2.745,00;ABACO S.P.A.;ZC436FF08A;SALDO Fatt.n. 2024140000018  del 04/01/2024 SERVIZIO RISCOSSIONE CORRISPETTIVI TRASPORTO SCOLASTICO  E  REFEZIONE SCOLASTICA PER LE SCUOLE COMUNALI  PERIODO DAL 01-07-2023 AL 31-12-2023;15/01/2024;1348;0;603;1;Spese correnti;3;Acquisto di beni e servizi;2;Acquisto di servizi;19;Servizi informatici e di telecomunicazioni;1;Gestione e manutenzione applicazioni;17/01/2024
109;1;9999999;6.000,00;6.000,00;CHINELLATO CLAUDIO;Z0A360105E;SALDO Fatt.n. 246  del 15/12/2023 SERVIZIO DI ESPURGO - LAVAGGIO CAMERETTE STRADALI E TRATTI DI CONDUTTURE;15/01/2024;3538;0;589;1;Spese correnti;3;Acquisto di beni e servizi;2;Acquisto di servizi;9;Manutenzione ordinaria e riparazioni;8;Manutenzione ordinaria e riparazioni di beni immobili;17/01/2024
110;1;9999999;11.590,00;11.590,00;CI.TI.ESSE S.R.L.;Z323D961B1;SALDO Fatt.n. 1796/PA  del 20/12/2023 ACQUISTO SISTEMA DI LETTURA TARGHE DEI VEICOLI APPARATO MOBILE KPLATE-R PER LA POLIZIA LOCALE;15/01/2024;7465;0;1013;2;Spese in conto capitale;2;Investimenti fissi lordi e acquisto di terreni;1;Beni materiali;5;Attrezzature;999;Attrezzature n.a.c.;17/01/2024
111;1;9999999;8,44;8,44;BANCA MPS SPA; ;16520 COMUNE DI SANTA MARIA DI SALA CC 16520-COMMISSIONI DEL 04/01/24 (P. 2 -R. del 05/01/2024);15/01/2024;146;0;100;1;Spese correnti;3;Acquisto di beni e servizi;2;Acquisto di servizi;17;Servizi finanziari;999;Spese per servizi finanziari n.a.c.;17/01/2024
114;1;9999999;5.404,50;5.404,50;UNIONE GRATICOLATO GELSI SSDARL; ;CONTRIBUTO SPESE SOSTENUTE PER.GIUGNO 2022-OTTOBRE 2023 PER FORNITURE ACQUA LUCE E GAS IMP.SPORTIVI CALTANA E VETERNIGO;16/01/2024;1959;0;1107;1;Spese correnti;4;Trasferimenti correnti;4;Trasferimenti correnti a Istituzioni Sociali Private;1;Trasferimenti correnti a Istituzioni Sociali Private;1;Trasferimenti correnti a Istituzioni Sociali Private;18/01/2024
115;1;9999999;2.941,56;2.941,56;CITTA' METROPOLITANA DI VENEZIA;Z8037F72C2;CANONI - PROGETTO CON.ME - CITTA METROPOLITANA DI VENEZIA - SERVIZI APPLICATIVI E DI CONNETTIVITA;16/01/2024;748;0;883;1;Spese correnti;3;Acquisto di beni e servizi;2;Acquisto di servizi;19;Servizi informatici e di telecomunicazioni;999;Altri servizi informatici e di telecomunicazioni n.a.c.;18/01/2024
116;1;9999999;9.934,46;9.934,46;CITTA' METROPOLITANA DI VENEZIA;Z8037F72C2;SPESE PIATTAFORMA - PROGETTO CON.ME - CITTA METROPOLITANA DI VENEZIA - SERVIZI APPLICATIVI E DI CONNETTIVITA;16/01/2024;748;0;884;1;Spese correnti;3;Acquisto di beni e servizi;2;Acquisto di servizi;19;Servizi informatici e di telecomunicazioni;999;Altri servizi informatici e di telecomunicazioni n.a.c.;18/01/2024
117;1;9999999;3.000,00;3.000,00;PARROCCHIA DELLA  NATIVITA' B. VERGINE MARIA S.M.SALA; ;ANNO 2020 L.R. 20.8.1987 N. 44  DISCIPLINA DEL FONDO PER LE OPERE DI URBANIZZAZIONE: PROGRAMMA DEGLI INTERVENTI PER LASSEGNAZIONE DI CONTRIBUTI PER LE OPERE DI CULTO -;16/01/2024;8705;0;12;2;Spese in conto capitale;3;Contributi agli investimenti;4;Contributi agli investimenti a Istituzioni Sociali Private;1;Contributi agli investimenti a Istituzioni Sociali Private;1;Contributi agli investimenti a Istituzioni Sociali Private;18/01/2024
118;1;9999999;3.000,00;3.000,00;PARROCCHIA DI  SAN GIACOMO CASELLE; ;SALDO ANNO 2023 L.R. 20.8.1987 N. 44  DISCIPLINA DEL FONDO PER LE OPERE DI URBANIZZAZIONE: PROGRAMMA DEGLI INTERVENTI PER LASSEGNAZIONE DI CONTRIBUTI PER LE OPERE DI CULTO - ANNO 2023.;16/01/2024;8705;0;422;2;Spese in conto capitale;3;Contributi agli investimenti;4;Contributi agli investimenti a Istituzioni Sociali Private;1;Contributi agli investimenti a Istituzioni Sociali Private;1;Contributi agli investimenti a Istituzioni Sociali Private;18/01/2024
120;1;9999999;1.495,71;1.495,71;BORTOLATO SAS DI BORTOLATO ONORINO & C.;Z4339B82E1;SALDO Fatt.n. 000008/PA  del 21/12/2023 FORNITURA MATERIALE PER VERDE E PARCHI PUBBLICI;16/01/2024;521;0;85;1;Spese correnti;3;Acquisto di beni e servizi;1;Acquisto di beni;2;Altri beni di consumo;999;Altri beni e materiali di consumo n.a.c.;18/01/2024
121;1;9999999;1.057,74;1.057,74;BORTOLATO SAS DI BORTOLATO ONORINO & C.;Z253D64CD5;SALDO Fatt.n. 000009/PA  del 22/12/2023 SALE SALGEMMA INDUST. STRADALE;16/01/2024;3538;0;980;1;Spese correnti;3;Acquisto di beni e servizi;2;Acquisto di servizi;9;Manutenzione ordinaria e riparazioni;8;Manutenzione ordinaria e riparazioni di beni immobili;18/01/2024
122;1;9999999;48,26;48,26;ABACO S.P.A.;5325258DE8;SALDO Fatt.n. 2024140000319  del 10/01/2024 AGGIO RISCOSSIONE COATTIVA ICI IMU LOTTO 6 RENDICONTO DICEMBRE 2023 CIG. 5325258DE8;17/01/2024;332;0;121;1;Spese correnti;3;Acquisto di beni e servizi;2;Acquisto di servizi;3;Aggi di riscossione;999;Altri aggi di riscossione n.a.c.;22/01/2024
123;1;9999999;572,07;572,07;ABACO S.P.A.;766214493F;SALDO Fatt.n. 2024140000317  del 10/01/2024 AGGIO SU RISCOSSIONI - ICI IMU T ASI LOTTO 10-11-12-13-14-15-16-17-18- 19-20DET . 788-19 RENDICONTO DELLA GESTIONE DAL 01/12/2023 A 31/12/2023 CIG. 766214493F;17/01/2024;332;0;122;1;Spese correnti;3;Acquisto di beni e servizi;2;Acquisto di servizi;3;Aggi di riscossione;999;Altri aggi di riscossione n.a.c.;22/01/2024
124;1;9999999;9,03;334,23;ABACO S.P.A.;766214493F;SALDO Fatt.n. 2024120000278  del 09/01/2024 AGGIO SU RISCOSSIONI OCCUPAZIONE SUOLO PUBBLICO CUP RENDICONTO DELLA GESTIONE DAL 01/12/2023 A 31/12/2023 CIG. 766214493F;17/01/2024;332;0;1228;1;Spese correnti;3;Acquisto di beni e servizi;2;Acquisto di servizi;3;Aggi di riscossione;999;Altri aggi di riscossione n.a.c.;22/01/2024
124;2;9999999;325,2;334,23;ABACO S.P.A.;766214493F;SALDO Fatt.n. 2024120000277  del 09/01/2024 AGGIO SU RISCOSSIONI ESPOSIZIONI PUBBLICITARIE CUP RENDICONTO DELLA GESTIONE DAL 01/12/2023 A 31/12/2023 CIG 766214493F;17/01/2024;332;0;1228;1;Spese correnti;3;Acquisto di beni e servizi;2;Acquisto di servizi;3;Aggi di riscossione;999;Altri aggi di riscossione n.a.c.;22/01/2024
125;1;9999999;95,21;95,21;ABACO S.P.A.;766214493F;SALDO Fatt.n. 2024140000318  del 10/01/2024 AGGIO SU RISCOSSIONI CSD LOTTO 2 RENDICONTO DICEMBRE 2023 CIG. 766214493F;17/01/2024;1132;0;30;1;Spese correnti;3;Acquisto di beni e servizi;2;Acquisto di servizi;3;Aggi di riscossione;999;Altri aggi di riscossione n.a.c.;22/01/2024
126;1;9999999;550;550;BONAVENTURA EXPRESS SRL;Z013D649FE;SALDO Fatt.n. 559PA  del 20/12/2023 USCITE DIDATTICHE - PERIODO DICEMBRE 2023;17/01/2024;1344;0;984;1;Spese correnti;3;Acquisto di beni e servizi;2;Acquisto di servizi;15;Contratti di servizio pubblico;2;Contratti di servizio di trasporto scolastico;22/01/2024
127;1;9999999;13.092,09;13.092,09;BONAVENTURA EXPRESS SRL;8704892021;SALDO Fatt.n. 580PA  del 27/12/2023 TRASPORTO SCOLASTICO DICEMBRE 2023;18/01/2024;1344;0;388;1;Spese correnti;3;Acquisto di beni e servizi;2;Acquisto di servizi;15;Contratti di servizio pubblico;2;Contratti di servizio di trasporto scolastico;22/01/2024
128;1;9999999;37;12.767,50;DIVERSI - DIPENDENTI COMUNALI; ;STIPENDI MESE DI GENNAIO 24;18/01/2024;30;99;0;1;Spese correnti;3;Acquisto di beni e servizi;2;Acquisto di servizi;1;Organi e incarichi istituzionali dell'amministrazione;1;Organi istituzionali dell'amministrazione - Indennità;25/01/2024
128;2;9999999;12.730,50;12.767,50;DIVERSI-AMMINISTRATORI COM.LI; ;STIPENDI MESE DI GENNAIO 24;18/01/2024;30;99;0;1;Spese correnti;3;Acquisto di beni e servizi;2;Acquisto di servizi;1;Organi e incarichi istituzionali dell'amministrazione;1;Organi istituzionali dell'amministrazione - Indennità;25/01/2024
197;1;9999999;1.600,00;1.600,00;TENDA DESIGNE SNC;Z663D54BD2;ACCONTO Fatt.n. 236  del 29/12/2023 MANUTENZIONE ORDINARIA E SOSTITUZIONE TENDAGGI DANNEGGIATI SCUOLA ELEMENTARE CASELLE;19/01/2024;521;0;996;1;Spese correnti;3;Acquisto di beni e servizi;1;Acquisto di beni;2;Altri beni di consumo;999;Altri beni e materiali di consumo n.a.c.;23/01/2024
198;1;9999999;832,02;832,02;C.E.I.F. DI BESSEGA DANIELE;Z2A39B329B;SALDO Fatt.n. 1-15  del 29/12/2023 MATERIALE VARIO PER MANUTENZIONI;19/01/2024;522;0;81;1;Spese correnti;3;Acquisto di beni e servizi;1;Acquisto di beni;2;Altri beni di consumo;999;Altri beni e materiali di consumo n.a.c.;23/01/2024
199;1;9999999;2.000,00;2.000,00;TENDA DESIGNE SNC;Z663D54BD2;ACCONTO Fatt.n. 236  del 29/12/2023 MANUTENZIONE ORDINARIA E SOSTITUZIONE TENDAGGI DANNEGGIATI SCUOLA ELEMENTARE CASELLE;19/01/2024;522;0;997;1;Spese correnti;3;Acquisto di beni e servizi;1;Acquisto di beni;2;Altri beni di consumo;999;Altri beni e materiali di consumo n.a.c.;23/01/2024
200;1;9999999;140,3;140,3;VEDETTA 2 MONDIALPOL SPA;ZD032B120B;SALDO Fatt.n. V9-398  del 08/01/2024 DICEMBRE  2023 SERVIZIO DI VIGILANZA MAGAZZINO -PROTEZIONE CIVILE V.LE FERRARIS - VILLA FARSETTI;19/01/2024;548;0;688;1;Spese correnti;3;Acquisto di beni e servizi;2;Acquisto di servizi;9;Manutenzione ordinaria e riparazioni;8;Manutenzione ordinaria e riparazioni di beni immobili;23/01/2024
201;1;9999999;2.378,00;2.378,00;TENDA DESIGNE SNC;Z663D54BD2;SALDO Fatt.n. 236  del 29/12/2023 MANUTENZIONE ORDINARIA E SOSTITUZIONE TENDAGGI DANNEGGIATI SCUOLA ELEMENTARE CASELLE;19/01/2024;1338;0;998;1;Spese correnti;3;Acquisto di beni e servizi;2;Acquisto di servizi;9;Manutenzione ordinaria e riparazioni;5;Manutenzione ordinaria e riparazioni di attrezzature;23/01/2024
202;1;9999999;40,72;40,72;COMUNE DI MARTELLAGO; ;PROT.29135/2023 RIMBORSO SPESE DI NOTIFICA (n.registro 716-717-718-719/2019);19/01/2024;146;0;48;1;Spese correnti;3;Acquisto di beni e servizi;2;Acquisto di servizi;17;Servizi finanziari;999;Spese per servizi finanziari n.a.c.;23/01/2024
203;1;9999999;52,92;52,92;COMUNE DI PADOVA; ;PROT.883/2024 RIMBORSO SPESE DI NOTIFICA (VS.N.REG.9893-9895-9898-9901-11672-673-674-675-676);19/01/2024;146;0;48;1;Spese correnti;3;Acquisto di beni e servizi;2;Acquisto di servizi;17;Servizi finanziari;999;Spese per servizi finanziari n.a.c.;23/01/2024
204;1;9999999;5,88;5,88;COMUNE DI BASSANO DEL GRAPPA; ;RIMBORSO SPESE DI NOTIFICA P. N.317/16;19/01/2024;146;0;48;1;Spese correnti;3;Acquisto di beni e servizi;2;Acquisto di servizi;17;Servizi finanziari;999;Spese per servizi finanziari n.a.c.;23/01/2024
205;1;9999999;573,4;573,4;M.E.I. DI MAISTRELLO ELVIS;Z1E39C3819;SALDO Fatt.n. 56-FE  del 29/12/2023 MANUTENZIONE PORTE MOTORIZZATE SCORREVOLI SEDE MUNICIPALE;23/01/2024;548;0;339;1;Spese correnti;3;Acquisto di beni e servizi;2;Acquisto di servizi;9;Manutenzione ordinaria e riparazioni;4;Manutenzione ordinaria e riparazioni di impianti e macchinari;26/01/2024
206;1;9999999;1.573,80;1.573,80;FORNITECNICA S.R.L.;ZA934CBAAD;SALDO Fatt.n. 000002PA24  del 08/01/2024 COSTO COPIA PERIODO GENNAIO  MARZO 2024;23/01/2024;748;0;62;1;Spese correnti;3;Acquisto di beni e servizi;2;Acquisto di servizi;19;Servizi informatici e di telecomunicazioni;9;Servizi per le postazioni di lavoro e relativa manutenzione;26/01/2024
207;1;9999999;381,47;381,47;CANON ITALIA S.P.A.;Z03356BDFB;SALDO Fatt.n. 2407900007941  del 09/01/2024 ADESIONE CONVENZIONE CONSIP MULTIFUNZIONE A NOLEGGIO - PERIODO DAL 1 OTTOBRE AL 31 DICEMBRE 2023;23/01/2024;748;0;227;1;Spese correnti;3;Acquisto di beni e servizi;2;Acquisto di servizi;19;Servizi informatici e di telecomunicazioni;9;Servizi per le postazioni di lavoro e relativa manutenzione;26/01/2024
208;1;9999999;1.169,36;1.169,36;GOTTARDO DINO & C.SNC;Z573BAB73F;ACCONTO Fatt.n. 84  del 31/12/2023 INTERVENTI DI MANUTENZIONE ORDINARIA PER OPERE DA FABBRO NEI FABBRICATI COMUNALI;23/01/2024;1338;0;573;1;Spese correnti;3;Acquisto di beni e servizi;2;Acquisto di servizi;9;Manutenzione ordinaria e riparazioni;8;Manutenzione ordinaria e riparazioni di beni immobili;26/01/2024
209;1;9999999;330;330;FALEGNAMERIA DAL CORSO SNC;ZD93BA84FC;ACCONTO Fatt.n. 316  del 29/12/2023 ESECUZIONE INTERVENTI DI MANUTENZIONE ORDINARIA PER OPERE DI FALEGNAMERIA SU FABBRICATI COMUNALI;23/01/2024;1838;0;563;1;Spese correnti;3;Acquisto di beni e servizi;2;Acquisto di servizi;9;Manutenzione ordinaria e riparazioni;11;Manutenzione ordinaria e riparazioni di altri beni materiali;26/01/2024
210;1;9999999;1.500,00;1.500,00;FALEGNAMERIA DAL CORSO SNC;ZD93BA84FC;SALDO Fatt.n. 316  del 29/12/2023 ESECUZIONE INTERVENTI DI MANUTENZIONE ORDINARIA PER OPERE DI FALEGNAMERIA SU FABBRICATI COMUNALI;23/01/2024;1938;0;564;1;Spese correnti;3;Acquisto di beni e servizi;2;Acquisto di servizi;9;Manutenzione ordinaria e riparazioni;11;Manutenzione ordinaria e riparazioni di altri beni materiali;26/01/2024
211;1;9999999;1.500,00;1.500,00;GOTTARDO DINO & C.SNC;Z573BAB73F;SALDO Fatt.n. 84  del 31/12/2023 INTERVENTI DI MANUTENZIONE ORDINARIA PER OPERE DA FABBRO NEI FABBRICATI COMUNALI;23/01/2024;1938;0;575;1;Spese correnti;3;Acquisto di beni e servizi;2;Acquisto di servizi;9;Manutenzione ordinaria e riparazioni;8;Manutenzione ordinaria e riparazioni di beni immobili;26/01/2024
212;1;9999999;1.793,25;1.793,25;DISMA SAS DI ANGELO RIGO & C.;ZBB3AB6AC1;SALDO Fatt.n. 137/2023  del 30/12/2023 SERVIZIO DI SUPPORTO ATTIVITA DI BIBLIOTECA DICEMBRE 2023;23/01/2024;2049;0;383;1;Spese correnti;3;Acquisto di beni e servizi;2;Acquisto di servizi;99;Altri servizi;999;Altri servizi diversi n.a.c.;26/01/2024
213;1;9999999;44,01;44,01;MUFFATO CLAUDIO;Z3339B74C3;SALDO Fatt.n. 382  del 29/12/2023 SISTEMAZIONE AVVIAMENTO TOSASIEPI STIHL;23/01/2024;2538;0;83;1;Spese correnti;3;Acquisto di beni e servizi;2;Acquisto di servizi;9;Manutenzione ordinaria e riparazioni;5;Manutenzione ordinaria e riparazioni di attrezzature;26/01/2024
214;1;9999999;704,79;704,79;KUWAIT PETROLEUM ITALIA SPA;Z543524413;SALDO Fatt.n. PJ07768790  del 31/12/2023 FORNITURA CARBURANTE MESE DI DICEMBRE 2023;23/01/2024;3521;0;184;1;Spese correnti;3;Acquisto di beni e servizi;1;Acquisto di beni;2;Altri beni di consumo;999;Altri beni e materiali di consumo n.a.c.;26/01/2024
215;1;9999999;39,2;39,2;EPIU' SRL - COSTRUIRE INSIEME;Z7939B3159;SALDO Fatt.n. 35300  del 31/12/2023 FORN.MAT.EDILE PER MANUTENZIONE;23/01/2024;3538;0;80;1;Spese correnti;3;Acquisto di beni e servizi;2;Acquisto di servizi;9;Manutenzione ordinaria e riparazioni;8;Manutenzione ordinaria e riparazioni di beni immobili;26/01/2024
216;1;9999999;556,4;556,4;OMESSO NOMINATIVO NEL RISPETTO DELLA NORMATIVA SULLA PROTEZIONE DATI PERSONALI;Z8C3C05B0E;SALDO Fatt.n. 00328/T/317290/23  del 29/12/2023 PROGETTO PERSONALIZZATO DI INTERVENTO SOCIO ASSISTENZIALE A SOSTEGNO DI MINORE MESE DI DICEMBRE 2023;23/01/2024;3757;0;627;1;Spese correnti;4;Trasferimenti correnti;2;Trasferimenti correnti a Famiglie;5;Altri trasferimenti a famiglie;999;Altri trasferimenti a famiglie n.a.c.;26/01/2024
217;1;9999999;1.974,62;1.974,62;FASTWEB SPA;5133642F61;SALDO Fatt.n. PAE0051600  del 31/12/2023 CANONE CONNETIVITA CITTA METROPOLITANA PERIODO DAL 1 NOVEMBREAL 31 DICEMBRE 2023;23/01/2024;134;32;33;1;Spese correnti;3;Acquisto di beni e servizi;2;Acquisto di servizi;5;Utenze e canoni;999;Utenze e canoni per altri servizi n.a.c.;26/01/2024
218;1;9999999;388,26;388,26;COOP.SOCIALE LIBERTA' ONLUS;Z673AAF407;ACCONTO Fatt.n. 1326  del 31/12/2023 ERVIZIO DI PULIZIA E SANIFICAZIONE UFFICI COMUNALI DICEMBRE 2023;23/01/2024;142;0;384;1;Spese correnti;3;Acquisto di beni e servizi;2;Acquisto di servizi;13;Servizi ausiliari per il funzionamento dell'ente;2;Servizi di pulizia e lavanderia;26/01/2024
219;1;9999999;3.125,13;3.125,13;COOP.SOCIALE LIBERTA' ONLUS;Z673AAF407;SALDO Fatt.n. 1326  del 31/12/2023 ERVIZIO DI PULIZIA E SANIFICAZIONE UFFICI COMUNALI DICEMBRE 2023;23/01/2024;142;0;826;1;Spese correnti;3;Acquisto di beni e servizi;2;Acquisto di servizi;13;Servizi ausiliari per il funzionamento dell'ente;2;Servizi di pulizia e lavanderia;26/01/2024
220;1;9999999;11,55;11,55;NEXI PAYMENTS SPA;Z122EED501;ACCONTO Fatt.n. 2351746  del 10/01/2024 CANONE POS - COMPETENZE OTTOBRE NOVEMBRE DICEMBRE 23 11269357Linea Diretta - Servizio Assistenza Nexi Payments SpA 02345448 Codice Personale didentificazione 046963476;23/01/2024;146;0;711;1;Spese correnti;3;Acquisto di beni e servizi;2;Acquisto di servizi;17;Servizi finanziari;999;Spese per servizi finanziari n.a.c.;26/01/2024
221;1;9999999;4.394,92;4.394,92;OMESSO NOMINATIVO NEL RISPETTO DELLA NORMATIVA SULLA PROTEZIONE DATI PERSONALI; ;INT.RETTA giugno luglio 2023;23/01/2024;4044;0;1117;1;Spese correnti;3;Acquisto di beni e servizi;2;Acquisto di servizi;15;Contratti di servizio pubblico;8;Contratti di servizio di assistenza sociale residenziale e semiresidenziale;26/01/2024
222;1;9999999;3.416,00;3.416,00;DPO ITALIA SRL;Z53385B962;SALDO Fatt.n. 20240003  del 12/01/2024 AFFIDAMENTO SERVIZIO RDP ANNO 2024 PER PRESTAZIONI PROFESSIONALI SPECIALISTICHE;23/01/2024;740;0;923;1;Spese correnti;3;Acquisto di beni e servizi;2;Acquisto di servizi;11;Prestazioni professionali e specialistiche;999;Altre prestazioni professionali e specialistiche n.a.c.;26/01/2024
223;1;9999999;2.318,00;2.318,00;REGGIANI CONSULTING SRL;ZD3385B991;SALDO Fatt.n. 20240150  del 11/01/2024 AFFIDAMENTO SERVIZI PROFESSIONALI CONFORMITA TRATTAMENTO DATI;23/01/2024;740;0;942;1;Spese correnti;3;Acquisto di beni e servizi;2;Acquisto di servizi;11;Prestazioni professionali e specialistiche;999;Altre prestazioni professionali e specialistiche n.a.c.;26/01/2024
224;1;9999999;732;732;REGGIANI CONSULTING SRL;Z013BA6151;SALDO Fatt.n. 20240170  del 12/01/2024 PIATTAFORMA PER LA GESTIONE DELLE SEGNALAZIONI WHISTLEBLOWING ANNO 2024;23/01/2024;748;0;558;1;Spese correnti;3;Acquisto di beni e servizi;2;Acquisto di servizi;19;Servizi informatici e di telecomunicazioni;1;Gestione e manutenzione applicazioni;26/01/2024
225;1;9999999;2.000,00;2.000,00;REGGIANI CONSULTING SRL;Z083677327;SALDO Fatt.n. 20240149  del 11/01/2024 FORMAZIONE CONTINUA AL TRATTAMENTO DATI ANNO 2024;23/01/2024;833;0;513;1;Spese correnti;3;Acquisto di beni e servizi;2;Acquisto di servizi;4;Acquisto di servizi per formazione e addestramento del personale dell'ente;4;Acquisto di servizi per formazione obbligatoria;26/01/2024
226;1;9999999;590;590;DPO ITALIA SRL;ZB2385B97F;SALDO Fatt.n. 20240020  del 15/01/2024 AFFIDAMENTO SERVIZIO RDP ANNO 2024 PER SERVIZI DI FORMAZIONE E ADDESTRAMENTO;23/01/2024;833;0;924;1;Spese correnti;3;Acquisto di beni e servizi;2;Acquisto di servizi;4;Acquisto di servizi per formazione e addestramento del personale dell'ente;4;Acquisto di servizi per formazione obbligatoria;26/01/2024
227;1;9999999;1.415,36;2.878,14;ANCI DIGITALE SPA;ZD33DBBAF9;SALDO Fatt.n. 530  del 17/01/2024 CANONE ACI PRA ANNO 2024;23/01/2024;1134;0;1033;1;Spese correnti;3;Acquisto di beni e servizi;2;Acquisto di servizi;5;Utenze e canoni;3;Accesso a banche dati e a pubblicazioni on line;26/01/2024
227;2;9999999;1.462,78;2.878,14;ANCI DIGITALE SPA;ZD33DBBAF9;SALDO Fatt.n. 531  del 17/01/2024 CANONI SERVIZI BASE ANNO 2024;23/01/2024;1134;0;1033;1;Spese correnti;3;Acquisto di beni e servizi;2;Acquisto di servizi;5;Utenze e canoni;3;Accesso a banche dati e a pubblicazioni on line;26/01/2024
228;1;9999999;3.513,60;3.513,60;NOISICURI PROJECT S.R.L.;Z1439AFD9D;SALDO Fatt.n. 1/618  del 30/12/2023 SALDO SERVIZI DI SUPPORTO ALLA POLIZIA LOCALE PER CONTROLLO DELLA VELOCITA E RILEVAZIONE INFRAZIONI STRADALI - N. 4 SERVIZI;23/01/2024;1149;0;645;1;Spese correnti;3;Acquisto di beni e servizi;2;Acquisto di servizi;99;Altri servizi;999;Altri servizi diversi n.a.c.;26/01/2024
229;1;9999999;1.499,11;1.499,11;FASTWEB SPA;5133642F61;SALDO Fatt.n. PAE0051599  del 31/12/2023 CANONE CONNETIVITA SCUOLE PERIODO DAL 1 NOVEMBRE AL 31 DICEMBRE 2023;23/01/2024;1334;0;46;1;Spese correnti;3;Acquisto di beni e servizi;2;Acquisto di servizi;5;Utenze e canoni;1;Telefonia fissa;26/01/2024
230;1;9999999;1.692,14;1.692,14;AGRINOVA SNC DI GARBINETTO MATTEO E GIOVANNI;Z823A7AC2E;SALDO Fatt.n. PA/2  del 31/12/2023 SFALCIO ERBA VILLA FARSETTI;23/01/2024;2549;0;647;1;Spese correnti;3;Acquisto di beni e servizi;2;Acquisto di servizi;99;Altri servizi;9;Acquisto di sevizi per verde e arredo urbano;26/01/2024
231;1;9999999;52,5;52,5;NEXI PAYMENTS SPA;Z122EED501;SALDO Fatt.n. 2351746  del 10/01/2024 CANONE POS - COMPETENZE OTTOBRE NOVEMBRE DICEMBRE 23 11269357Linea Diretta - Servizio Assistenza Nexi Payments SpA 02345448 Codice Personale didentificazione 046963476;23/01/2024;146;0;711;1;Spese correnti;3;Acquisto di beni e servizi;2;Acquisto di servizi;17;Servizi finanziari;999;Spese per servizi finanziari n.a.c.;08/02/2024
232;1;9999999;12.186,36;51.188,76;SOC. SOCIOCULTURALE COOP. SOCIALE;9091941B0E;SALDO Fatt.n. 190 PAS  del 16/01/2024 MESE DI GIUGNO 2023 - ASSISTENZA DOMICILIARE E TRASPORTO;23/01/2024;3944;0;141;1;Spese correnti;3;Acquisto di beni e servizi;2;Acquisto di servizi;15;Contratti di servizio pubblico;9;Contratti di servizio di assistenza sociale domiciliare;26/01/2024
232;2;9999999;12.274,24;51.188,76;SOC. SOCIOCULTURALE COOP. SOCIALE;9091941B0E;SALDO Fatt.n. 191 PAS  del 16/01/2024 MESE DI LUGLIO.  2023 - ASSISTENZA DOMICILIARE E TRASPORTO;23/01/2024;3944;0;141;1;Spese correnti;3;Acquisto di beni e servizi;2;Acquisto di servizi;15;Contratti di servizio pubblico;9;Contratti di servizio di assistenza sociale domiciliare;26/01/2024
232;3;9999999;13.262,14;51.188,76;SOC. SOCIOCULTURALE COOP. SOCIALE;9091941B0E;SALDO Fatt.n. 193 PAS  del 16/01/2024 MESE DI AGOSTO  2023 - ASSISTENZA DOMICILIARE E TRASPORTO;23/01/2024;3944;0;141;1;Spese correnti;3;Acquisto di beni e servizi;2;Acquisto di servizi;15;Contratti di servizio pubblico;9;Contratti di servizio di assistenza sociale domiciliare;26/01/2024
232;4;9999999;13.466,02;51.188,76;SOC. SOCIOCULTURALE COOP. SOCIALE;9091941B0E;SALDO Fatt.n. 194 PAS  del 16/01/2024 MESE DI SETTEMBRE  2023 - ASSISTENZA DOMICILIARE E TRASPORTO;23/01/2024;3944;0;141;1;Spese correnti;3;Acquisto di beni e servizi;2;Acquisto di servizi;15;Contratti di servizio pubblico;9;Contratti di servizio di assistenza sociale domiciliare;26/01/2024
233;1;9999999;2.338,34;2.338,34;ARTEA  SNC DI LION & SALVIATO;90182921FD;SALDO Fatt.n. 29-2023/PA  del 30/12/2023 OPERAZIONI EFFETTUATE NEI CIMITERI DEL COMUNE DI SANTA MARIA DI SALA NEL MESE DI DICEMBRE 2023;23/01/2024;4438;0;1152;1;Spese correnti;3;Acquisto di beni e servizi;2;Acquisto di servizi;9;Manutenzione ordinaria e riparazioni;8;Manutenzione ordinaria e riparazioni di beni immobili;26/01/2024
234;1;9999999;3.183,30;3.183,30;ARTEA  SNC DI LION & SALVIATO;90182921FD;SALDO Fatt.n. 30-2023/PA  del 30/12/2023 OPERAZIONI DI ESTUMULAZIONE ESEGUITE NEL CIMITERO DI CALTANA;23/01/2024;4438;0;1152;1;Spese correnti;3;Acquisto di beni e servizi;2;Acquisto di servizi;9;Manutenzione ordinaria e riparazioni;8;Manutenzione ordinaria e riparazioni di beni immobili;26/01/2024
236;1;9999999;162,75;162,75;OMESSO NOMINATIVO NEL RISPETTO DELLA NORMATIVA SULLA PROTEZIONE DATI PERSONALI; ;DICEMBRE 2023 PROGETTO PERSONALIZZATO MINORE;23/01/2024;4157;0;1017;1;Spese correnti;4;Trasferimenti correnti;2;Trasferimenti correnti a Famiglie;2;Interventi assistenziali;999;Altri assegni e sussidi assistenziali;26/01/2024
237;1;9999999;1.339,73;1.339,73;COMUNE DI MIRA; ;PRIMA TRANCHE  CONVENZIONE EX ART. 30 D.LGS 267/2000 PER LA GESTIONE ASSOCIATA DELLE MISURE COMUNITARIE, NAZIONALI E REGIONALI PER LINCLUSIONE SOCIALE DELLAMBITO TERRIOTRIALE SOCIALE VEN13, DI CUI ALLA D.C.C. N. 60 DEL 25/10/2023.;23/01/2024;3851;0;1031;1;Spese correnti;4;Trasferimenti correnti;1;Trasferimenti correnti a Amministrazioni Pubbliche;2;Trasferimenti correnti a Amministrazioni Locali;3;Trasferimenti correnti a Comuni;26/01/2024
238;1;9999999;3.000,00;3.000,00;CONFCOMMERCIO DEL MIRANESE; ;CONTRIBUTO PER EVENTO MERCATINO DI NATALE IN VILLA 2023;23/01/2024;4758;0;1026;1;Spese correnti;4;Trasferimenti correnti;3;Trasferimenti correnti a Imprese;99;Trasferimenti correnti a altre imprese;999;Trasferimenti correnti a altre imprese;26/01/2024
239;1;9999999;21,97;21,97;SONEPAR ITALIA  SPA;ZB939BAE73;SALDO Fatt.n. 0031373227  del 20/12/2023 MATERIALE ELETTRICO PER MANUTENZIONI;25/01/2024;521;0;1060;1;Spese correnti;3;Acquisto di beni e servizi;1;Acquisto di beni;2;Altri beni di consumo;999;Altri beni e materiali di consumo n.a.c.;31/01/2024
240;1;9999999;91,01;196,71;SONEPAR ITALIA  SPA;ZB939BAE73;SALDO Fatt.n. 0031373229  del 20/12/2023 MATERIALE ELETTRICO PER MANUTENZIONI;25/01/2024;3538;0;679;1;Spese correnti;3;Acquisto di beni e servizi;2;Acquisto di servizi;9;Manutenzione ordinaria e riparazioni;4;Manutenzione ordinaria e riparazioni di impianti e macchinari;31/01/2024
240;2;9999999;105,7;196,71;SONEPAR ITALIA  SPA;ZB939BAE73;SALDO Fatt.n. 0031373228  del 20/12/2023 MATERIALE ELETTRICO PER MANUTENZIONI;25/01/2024;3538;0;679;1;Spese correnti;3;Acquisto di beni e servizi;2;Acquisto di servizi;9;Manutenzione ordinaria e riparazioni;4;Manutenzione ordinaria e riparazioni di impianti e macchinari;31/01/2024
241;1;9999999;28,42;28,42;MCTC MINISTERO INFRASTRUTTURE TRASPORTI; ;QUOTA IV TRIMESTRE 2023;29/01/2024;1134;0;36;1;Spese correnti;3;Acquisto di beni e servizi;2;Acquisto di servizi;5;Utenze e canoni;3;Accesso a banche dati e a pubblicazioni on line;30/01/2024
242;1;9999999;1.333,73;1.333,73;MCTC MINISTERO INFRASTRUTTURE TRASPORTI; ;CANONE ANNO 2024 - UTENZA DPR 634/94 CAPO XV CAPITOLO 2454 ART.5;29/01/2024;1134;0;32;1;Spese correnti;3;Acquisto di beni e servizi;2;Acquisto di servizi;5;Utenze e canoni;3;Accesso a banche dati e a pubblicazioni on line;30/01/2024
243;1;9999999;1.000,00;1.000,00;A.N.U.T.E.L.-ASS.NAZ.UFF.TRIBUTI ENTI L.; ;QUOTA ANNO 2024 ADESIONE AD ANUTEL - ASSOCIAZIONE NAZIONALE UFFICI TRIBUTI ENTI LOCALI -;30/01/2024;349;0;42;1;Spese correnti;3;Acquisto di beni e servizi;2;Acquisto di servizi;99;Altri servizi;999;Altri servizi diversi n.a.c.;02/02/2024
244;1;9999999;958,59;958,59;ANCI VENETO; ;QUOTA ASSOCIATIVA COMPLETA ANNO 2024;30/01/2024;49;0;33;1;Spese correnti;3;Acquisto di beni e servizi;2;Acquisto di servizi;99;Altri servizi;3;Quote di associazioni;02/02/2024
245;1;9999999;631,27;631,27;ANCI VENETO; ;QUOTA ASSOCIATIVA COMPLETA ANNO 2024;30/01/2024;833;0;34;1;Spese correnti;3;Acquisto di beni e servizi;2;Acquisto di servizi;4;Acquisto di servizi per formazione e addestramento del personale dell'ente;999;Acquisto di servizi per altre spese per formazione e addestramento n.a.c.;02/02/2024
246;1;9999999;1.312,00;19.518,41;DUSSMANN SERVICE SRL;90957312AC;SALDO Fatt.n. 32363844  del 31/12/2023 DICEMBRE 2023 - PASTI SCUOLA MATERNA S. ANGELO BAMBINI E INSEGNANTI;30/01/2024;1344;0;149;1;Spese correnti;3;Acquisto di beni e servizi;2;Acquisto di servizi;15;Contratti di servizio pubblico;6;Contratti di servizio per le mense scolastiche;02/02/2024
246;2;9999999;18.206,41;19.518,41;DUSSMANN SERVICE SRL;90957312AC;SALDO Fatt.n. 32363845  del 31/12/2023 DICEMBRE 2023 - PASTI SCUOLE ELEMENTARI BAMBINI E INSEGNANTI;30/01/2024;1344;0;149;1;Spese correnti;3;Acquisto di beni e servizi;2;Acquisto di servizi;15;Contratti di servizio pubblico;6;Contratti di servizio per le mense scolastiche;02/02/2024
247;1;9999999;1.163,72;1.163,72;ENERGIA PULITA SRL;Z893D4E28A;SALDO Fatt.n. GN00035028/2024  del 22/01/2024 SERVIZIO DI FORNITURA GAS NATURALE 1 NOVEMBRE-31 DICEMBRE 2023 -  IMPIANTO SPORTIVO VETERNIGO;30/01/2024;1934;0;947;1;Spese correnti;3;Acquisto di beni e servizi;2;Acquisto di servizi;5;Utenze e canoni;6;Gas;02/02/2024
248;1;9999999;2;2;ENERGIA PULITA SRL;Z893D4E28A;LIQUIDAZIONE FATTURA GN00035028/2024 ditta ENERGIA PULITA SRL - NOVEMBRE DICEMBRE 2023;30/01/2024;1934;0;947;1;Spese correnti;3;Acquisto di beni e servizi;2;Acquisto di servizi;5;Utenze e canoni;6;Gas;02/02/2024
249;1;9999999;2;2;ENERGIA PULITA SRL;Z893D4E28A;LIQUIDAZIONE COMMISSIONI SU FATTURA 371711/04-2023 ditta ENERGIA PULITA SRL;30/01/2024;1934;0;947;1;Spese correnti;3;Acquisto di beni e servizi;2;Acquisto di servizi;5;Utenze e canoni;6;Gas;02/02/2024
250;1;9999999;17.051,37;17.051,37;AZIENDA ULSS N. 3 SERENISSIMA; ;DM 24/08/2023 FONDO ASSISTENZA ALUNNI CON DISABILITA A.S. 2023/2024;30/01/2024;1351;0;1086;1;Spese correnti;4;Trasferimenti correnti;1;Trasferimenti correnti a Amministrazioni Pubbliche;2;Trasferimenti correnti a Amministrazioni Locali;20;Trasferimenti correnti a Aziende sanitarie locali  a titolo di finanziamento del servizio sanitario nazionale;02/02/2024
251;1;9999999;150;150;OMESSO NOMINATIVO NEL RISPETTO DELLA NORMATIVA SULLA PROTEZIONE DATI PERSONALI; ;FEBBRAIO 2024 AFFIDAMENTO FAMILIARE;01/02/2024;3757;50;619;1;Spese correnti;4;Trasferimenti correnti;2;Trasferimenti correnti a Famiglie;2;Interventi assistenziali;999;Altri assegni e sussidi assistenziali;05/02/2024
252;1;9999999;1.318,95;1.318,95;OMESSO NOMINATIVO NEL RISPETTO DELLA NORMATIVA SULLA PROTEZIONE DATI PERSONALI;Z4F378F562;SALDO Fatt.n. PA0000001  del 16/01/2024 FORNITURA PACCHETTI DI REINTEGRO PER LE CASSETTE PRONTO SOCCORSO PRESENTI NEI FABBRICATI E MEZZI COMUNALI;01/02/2024;1338;0;796;1;Spese correnti;3;Acquisto di beni e servizi;2;Acquisto di servizi;9;Manutenzione ordinaria e riparazioni;11;Manutenzione ordinaria e riparazioni di altri beni materiali;05/02/2024
253;1;9999999;70,3;70,3;ENILIVE SPA;Z063967AC5;ACCONTO Fatt.n. 30458773  del 31/12/2023;01/02/2024;521;0;949;1;Spese correnti;3;Acquisto di beni e servizi;1;Acquisto di beni;2;Altri beni di consumo;2;Carburanti, combustibili e lubrificanti;02/02/2024
254;1;9999999;10,41;10,41;ENILIVE SPA;Z063967AC5;SALDO Fatt.n. 30458773  del 31/12/2023;01/02/2024;521;0;949;1;Spese correnti;3;Acquisto di beni e servizi;1;Acquisto di beni;2;Altri beni di consumo;2;Carburanti, combustibili e lubrificanti;05/02/2024
256;1;9999999;18.000,00;18.000,00;SOCIETA DILETTANTISTICA TENNIS CLUB SANTA MARIA DI SALA; ;CONTRIBUTO ECONOMICO A SOSTEGNO DELLE SPESE SOSTENUTE PER LA GESTIONE DI UN CAMPO DA GIOCO MESSO A DISPOSIZIONE DELLE ASSOCIAZIONI SPORTIVE DEL COMUNE A CAUSA DELLINTERVENTO DI RIQUALIFICAZIONE STRUTTURALE E PRESTAZIONALE DELLA PALESTRA DEL CAPOLUOGO;01/02/2024;1959;0;24;1;Spese correnti;4;Trasferimenti correnti;4;Trasferimenti correnti a Istituzioni Sociali Private;1;Trasferimenti correnti a Istituzioni Sociali Private;1;Trasferimenti correnti a Istituzioni Sociali Private;05/02/2024
257;1;9999999;161.071,28;161.071,28;AZIENDA ULSS N. 3 SERENISSIMA; ;DISTRETTO DI MIRANO -DOLO- SOCIALE - ANNO 2024 1 ACCONTO;01/02/2024;3851;0;26;1;Spese correnti;4;Trasferimenti correnti;1;Trasferimenti correnti a Amministrazioni Pubbliche;2;Trasferimenti correnti a Amministrazioni Locali;20;Trasferimenti correnti a Aziende sanitarie locali  a titolo di finanziamento del servizio sanitario nazionale;05/02/2024
276;1;9999999;3.000,00;3.000,00;CONFCOMMERCIO DEL MIRANESE; ;II ACCONTO  CONTRIBUTO PER LA PROGETTAZIONE E ORGANIZZAZIONE DI INIZIATIVE DEL DISTRETTO DEL COMMERCIO.;01/02/2024;4759;0;349;1;Spese correnti;4;Trasferimenti correnti;4;Trasferimenti correnti a Istituzioni Sociali Private;1;Trasferimenti correnti a Istituzioni Sociali Private;1;Trasferimenti correnti a Istituzioni Sociali Private;05/02/2024
277;1;9999999;29,95;29,95;C/C/P 15453301 SERVIZIO DI TESORERIA COM; ;SPESE GESTIONE CONTO CORRENTE  POSTALE 15453301 GENNAIO 2024;02/02/2024;146;0;4;1;Spese correnti;3;Acquisto di beni e servizi;2;Acquisto di servizi;17;Servizi finanziari;999;Spese per servizi finanziari n.a.c.;06/02/2024
278;1;9999999;3.690,50;3.690,50;DEDA NEXT SRL;ZD03C49145;SALDO Fatt.n. 3016003589  del 31/12/2023 SERVIZIO DI ASSISTENZA ALLE ATTIVITA DI ORGANIZZAZIONE E RENDICONTAZIONE DEI PROGETTI FINANZIATI;02/02/2024;549;0;806;1;Spese correnti;3;Acquisto di beni e servizi;2;Acquisto di servizi;99;Altri servizi;999;Altri servizi diversi n.a.c.;06/02/2024
279;1;9999999;324,28;324,28;QUADIENT RENTAL ITALY SRL;B0241921EE;SALDO Fatt.n. 2023.4099  del 28/12/2023 NOLEGGIO AFFRANCATRICE E BILANCIA UFFICIO PROTOCOLLO ANNO 2024;02/02/2024;145;0;41;1;Spese correnti;3;Acquisto di beni e servizi;2;Acquisto di servizi;16;Servizi amministrativi;2;Spese postali;06/02/2024
280;1;9999999;16.000,00;16.000,00;COOP SOCIALE PRIMAVERA SOC.COOP.SOC.ONLUS;91571596A8;ACCONTO Fatt.n. 31 / PA  del 22/01/2024 SERVIZI DI PULIZIA  E SANIFICAZIONE UFFICI COMUNALI DETERMINAZIONE 317-2022;02/02/2024;142;0;438;1;Spese correnti;3;Acquisto di beni e servizi;2;Acquisto di servizi;13;Servizi ausiliari per il funzionamento dell'ente;2;Servizi di pulizia e lavanderia;06/02/2024
281;1;9999999;2.061,80;2.061,80;COOP SOCIALE PRIMAVERA SOC.COOP.SOC.ONLUS;ZA1378580F;SALDO Fatt.n. 32 / PA  del 22/01/2024 SERVIZIO DI ALLESTIMENTO E PULIZIA SEGGI ELETTORALI DETERMINAZIONE N. 583-2022;02/02/2024;649;0;760;1;Spese correnti;3;Acquisto di beni e servizi;2;Acquisto di servizi;99;Altri servizi;4;Altre spese per consultazioni elettorali dell'ente;06/02/2024
282;1;9999999;18,35;254,62;ENEL ENERGIA SPA;97224145D7;SALDO Fatt.n. 005000193739  del 08/01/2024 DICEMBRE 2023 - CONSUMI ALLOGGIO IMMOBILE VIA OLIMPIA SMS;02/02/2024;134;31;909;1;Spese correnti;3;Acquisto di beni e servizi;2;Acquisto di servizi;5;Utenze e canoni;4;Energia elettrica;06/02/2024
282;2;9999999;33,48;254,62;ENEL ENERGIA SPA;97224145D7;SALDO Fatt.n. 005000193743  del 08/01/2024 DICEMBRE 2023 - CONSUMI PARCHEGGIO C.C. PRISMA CASELLE;02/02/2024;134;31;909;1;Spese correnti;3;Acquisto di beni e servizi;2;Acquisto di servizi;5;Utenze e canoni;4;Energia elettrica;06/02/2024
282;3;9999999;53,56;254,62;ENEL ENERGIA SPA;97224145D7;SALDO Fatt.n. 005007769090  del 15/01/2024 DICEMBRE 2023 - CONSUMI ALLOGGIO DON GALLERANI CALTANA;02/02/2024;134;31;909;1;Spese correnti;3;Acquisto di beni e servizi;2;Acquisto di servizi;5;Utenze e canoni;4;Energia elettrica;06/02/2024
282;4;9999999;63,22;254,62;ENEL ENERGIA SPA;97224145D7;SALDO Fatt.n. 005000193738  del 08/01/2024 DICEMBRE 2023 - CONSUMI MERCATO CALTANA;02/02/2024;134;31;909;1;Spese correnti;3;Acquisto di beni e servizi;2;Acquisto di servizi;5;Utenze e canoni;4;Energia elettrica;06/02/2024
282;5;9999999;86,01;254,62;ENEL ENERGIA SPA;97224145D7;SALDO Fatt.n. 005000193744  del 08/01/2024 DICEMBRE 2023 - CONSUMI MERCATO SMS;02/02/2024;134;31;909;1;Spese correnti;3;Acquisto di beni e servizi;2;Acquisto di servizi;5;Utenze e canoni;4;Energia elettrica;06/02/2024
283;1;9999999;56,43;596,23;ENEL ENERGIA SPA;97224145D7;SALDO Fatt.n. 005000193729  del 08/01/2024 DICEMBRE 2023 - CONSUMI PARCHEGGIO SMS;02/02/2024;134;31;909;1;Spese correnti;3;Acquisto di beni e servizi;2;Acquisto di servizi;5;Utenze e canoni;4;Energia elettrica;06/02/2024
283;2;9999999;82,45;596,23;ENEL ENERGIA SPA;97224145D7;SALDO Fatt.n. 005000193719  del 08/01/2024 DICEMBRE 2023 - CONSUMI FONTANA VETERNIGO;02/02/2024;134;31;909;1;Spese correnti;3;Acquisto di beni e servizi;2;Acquisto di servizi;5;Utenze e canoni;4;Energia elettrica;06/02/2024
283;3;9999999;125,03;596,23;ENEL ENERGIA SPA;97224145D7;SALDO Fatt.n. 005000193730  del 08/01/2024 DICEMBRE 2023 - CONSUMI PARCHEGGIO OVALE SMS;02/02/2024;134;31;909;1;Spese correnti;3;Acquisto di beni e servizi;2;Acquisto di servizi;5;Utenze e canoni;4;Energia elettrica;06/02/2024
283;4;9999999;127,88;596,23;ENEL ENERGIA SPA;97224145D7;SALDO Fatt.n. 005000193723  del 08/01/2024 DICEMBRE 2023 - CONSUMI MERCATO CASELLE;02/02/2024;134;31;909;1;Spese correnti;3;Acquisto di beni e servizi;2;Acquisto di servizi;5;Utenze e canoni;4;Energia elettrica;06/02/2024
283;5;9999999;204,44;596,23;ENEL ENERGIA SPA;97224145D7;SALDO Fatt.n. 005000193724  del 08/01/2024 DICEMBRE 2023 - CONSUMI P.ZZA S.D.A. CALTANA;02/02/2024;134;31;909;1;Spese correnti;3;Acquisto di beni e servizi;2;Acquisto di servizi;5;Utenze e canoni;4;Energia elettrica;06/02/2024
284;1;9999999;1.319,69;1.319,69;ENEL ENERGIA SPA;97224145D7;SALDO Fatt.n. 005000193732  del 08/01/2024 DICEMBRE 2023 - CONSUMI SEDE MUNICIPALE;02/02/2024;134;31;909;1;Spese correnti;3;Acquisto di beni e servizi;2;Acquisto di servizi;5;Utenze e canoni;4;Energia elettrica;06/02/2024
285;1;9999999;7,93;7,93;ENEL ENERGIA SPA;97224145D7;ACCONTO Fatt.n. 005000193721  del 08/01/2024 DICEMBRE 2023 - CONSUMI CIMITERO SMS - LAMPADE VOTIVE;02/02/2024;134;31;909;1;Spese correnti;3;Acquisto di beni e servizi;2;Acquisto di servizi;5;Utenze e canoni;4;Energia elettrica;06/02/2024
286;1;9999999;9,87;9,87;ENEL ENERGIA SPA;97224145D7;ACCONTO Fatt.n. 005000193735  del 08/01/2024 DICEMBRE 2023 - CONSUMI CIMITERO CASELLE - LAMPADE VOTIVE;02/02/2024;134;31;909;1;Spese correnti;3;Acquisto di beni e servizi;2;Acquisto di servizi;5;Utenze e canoni;4;Energia elettrica;06/02/2024
287;1;9999999;8,34;8,34;ENEL ENERGIA SPA;97224145D7;ACCONTO Fatt.n. 005000193733  del 08/01/2024 DICEMBRE 2023 - CONSUMI CIMITERO S.ANGELO - LAMPADE VOTIVE;02/02/2024;134;31;909;1;Spese correnti;3;Acquisto di beni e servizi;2;Acquisto di servizi;5;Utenze e canoni;4;Energia elettrica;06/02/2024
288;1;9999999;8,47;8,47;ENEL ENERGIA SPA;97224145D7;ACCONTO Fatt.n. 005000193718  del 08/01/2024 DICEMBRE 2023 - CONSUMI CIMITERO CALTANA - LAMPADE VOTIVE;02/02/2024;134;31;909;1;Spese correnti;3;Acquisto di beni e servizi;2;Acquisto di servizi;5;Utenze e canoni;4;Energia elettrica;06/02/2024
289;1;9999999;7,13;7,13;ENEL ENERGIA SPA;97224145D7;ACCONTO Fatt.n. 005000193742  del 08/01/2024 DICEMBRE 2023 - CONSUMI CIMITERO VETERNIGO - LAMPADE VOTIVE;02/02/2024;134;31;909;1;Spese correnti;3;Acquisto di beni e servizi;2;Acquisto di servizi;5;Utenze e canoni;4;Energia elettrica;06/02/2024
290;1;9999999;482,11;4.134,13;ENEL ENERGIA SPA;97224145D7;SALDO Fatt.n. 005000193741  del 08/01/2024 DICEMBRE 2023 - CONSUMI SC. ELEM. CALTANA;02/02/2024;1334;30;910;1;Spese correnti;3;Acquisto di beni e servizi;2;Acquisto di servizi;5;Utenze e canoni;4;Energia elettrica;06/02/2024
290;2;9999999;591,97;4.134,13;ENEL ENERGIA SPA;97224145D7;SALDO Fatt.n. 005000193737  del 08/01/2024 DICEMBRE 2023 - CONSUMI SC. ELEM. CASELLE;02/02/2024;1334;30;910;1;Spese correnti;3;Acquisto di beni e servizi;2;Acquisto di servizi;5;Utenze e canoni;4;Energia elettrica;06/02/2024
290;3;9999999;3.060,05;4.134,13;ENEL ENERGIA SPA;97224145D7;SALDO Fatt.n. 005000193720  del 08/01/2024 DICEMBRE 2023 - CONSUMI SC. ELEM - SC. MEDIA SMS;02/02/2024;1334;30;910;1;Spese correnti;3;Acquisto di beni e servizi;2;Acquisto di servizi;5;Utenze e canoni;4;Energia elettrica;06/02/2024
291;1;9999999;148,37;148,37;ENEL ENERGIA SPA;97224145D7;ACCONTO Fatt.n. 005000193722  del 08/01/2024 DICEMBRE 2023 - CONSUMI PALESTRA CASELLE;02/02/2024;1334;30;910;1;Spese correnti;3;Acquisto di beni e servizi;2;Acquisto di servizi;5;Utenze e canoni;4;Energia elettrica;06/02/2024
292;1;9999999;270;270;ENEL ENERGIA SPA;97224145D7;ACCONTO Fatt.n. 005000193731  del 08/01/2024 DICEMBRE 2023 - CONSUMI SC. ELEM - PALESTRA - ASILO S.ANGELO;02/02/2024;1334;30;910;1;Spese correnti;3;Acquisto di beni e servizi;2;Acquisto di servizi;5;Utenze e canoni;4;Energia elettrica;06/02/2024
293;1;9999999;813,19;813,19;ENEL ENERGIA SPA;97224145D7;ACCONTO Fatt.n. 005000193731  del 08/01/2024 DICEMBRE 2023 - CONSUMI SC. ELEM - PALESTRA - ASILO S.ANGELO;02/02/2024;1334;30;910;1;Spese correnti;3;Acquisto di beni e servizi;2;Acquisto di servizi;5;Utenze e canoni;4;Energia elettrica;06/02/2024
294;1;9999999;380,81;380,81;ENEL ENERGIA SPA;97224145D7;ACCONTO Fatt.n. 005000193734  del 08/01/2024 DICEMBRE 2023 - CONSUMI PALESTRA SMS;02/02/2024;1334;30;910;1;Spese correnti;3;Acquisto di beni e servizi;2;Acquisto di servizi;5;Utenze e canoni;4;Energia elettrica;06/02/2024
295;1;9999999;614,83;614,83;ENEL ENERGIA SPA;97224145D7;ACCONTO Fatt.n. 005000193727  del 08/01/2024 DICEMBRE 2023 - CONSUMI PALESTRA CALTANA;02/02/2024;1334;30;910;1;Spese correnti;3;Acquisto di beni e servizi;2;Acquisto di servizi;5;Utenze e canoni;4;Energia elettrica;06/02/2024
296;1;9999999;401;401;ENEL ENERGIA SPA;97224145D7;ACCONTO Fatt.n. 005000193745  del 08/01/2024 DICEMBRE 2023 - CONSUMI SC. ELEM - PALESTRA VETERNIGO;02/02/2024;1334;30;910;1;Spese correnti;3;Acquisto di beni e servizi;2;Acquisto di servizi;5;Utenze e canoni;4;Energia elettrica;06/02/2024
297;1;9999999;654,84;654,84;ENEL ENERGIA SPA;97224145D7;ACCONTO Fatt.n. 005000193745  del 08/01/2024 DICEMBRE 2023 - CONSUMI SC. ELEM - PALESTRA VETERNIGO;02/02/2024;1334;30;910;1;Spese correnti;3;Acquisto di beni e servizi;2;Acquisto di servizi;5;Utenze e canoni;4;Energia elettrica;06/02/2024
298;1;9999999;254,4;254,4;ENEL ENERGIA SPA;97224145D7;ACCONTO Fatt.n. 005000193736  del 08/01/2024 DICEMBRE 2023 - CONSUMI SC. ELEM - PALESTRA STIGLIANO;02/02/2024;1334;30;910;1;Spese correnti;3;Acquisto di beni e servizi;2;Acquisto di servizi;5;Utenze e canoni;4;Energia elettrica;06/02/2024
299;1;9999999;271,83;271,83;ENEL ENERGIA SPA;97224145D7;ACCONTO Fatt.n. 005000193736  del 08/01/2024 DICEMBRE 2023 - CONSUMI SC. ELEM - PALESTRA STIGLIANO;02/02/2024;1334;30;910;1;Spese correnti;3;Acquisto di beni e servizi;2;Acquisto di servizi;5;Utenze e canoni;4;Energia elettrica;06/02/2024
300;1;9999999;1.028,39;5.229,74;ENEL ENERGIA SPA;97224145D7;SALDO Fatt.n. 005000193717  del 08/01/2024 DICEMBRE 2023 - CONSUMI VILLA FARSETTI;02/02/2024;1834;0;911;1;Spese correnti;3;Acquisto di beni e servizi;2;Acquisto di servizi;5;Utenze e canoni;4;Energia elettrica;06/02/2024
300;2;9999999;4.201,35;5.229,74;ENEL ENERGIA SPA;97224145D7;SALDO Fatt.n. 005000193728  del 08/01/2024 DICEMBRE 2023 - CONSUMI VILLA FARSETTI;02/02/2024;1834;0;911;1;Spese correnti;3;Acquisto di beni e servizi;2;Acquisto di servizi;5;Utenze e canoni;4;Energia elettrica;06/02/2024
301;1;9999999;212,62;212,62;ENEL ENERGIA SPA;97224145D7;SALDO Fatt.n. 005000193726  del 08/01/2024 DICEMBRE 2023 - CONSUMI IMP. SPORT. PARROCCHIA CASELLE;02/02/2024;1934;0;912;1;Spese correnti;3;Acquisto di beni e servizi;2;Acquisto di servizi;5;Utenze e canoni;4;Energia elettrica;06/02/2024
302;1;9999999;450,28;450,28;ENEL ENERGIA SPA;97224145D7;SALDO Fatt.n. 005000193747  del 08/01/2024 DICEMBRE 2023 - CONSUMI IMP. SPORT. CALTANA;02/02/2024;1934;0;912;1;Spese correnti;3;Acquisto di beni e servizi;2;Acquisto di servizi;5;Utenze e canoni;4;Energia elettrica;06/02/2024
303;1;9999999;148,36;148,36;ENEL ENERGIA SPA;97224145D7;SALDO Fatt.n. 005000193722  del 08/01/2024 DICEMBRE 2023 - CONSUMI PALESTRA CASELLE;02/02/2024;1934;0;912;1;Spese correnti;3;Acquisto di beni e servizi;2;Acquisto di servizi;5;Utenze e canoni;4;Energia elettrica;06/02/2024
304;1;9999999;597,62;597,62;ENEL ENERGIA SPA;97224145D7;SALDO Fatt.n. 005000193748  del 08/01/2024 DICEMBRE 2023 - CONSUMI IMP. SPORT. SMS;02/02/2024;1934;0;912;1;Spese correnti;3;Acquisto di beni e servizi;2;Acquisto di servizi;5;Utenze e canoni;4;Energia elettrica;06/02/2024
305;1;9999999;1.032,05;1.032,05;ENEL ENERGIA SPA;97224145D7;SALDO Fatt.n. 005000193746  del 08/01/2024 DICEMBRE 2023 - CONSUMI IMP. SPORT. VETERNIGO;02/02/2024;1934;0;912;1;Spese correnti;3;Acquisto di beni e servizi;2;Acquisto di servizi;5;Utenze e canoni;4;Energia elettrica;06/02/2024
306;1;9999999;168,25;168,25;ENEL ENERGIA SPA;97224145D7;SALDO Fatt.n. 005000193740  del 08/01/2024 DICEMBRE 2023 - CONSUMI CAMPO DA CALCIO SMS;02/02/2024;1934;0;912;1;Spese correnti;3;Acquisto di beni e servizi;2;Acquisto di servizi;5;Utenze e canoni;4;Energia elettrica;06/02/2024
307;1;9999999;270;270;ENEL ENERGIA SPA;97224145D7;SALDO Fatt.n. 005000193731  del 08/01/2024 DICEMBRE 2023 - CONSUMI SC. ELEM - PALESTRA - ASILO S.ANGELO;02/02/2024;1934;0;912;1;Spese correnti;3;Acquisto di beni e servizi;2;Acquisto di servizi;5;Utenze e canoni;4;Energia elettrica;06/02/2024
308;1;9999999;380,82;380,82;ENEL ENERGIA SPA;97224145D7;SALDO Fatt.n. 005000193734  del 08/01/2024 DICEMBRE 2023 - CONSUMI PALESTRA SMS;02/02/2024;1934;0;912;1;Spese correnti;3;Acquisto di beni e servizi;2;Acquisto di servizi;5;Utenze e canoni;4;Energia elettrica;06/02/2024
309;1;9999999;614,84;614,84;ENEL ENERGIA SPA;97224145D7;SALDO Fatt.n. 005000193727  del 08/01/2024 DICEMBRE 2023 - CONSUMI PALESTRA CALTANA;02/02/2024;1934;0;912;1;Spese correnti;3;Acquisto di beni e servizi;2;Acquisto di servizi;5;Utenze e canoni;4;Energia elettrica;06/02/2024
310;1;9999999;109,53;109,53;ENEL ENERGIA SPA;97224145D7;SALDO Fatt.n. 005000193725  del 08/01/2024 DICEMBRE 2023 - CONSUMI IMP. SPORT. CASELLE;02/02/2024;1934;0;912;1;Spese correnti;3;Acquisto di beni e servizi;2;Acquisto di servizi;5;Utenze e canoni;4;Energia elettrica;06/02/2024
311;1;9999999;401;401;ENEL ENERGIA SPA;97224145D7;SALDO Fatt.n. 005000193745  del 08/01/2024 DICEMBRE 2023 - CONSUMI SC. ELEM - PALESTRA VETERNIGO;02/02/2024;1934;0;912;1;Spese correnti;3;Acquisto di beni e servizi;2;Acquisto di servizi;5;Utenze e canoni;4;Energia elettrica;06/02/2024
312;1;9999999;381,6;381,6;ENEL ENERGIA SPA;97224145D7;SALDO Fatt.n. 005000193736  del 08/01/2024 DICEMBRE 2023 - CONSUMI SC. ELEM - PALESTRA STIGLIANO;02/02/2024;1934;0;912;1;Spese correnti;3;Acquisto di beni e servizi;2;Acquisto di servizi;5;Utenze e canoni;4;Energia elettrica;06/02/2024
313;1;9999999;42,91;42,91;ENEL ENERGIA SPA;97224145D7;SALDO Fatt.n. 005000193715  del 08/01/2024 DICEMBRE 2023 - CONSUMI ECOCENTRO COMUNALE;02/02/2024;3534;0;913;1;Spese correnti;3;Acquisto di beni e servizi;2;Acquisto di servizi;5;Utenze e canoni;4;Energia elettrica;06/02/2024
314;1;9999999;309,87;309,87;ENEL ENERGIA SPA;97224145D7;SALDO Fatt.n. 005000193714  del 08/01/2024 DICEMBRE 2023 - CONSUMI MAGAZZINO COMUNALE;02/02/2024;3534;0;913;1;Spese correnti;3;Acquisto di beni e servizi;2;Acquisto di servizi;5;Utenze e canoni;4;Energia elettrica;06/02/2024
315;1;9999999;13.865,54;13.865,54;ENEL ENERGIA SPA;97224145D7;ACCONTO Fatt.n. 005008009509  del 15/01/2024 DICEMBRE 2023 - CONSUMI ILLUMINAZIONE PUBBLICA;02/02/2024;3544;0;321;1;Spese correnti;3;Acquisto di beni e servizi;2;Acquisto di servizi;15;Contratti di servizio pubblico;15;Contratti di servizio per l'illuminazione pubblica;06/02/2024
316;1;9999999;10.178,31;10.178,31;ENEL ENERGIA SPA;97224145D7;SALDO Fatt.n. 005008009509  del 15/01/2024 DICEMBRE 2023 - CONSUMI ILLUMINAZIONE PUBBLICA;02/02/2024;3544;0;916;1;Spese correnti;3;Acquisto di beni e servizi;2;Acquisto di servizi;15;Contratti di servizio pubblico;15;Contratti di servizio per l'illuminazione pubblica;06/02/2024
317;1;9999999;381,01;6.558,74;ENEL ENERGIA SPA;97224145D7;SALDO Fatt.n. 005008009510  del 15/01/2024 DICEMBRE 2023 - CONSUMI ILLUMINAZIONE PUBBLICA;02/02/2024;3544;0;916;1;Spese correnti;3;Acquisto di beni e servizi;2;Acquisto di servizi;15;Contratti di servizio pubblico;15;Contratti di servizio per l'illuminazione pubblica;06/02/2024
317;2;9999999;6.177,73;6.558,74;ENEL ENERGIA SPA;97224145D7;SALDO Fatt.n. 005008009511  del 15/01/2024 DICEMBRE 2023 - CONSUMI ILLUMINAZIONE PUBBLICA;02/02/2024;3544;0;916;1;Spese correnti;3;Acquisto di beni e servizi;2;Acquisto di servizi;15;Contratti di servizio pubblico;15;Contratti di servizio per l'illuminazione pubblica;06/02/2024
318;1;9999999;26,54;26,54;ENEL ENERGIA SPA;97224145D7;SALDO Fatt.n. 005000193716  del 08/01/2024 DICEMBRE 2023 - CONSUMI CIMITERO STIGLIANO - LAMPADE VOTIVE;02/02/2024;4434;0;915;1;Spese correnti;3;Acquisto di beni e servizi;2;Acquisto di servizi;5;Utenze e canoni;4;Energia elettrica;06/02/2024
319;1;9999999;63;63;ENEL ENERGIA SPA;97224145D7;SALDO Fatt.n. 005000193721  del 08/01/2024 DICEMBRE 2023 - CONSUMI CIMITERO SMS - LAMPADE VOTIVE;02/02/2024;4434;0;915;1;Spese correnti;3;Acquisto di beni e servizi;2;Acquisto di servizi;5;Utenze e canoni;4;Energia elettrica;06/02/2024
320;1;9999999;71;71;ENEL ENERGIA SPA;97224145D7;SALDO Fatt.n. 005000193735  del 08/01/2024 DICEMBRE 2023 - CONSUMI CIMITERO CASELLE - LAMPADE VOTIVE;02/02/2024;4434;0;915;1;Spese correnti;3;Acquisto di beni e servizi;2;Acquisto di servizi;5;Utenze e canoni;4;Energia elettrica;06/02/2024
321;1;9999999;39;39;ENEL ENERGIA SPA;97224145D7;SALDO Fatt.n. 005000193733  del 08/01/2024 DICEMBRE 2023 - CONSUMI CIMITERO S.ANGELO - LAMPADE VOTIVE;02/02/2024;4434;0;915;1;Spese correnti;3;Acquisto di beni e servizi;2;Acquisto di servizi;5;Utenze e canoni;4;Energia elettrica;06/02/2024
322;1;9999999;217;217;ENEL ENERGIA SPA;97224145D7;SALDO Fatt.n. 005000193718  del 08/01/2024 DICEMBRE 2023 - CONSUMI CIMITERO CALTANA - LAMPADE VOTIVE;02/02/2024;4434;0;915;1;Spese correnti;3;Acquisto di beni e servizi;2;Acquisto di servizi;5;Utenze e canoni;4;Energia elettrica;06/02/2024
323;1;9999999;38;38;ENEL ENERGIA SPA;97224145D7;SALDO Fatt.n. 005000193742  del 08/01/2024 DICEMBRE 2023 - CONSUMI CIMITERO VETERNIGO - LAMPADE VOTIVE;02/02/2024;4434;0;915;1;Spese correnti;3;Acquisto di beni e servizi;2;Acquisto di servizi;5;Utenze e canoni;4;Energia elettrica;06/02/2024
324;1;9999999;1.157,23;1.157,23;COOP SOCIALE PRIMAVERA SOC.COOP.SOC.ONLUS;91571596A8;SALDO Fatt.n. 31 / PA  del 22/01/2024 SERVIZI DI PULIZIA  E SANIFICAZIONE UFFICI COMUNALI DETERMINAZIONE 317-2022;02/02/2024;142;0;438;1;Spese correnti;3;Acquisto di beni e servizi;2;Acquisto di servizi;13;Servizi ausiliari per il funzionamento dell'ente;2;Servizi di pulizia e lavanderia;06/02/2024
325;1;9999999;1;1;BANCA MPS SPA; ;COMMISSIONI BANCA INCASSI POS FISICO PAGO PA INTEGRATO CON IL NODO NAZIONALE DEI PAGAMENTI PAGO PA NANNO 2023-2025;05/02/2024;146;0;100;1;Spese correnti;3;Acquisto di beni e servizi;2;Acquisto di servizi;17;Servizi finanziari;999;Spese per servizi finanziari n.a.c.;07/02/2024
326;1;9999999;500;500;UNIPOLSAI SOCIETA' ASSICURAZIONI SPA; ;FRANCHIGIE P.IVA 00625620273 E.C. AL 12/23;05/02/2024;992;0;38;1;Spese correnti;10;Altre spese correnti;4;Premi di assicurazione;1;Premi di assicurazione contro i danni;999;Altri premi di assicurazione contro i danni;08/02/2024
327;1;9999999;900;900;AIDAI VENETO; ;CONTRIBUTO PER ATTIVITA SOCIALI RIVOLTE AI GIOVANI;06/02/2024;1859;0;1087;1;Spese correnti;4;Trasferimenti correnti;4;Trasferimenti correnti a Istituzioni Sociali Private;1;Trasferimenti correnti a Istituzioni Sociali Private;1;Trasferimenti correnti a Istituzioni Sociali Private;08/02/2024
328;1;9999999;232;232;OMESSO NOMINATIVO NEL RISPETTO DELLA NORMATIVA SULLA PROTEZIONE DATI PERSONALI; ;LIQUIDAZIONE AGEVOLAZIONI ECONOMICHE  PERIODO SETTEMBRE - DICEMBRE 2023 (MENSA SCOLASTICA)RIVOLTE AI MINORI FREQUENTANTI SCUOLE DELLOBBLIGO - girocontabile;06/02/2024;3757;0;872;1;Spese correnti;4;Trasferimenti correnti;2;Trasferimenti correnti a Famiglie;5;Altri trasferimenti a famiglie;999;Altri trasferimenti a famiglie n.a.c.;08/02/2024
329;1;9999999;48;48;OMESSO NOMINATIVO NEL RISPETTO DELLA NORMATIVA SULLA PROTEZIONE DATI PERSONALI; ;LIQUIDAZIONE AGEVOLAZIONI ECONOMICHE  PERIODO SETTEMBRE - DICEMBRE 2023 (MENSA SCOLASTICA)RIVOLTE AI MINORI FREQUENTANTI SCUOLE DELLOBBLIGO - girocontabile;06/02/2024;4157;0;902;1;Spese correnti;4;Trasferimenti correnti;2;Trasferimenti correnti a Famiglie;2;Interventi assistenziali;999;Altri assegni e sussidi assistenziali;08/02/2024
330;1;9999999;124;124;OMESSO NOMINATIVO NEL RISPETTO DELLA NORMATIVA SULLA PROTEZIONE DATI PERSONALI; ;LIQUIDAZIONE AGEVOLAZIONI ECONOMICHE  PERIODO SETTEMBRE - DICEMBRE 2023 (MENSA SCOLASTICA)RIVOLTE AI MINORI FREQUENTANTI SCUOLE DELLOBBLIGO - girocontabile;06/02/2024;4157;0;903;1;Spese correnti;4;Trasferimenti correnti;2;Trasferimenti correnti a Famiglie;2;Interventi assistenziali;999;Altri assegni e sussidi assistenziali;08/02/2024
331;1;9999999;128;128;OMESSO NOMINATIVO NEL RISPETTO DELLA NORMATIVA SULLA PROTEZIONE DATI PERSONALI; ;LIQUIDAZIONE AGEVOLAZIONI ECONOMICHE  ANNO 2023 (TRASPORTO SCOLASTICO) RIVOLTE AI MINORI FREQUENTANTI SCUOLE DELLOBBLIGO - girocontabile;06/02/2024;3757;0;873;1;Spese correnti;4;Trasferimenti correnti;2;Trasferimenti correnti a Famiglie;5;Altri trasferimenti a famiglie;999;Altri trasferimenti a famiglie n.a.c.;08/02/2024
332;1;9999999;64;64;OMESSO NOMINATIVO NEL RISPETTO DELLA NORMATIVA SULLA PROTEZIONE DATI PERSONALI; ;LIQUIDAZIONE AGEVOLAZIONI ECONOMICHE  ANNO 2023 (TRASPORTO SCOLASTICO) RIVOLTE AI MINORI FREQUENTANTI SCUOLE DELLOBBLIGO - girocontabile;06/02/2024;3757;0;874;1;Spese correnti;4;Trasferimenti correnti;2;Trasferimenti correnti a Famiglie;5;Altri trasferimenti a famiglie;999;Altri trasferimenti a famiglie n.a.c.;08/02/2024
333;1;9999999;33;33;CITTA' METROPOLITANA DI VENEZIA; ;RIMBORSO TESSERE AGEVOLATE 2023;06/02/2024;3851;0;144;1;Spese correnti;4;Trasferimenti correnti;1;Trasferimenti correnti a Amministrazioni Pubbliche;2;Trasferimenti correnti a Amministrazioni Locali;4;Trasferimenti correnti a Città metropolitane e Roma capitale;08/02/2024
334;1;9999999;20.950,50;20.950,50;MAG SPA;ZA93DF7760;SERVIZI ASSICURATIVI - PREMI RELATIVI ALLA PROROGA TECNICA;06/02/2024;992;0;1111;1;Spese correnti;10;Altre spese correnti;4;Premi di assicurazione;1;Premi di assicurazione contro i danni;999;Altri premi di assicurazione contro i danni;08/02/2024
335;1;9999999;10.148,52;10.148,52;MAG SPA;Z4339472E5;POLIZZA ASSICURATIVA RCA AUTO LIBRO MATRICOLA ANNO 2024;06/02/2024;992;0;1189;1;Spese correnti;10;Altre spese correnti;4;Premi di assicurazione;1;Premi di assicurazione contro i danni;999;Altri premi di assicurazione contro i danni;08/02/2024
336;1;9999999;411,5;411,5;MAG SPA;Z4339472E5;POLIZZA RC AUTO VITTORIA ASSICURAZIONI. REGOLAZIONE PREMIO ANNUALITA 2023;06/02/2024;992;0;59;1;Spese correnti;10;Altre spese correnti;4;Premi di assicurazione;1;Premi di assicurazione contro i danni;999;Altri premi di assicurazione contro i danni;08/02/2024
337;1;9999999;139,93;139,93;MARCHIORO AURORA; ;INDENNITA DI PRESENZA PER PARTECIPAZIONE SEDUTE II SEMESTRE 2023;06/02/2024;30;99;131;1;Spese correnti;3;Acquisto di beni e servizi;2;Acquisto di servizi;1;Organi e incarichi istituzionali dell'amministrazione;1;Organi istituzionali dell'amministrazione - Indennità;08/02/2024
338;1;9999999;179,91;179,91;MONTIN MANUEL; ;INDENNITA DI PRESENZA PER PARTECIPAZIONE SEDUTE II SEMESTRE 2023;06/02/2024;30;99;131;1;Spese correnti;3;Acquisto di beni e servizi;2;Acquisto di servizi;1;Organi e incarichi istituzionali dell'amministrazione;1;Organi istituzionali dell'amministrazione - Indennità;08/02/2024
339;1;9999999;59,97;59,97;CASARI SILVIA; ;INDENNITA DI PRESENZA PER PARTECIPAZIONE SEDUTE II SEMESTRE 2023;06/02/2024;30;99;131;1;Spese correnti;3;Acquisto di beni e servizi;2;Acquisto di servizi;1;Organi e incarichi istituzionali dell'amministrazione;1;Organi istituzionali dell'amministrazione - Indennità;08/02/2024
340;1;9999999;159,92;159,92;PITTARELLO MATTIA; ;INDENNITA DI PRESENZA PER PARTECIPAZIONE SEDUTE II SEMESTRE 2023;06/02/2024;30;99;131;1;Spese correnti;3;Acquisto di beni e servizi;2;Acquisto di servizi;1;Organi e incarichi istituzionali dell'amministrazione;1;Organi istituzionali dell'amministrazione - Indennità;08/02/2024
341;1;9999999;119,94;119,94;NEBRADIGA MICHAEL; ;INDENNITA DI PRESENZA PER PARTECIPAZIONE SEDUTE II SEMESTRE 2023;06/02/2024;30;99;131;1;Spese correnti;3;Acquisto di beni e servizi;2;Acquisto di servizi;1;Organi e incarichi istituzionali dell'amministrazione;1;Organi istituzionali dell'amministrazione - Indennità;08/02/2024
342;1;9999999;99,95;99,95;MALAGUTI FRANCA; ;INDENNITA DI PRESENZA PER PARTECIPAZIONE SEDUTE II SEMESTRE 2023;06/02/2024;30;99;131;1;Spese correnti;3;Acquisto di beni e servizi;2;Acquisto di servizi;1;Organi e incarichi istituzionali dell'amministrazione;1;Organi istituzionali dell'amministrazione - Indennità;08/02/2024
343;1;9999999;159,92;159,92;BUGIN LAURA; ;INDENNITA DI PRESENZA PER PARTECIPAZIONE SEDUTE II SEMESTRE 2023;06/02/2024;30;99;131;1;Spese correnti;3;Acquisto di beni e servizi;2;Acquisto di servizi;1;Organi e incarichi istituzionali dell'amministrazione;1;Organi istituzionali dell'amministrazione - Indennità;08/02/2024
344;1;9999999;179,91;179,91;BERTOLDO PRIMO; ;INDENNITA DI PRESENZA PER PARTECIPAZIONE SEDUTE II SEMESTRE 2023;06/02/2024;30;99;131;1;Spese correnti;3;Acquisto di beni e servizi;2;Acquisto di servizi;1;Organi e incarichi istituzionali dell'amministrazione;1;Organi istituzionali dell'amministrazione - Indennità;08/02/2024
345;1;9999999;179,91;179,91;BASSO GIOIA; ;INDENNITA DI PRESENZA PER PARTECIPAZIONE SEDUTE II SEMESTRE 2023;06/02/2024;30;99;131;1;Spese correnti;3;Acquisto di beni e servizi;2;Acquisto di servizi;1;Organi e incarichi istituzionali dell'amministrazione;1;Organi istituzionali dell'amministrazione - Indennità;08/02/2024
346;1;9999999;119,94;119,94;SAMBATI GIUSEPPE; ;INDENNITA DI PRESENZA PER PARTECIPAZIONE SEDUTE II SEMESTRE 2023;06/02/2024;30;99;131;1;Spese correnti;3;Acquisto di beni e servizi;2;Acquisto di servizi;1;Organi e incarichi istituzionali dell'amministrazione;1;Organi istituzionali dell'amministrazione - Indennità;08/02/2024
347;1;9999999;179,91;179,91;CAMPANARO SIMONETTA; ;INDENNITA DI PRESENZA PER PARTECIPAZIONE SEDUTE II SEMESTRE 2023;06/02/2024;30;99;131;1;Spese correnti;3;Acquisto di beni e servizi;2;Acquisto di servizi;1;Organi e incarichi istituzionali dell'amministrazione;1;Organi istituzionali dell'amministrazione - Indennità;08/02/2024
348;1;9999999;159,92;159,92;SCATTO FRANCESCA; ;INDENNITA DI PRESENZA PER PARTECIPAZIONE SEDUTE II SEMESTRE 2023;06/02/2024;30;99;131;1;Spese correnti;3;Acquisto di beni e servizi;2;Acquisto di servizi;1;Organi e incarichi istituzionali dell'amministrazione;1;Organi istituzionali dell'amministrazione - Indennità;08/02/2024
349;1;9999999;139,93;139,93;BACCHIN STEFANO; ;INDENNITA DI PRESENZA PER PARTECIPAZIONE SEDUTE II SEMESTRE 2023;06/02/2024;30;99;131;1;Spese correnti;3;Acquisto di beni e servizi;2;Acquisto di servizi;1;Organi e incarichi istituzionali dell'amministrazione;1;Organi istituzionali dell'amministrazione - Indennità;08/02/2024
350;1;9999999;199,9;199,9;FAVARO LEANDRO; ;INDENNITA DI PRESENZA PER PARTECIPAZIONE SEDUTE II SEMESTRE 2023;06/02/2024;30;99;131;1;Spese correnti;3;Acquisto di beni e servizi;2;Acquisto di servizi;1;Organi e incarichi istituzionali dell'amministrazione;1;Organi istituzionali dell'amministrazione - Indennità;08/02/2024
351;1;9999999;59,97;59,97;CANEVAROLO GIOVANNA; ;INDENNITA DI PRESENZA PER PARTECIPAZIONE SEDUTE II SEMESTRE 2023;06/02/2024;30;99;131;1;Spese correnti;3;Acquisto di beni e servizi;2;Acquisto di servizi;1;Organi e incarichi istituzionali dell'amministrazione;1;Organi istituzionali dell'amministrazione - Indennità;08/02/2024
352;1;9999999;179,91;179,91;IOVINE MASSIMO; ;INDENNITA DI PRESENZA PER PARTECIPAZIONE SEDUTE II SEMESTRE 2023;06/02/2024;30;99;131;1;Spese correnti;3;Acquisto di beni e servizi;2;Acquisto di servizi;1;Organi e incarichi istituzionali dell'amministrazione;1;Organi istituzionali dell'amministrazione - Indennità;08/02/2024
353;1;9999999;5.000,00;5.000,00;ELETTRO 2S SRL IMPIANTI ELETTRICI;99910489A0;ACCONTO Fatt.n. 05/2  del 18/01/2024 SERVIZIO DI MANUTENZIONE DEGLI IMPIANTI TECNOLOGICI COMUNALI;07/02/2024;1838;0;623;1;Spese correnti;3;Acquisto di beni e servizi;2;Acquisto di servizi;9;Manutenzione ordinaria e riparazioni;11;Manutenzione ordinaria e riparazioni di altri beni materiali;12/02/2024
354;1;9999999;1.436,96;1.436,96;ELETTRO 2S SRL IMPIANTI ELETTRICI;99910489A0;ACCONTO Fatt.n. 05/2  del 18/01/2024 SERVIZIO DI MANUTENZIONE DEGLI IMPIANTI TECNOLOGICI COMUNALI;07/02/2024;1938;0;624;1;Spese correnti;3;Acquisto di beni e servizi;2;Acquisto di servizi;9;Manutenzione ordinaria e riparazioni;11;Manutenzione ordinaria e riparazioni di altri beni materiali;12/02/2024
355;1;9999999;15.000,00;15.000,00;ELETTRO 2S SRL IMPIANTI ELETTRICI;99910489A0;SALDO Fatt.n. 05/2  del 18/01/2024 SERVIZIO DI MANUTENZIONE DEGLI IMPIANTI TECNOLOGICI COMUNALI;07/02/2024;3538;0;625;1;Spese correnti;3;Acquisto di beni e servizi;2;Acquisto di servizi;9;Manutenzione ordinaria e riparazioni;11;Manutenzione ordinaria e riparazioni di altri beni materiali;12/02/2024
356;1;9999999;5.271,27;5.271,27;PINATO MARINO IMPRESA EDILE;ZDD3CB9CEA;ACCONTO Fatt.n. 8/FE  del 19/01/2024 LAVORI DI MANUTENZIONE COPERTURA DELLA SEDE MUNICIPALE -  CERTIFICATO DI PAGAMENTO N. 1 CORRISPONDENTE AL FINALE.;07/02/2024;7420;0;819;2;Spese in conto capitale;2;Investimenti fissi lordi e acquisto di terreni;1;Beni materiali;9;Beni immobili;2;Fabbricati ad uso commerciale;12/02/2024
357;1;9999999;40.000,00;40.000,00;PINATO MARINO IMPRESA EDILE;ZDD3CB9CEA;ACCONTO Fatt.n. 8/FE  del 19/01/2024 LAVORI DI MANUTENZIONE COPERTURA DELLA SEDE MUNICIPALE -  CERTIFICATO DI PAGAMENTO N. 1 CORRISPONDENTE AL FINALE.;07/02/2024;7420;0;1053;2;Spese in conto capitale;2;Investimenti fissi lordi e acquisto di terreni;1;Beni materiali;9;Beni immobili;2;Fabbricati ad uso commerciale;12/02/2024
358;1;9999999;3.886,87;3.886,87;PINATO MARINO IMPRESA EDILE;ZDD3CB9CEA;SALDO Fatt.n. 8/FE  del 19/01/2024 LAVORI DI MANUTENZIONE COPERTURA DELLA SEDE MUNICIPALE -  CERTIFICATO DI PAGAMENTO N. 1 CORRISPONDENTE AL FINALE.;07/02/2024;7420;0;1109;2;Spese in conto capitale;2;Investimenti fissi lordi e acquisto di terreni;1;Beni materiali;9;Beni immobili;2;Fabbricati ad uso commerciale;12/02/2024
359;1;9999999;1.921,50;1.921,50;OMESSO NOMINATIVO NEL RISPETTO DELLA NORMATIVA SULLA PROTEZIONE DATI PERSONALI;Z1A2F9ECA3;SALDO Fatt.n. 11  del 18/01/2024 INCARICO DI ASSISTENZA ALLE PROCEDURE DI ASSERVIMENTO COATTIVO E- DISTRUBUZIONE PER COSTRUZIONE ELETTRODOTTO VIA MAZZAN A VETERNIGO;07/02/2024;540;0;1035;1;Spese correnti;3;Acquisto di beni e servizi;2;Acquisto di servizi;11;Prestazioni professionali e specialistiche;999;Altre prestazioni professionali e specialistiche n.a.c.;12/02/2024
360;1;9999999;618,54;618,54;MUFFATO CLAUDIO;X3339B74C3;SALDO Fatt.n. 6  del 18/01/2024 MANUTENZIONE ATTREZZATURE AREE VERDI;07/02/2024;2538;0;83;1;Spese correnti;3;Acquisto di beni e servizi;2;Acquisto di servizi;9;Manutenzione ordinaria e riparazioni;5;Manutenzione ordinaria e riparazioni di attrezzature;12/02/2024
361;1;9999999;5.836,04;5.836,04;CITTA' METROPOLITANA DI VENEZIA; ;rif.prot.54842/2023 RIMBORSO SUA SPESE GARA LAVORI PALESTRA -;07/02/2024;8470;0;859;2;Spese in conto capitale;2;Investimenti fissi lordi e acquisto di terreni;1;Beni materiali;9;Beni immobili;16;Impianti sportivi;12/02/2024
362;1;9999999;1.070,88;1.070,88;CITTA' METROPOLITANA DI VENEZIA; ;rif.prot. n.9019/2023 RIMBORSO SUA SPESE GARA LAVORI PALESTRA;07/02/2024;8470;0;859;2;Spese in conto capitale;2;Investimenti fissi lordi e acquisto di terreni;1;Beni materiali;9;Beni immobili;16;Impianti sportivi;12/02/2024
363;1;9999999;2.175,60;2.175,60;DOLOMITI ENERGIA SPA;9740529ACE;SALDO Fatt.n. 42400457796  del 23/01/2024 DICEMBRE 2023 CONSUMI SEDE MUNICIPALE;07/02/2024;134;31;939;1;Spese correnti;3;Acquisto di beni e servizi;2;Acquisto di servizi;5;Utenze e canoni;6;Gas;12/02/2024
364;1;9999999;262,61;262,61;DOLOMITI ENERGIA SPA;9740529ACE;SALDO Fatt.n. 42400457799  del 23/01/2024 DICEMBRE 2023 CONSUMI ALLOGGIO VIA DON GALLERANI CALTANA;07/02/2024;134;31;939;1;Spese correnti;3;Acquisto di beni e servizi;2;Acquisto di servizi;5;Utenze e canoni;6;Gas;12/02/2024
365;1;9999999;3,47;3,47;DOLOMITI ENERGIA SPA;9740529ACE;SALDO Fatt.n. 42400457798  del 23/01/2024 DICEMBRE 2023 CONSUMI IMMOBILE COMUNALE VIA OLIMPIA SMS;07/02/2024;134;31;939;1;Spese correnti;3;Acquisto di beni e servizi;2;Acquisto di servizi;5;Utenze e canoni;6;Gas;12/02/2024
366;1;9999999;2.995,57;2.995,57;DOLOMITI ENERGIA SPA;9740529ACE;SALDO Fatt.n. 42400457794  del 23/01/2024 DICEMBRE 2023 CONSUMI SC. ELEM. CALTANA;07/02/2024;1334;30;940;1;Spese correnti;3;Acquisto di beni e servizi;2;Acquisto di servizi;5;Utenze e canoni;6;Gas;12/02/2024
367;1;9999999;7.478,74;7.478,74;DOLOMITI ENERGIA SPA;9740529ACE;SALDO Fatt.n. 42400457800  del 23/01/2024 DICEMBRE 2023 CONSUMI SC. ELEM - SC. MEDIA SMS;07/02/2024;1334;30;940;1;Spese correnti;3;Acquisto di beni e servizi;2;Acquisto di servizi;5;Utenze e canoni;6;Gas;12/02/2024
368;1;9999999;713,6;713,6;DOLOMITI ENERGIA SPA;9740529ACE;ACCONTO Fatt.n. 42400457791  del 23/01/2024 DICEMBRE 2023 CONSUMI SC. ELEM - PALESTRA STIGLIANO;07/02/2024;1334;30;940;1;Spese correnti;3;Acquisto di beni e servizi;2;Acquisto di servizi;5;Utenze e canoni;6;Gas;12/02/2024
369;1;9999999;764,24;764,24;DOLOMITI ENERGIA SPA;9740529ACE;ACCONTO Fatt.n. 42400457791  del 23/01/2024 DICEMBRE 2023 CONSUMI SC. ELEM - PALESTRA STIGLIANO;07/02/2024;1334;30;940;1;Spese correnti;3;Acquisto di beni e servizi;2;Acquisto di servizi;5;Utenze e canoni;6;Gas;12/02/2024
370;1;9999999;677;677;DOLOMITI ENERGIA SPA;9740529ACE;ACCONTO Fatt.n. 42400457795  del 23/01/2024 DICEMBRE 2023 CONSUMI SC. ELEM - PALESTRA CASELLE;07/02/2024;1334;30;940;1;Spese correnti;3;Acquisto di beni e servizi;2;Acquisto di servizi;5;Utenze e canoni;6;Gas;12/02/2024
371;1;9999999;2.028,43;2.028,43;DOLOMITI ENERGIA SPA;9740529ACE;ACCONTO Fatt.n. 42400457795  del 23/01/2024 DICEMBRE 2023 CONSUMI SC. ELEM - PALESTRA CASELLE;07/02/2024;1334;30;940;1;Spese correnti;3;Acquisto di beni e servizi;2;Acquisto di servizi;5;Utenze e canoni;6;Gas;12/02/2024
372;1;9999999;1.166,07;1.166,07;DOLOMITI ENERGIA SPA;9740529ACE;ACCONTO Fatt.n. 42400457801  del 23/01/2024 DICEMBRE 2023 CONSUMI PALESTRA SMS;07/02/2024;1334;30;940;1;Spese correnti;3;Acquisto di beni e servizi;2;Acquisto di servizi;5;Utenze e canoni;6;Gas;12/02/2024
373;1;9999999;954;954;DOLOMITI ENERGIA SPA;9740529ACE;ACCONTO Fatt.n. 42400457792  del 23/01/2024 DICEMBRE 2023 CONSUMI SC. ELEM - PALESTRA VETERNIGO;07/02/2024;1334;30;940;1;Spese correnti;3;Acquisto di beni e servizi;2;Acquisto di servizi;5;Utenze e canoni;6;Gas;12/02/2024
374;1;9999999;1.559,80;1.559,80;DOLOMITI ENERGIA SPA;9740529ACE;ACCONTO Fatt.n. 42400457792  del 23/01/2024 DICEMBRE 2023 CONSUMI SC. ELEM - PALESTRA VETERNIGO;07/02/2024;1334;30;940;1;Spese correnti;3;Acquisto di beni e servizi;2;Acquisto di servizi;5;Utenze e canoni;6;Gas;12/02/2024
375;1;9999999;1.456,43;1.456,43;DOLOMITI ENERGIA SPA;9740529ACE;ACCONTO Fatt.n. 42400457803  del 23/01/2024 DICEMBRE 2023 CONSUMI PALESTRA CALTANA;07/02/2024;1334;30;940;1;Spese correnti;3;Acquisto di beni e servizi;2;Acquisto di servizi;5;Utenze e canoni;6;Gas;12/02/2024
376;1;9999999;602;602;DOLOMITI ENERGIA SPA;9740529ACE;ACCONTO Fatt.n. 42400457797  del 23/01/2024 DICEMBRE 2023 CONSUMI SC. ELEM - PALESTRA - ASILO S.ANGELO;07/02/2024;1334;30;940;1;Spese correnti;3;Acquisto di beni e servizi;2;Acquisto di servizi;5;Utenze e canoni;6;Gas;12/02/2024
377;1;9999999;1.807,57;1.807,57;DOLOMITI ENERGIA SPA;9740529ACE;ACCONTO Fatt.n. 42400457797  del 23/01/2024 DICEMBRE 2023 CONSUMI SC. ELEM - PALESTRA - ASILO S.ANGELO;07/02/2024;1334;30;940;1;Spese correnti;3;Acquisto di beni e servizi;2;Acquisto di servizi;5;Utenze e canoni;6;Gas;12/02/2024
378;1;9999999;3.963,17;3.963,17;DOLOMITI ENERGIA SPA;9740529ACE;SALDO Fatt.n. 42400457793  del 23/01/2024 DICEMBRE 2023 CONSUMI VILLA FARSETTI;07/02/2024;1834;0;941;1;Spese correnti;3;Acquisto di beni e servizi;2;Acquisto di servizi;5;Utenze e canoni;6;Gas;12/02/2024
379;1;9999999;551,42;551,42;DOLOMITI ENERGIA SPA;9740529ACE;SALDO Fatt.n. 42400457804  del 23/01/2024 DICEMBRE 2023 CONSUMI IMP.SPORT. PARROCCHIA CASELLE;07/02/2024;1934;0;942;1;Spese correnti;3;Acquisto di beni e servizi;2;Acquisto di servizi;5;Utenze e canoni;6;Gas;12/02/2024
380;1;9999999;1.070,40;1.070,40;DOLOMITI ENERGIA SPA;9740529ACE;SALDO Fatt.n. 42400457791  del 23/01/2024 DICEMBRE 2023 CONSUMI SC. ELEM - PALESTRA STIGLIANO;07/02/2024;1934;0;942;1;Spese correnti;3;Acquisto di beni e servizi;2;Acquisto di servizi;5;Utenze e canoni;6;Gas;12/02/2024
381;1;9999999;677;677;DOLOMITI ENERGIA SPA;9740529ACE;SALDO Fatt.n. 42400457795  del 23/01/2024 DICEMBRE 2023 CONSUMI SC. ELEM - PALESTRA CASELLE;07/02/2024;1934;0;942;1;Spese correnti;3;Acquisto di beni e servizi;2;Acquisto di servizi;5;Utenze e canoni;6;Gas;12/02/2024
382;1;9999999;1.166,06;1.166,06;DOLOMITI ENERGIA SPA;9740529ACE;SALDO Fatt.n. 42400457801  del 23/01/2024 DICEMBRE 2023 CONSUMI PALESTRA SMS;07/02/2024;1934;0;942;1;Spese correnti;3;Acquisto di beni e servizi;2;Acquisto di servizi;5;Utenze e canoni;6;Gas;12/02/2024
383;1;9999999;954;954;DOLOMITI ENERGIA SPA;9740529ACE;SALDO Fatt.n. 42400457792  del 23/01/2024 DICEMBRE 2023 CONSUMI SC. ELEM - PALESTRA VETERNIGO;07/02/2024;1934;0;942;1;Spese correnti;3;Acquisto di beni e servizi;2;Acquisto di servizi;5;Utenze e canoni;6;Gas;12/02/2024
384;1;9999999;1.456,43;1.456,43;DOLOMITI ENERGIA SPA;9740529ACE;SALDO Fatt.n. 42400457803  del 23/01/2024 DICEMBRE 2023 CONSUMI PALESTRA CALTANA;07/02/2024;1934;0;942;1;Spese correnti;3;Acquisto di beni e servizi;2;Acquisto di servizi;5;Utenze e canoni;6;Gas;12/02/2024
385;1;9999999;602;602;DOLOMITI ENERGIA SPA;9740529ACE;SALDO Fatt.n. 42400457797  del 23/01/2024 DICEMBRE 2023 CONSUMI SC. ELEM - PALESTRA - ASILO S.ANGELO;07/02/2024;1934;0;942;1;Spese correnti;3;Acquisto di beni e servizi;2;Acquisto di servizi;5;Utenze e canoni;6;Gas;12/02/2024
386;1;9999999;902,82;902,82;DOLOMITI ENERGIA SPA;9740529ACE;SALDO Fatt.n. 42400457802  del 23/01/2024 DICEMBRE 2023 CONSUMI MAGAZZINO COMUNALE;07/02/2024;3534;0;943;1;Spese correnti;3;Acquisto di beni e servizi;2;Acquisto di servizi;5;Utenze e canoni;6;Gas;12/02/2024
387;1;9999999;370;370;OMESSO NOMINATIVO NEL RISPETTO DELLA NORMATIVA SULLA PROTEZIONE DATI PERSONALI; ;RETTE SCUOLA MATERNA NOV/DIC.2023 MINORE S.L.;07/02/2024;4157;0;892;1;Spese correnti;4;Trasferimenti correnti;2;Trasferimenti correnti a Famiglie;2;Interventi assistenziali;999;Altri assegni e sussidi assistenziali;12/02/2024
388;1;9999999;370;370;OMESSO NOMINATIVO NEL RISPETTO DELLA NORMATIVA SULLA PROTEZIONE DATI PERSONALI; ;RETTE SCUOLA MATERNA NOV.DIC.2023 MINORE D.E.G.;07/02/2024;4157;0;995;1;Spese correnti;4;Trasferimenti correnti;2;Trasferimenti correnti a Famiglie;2;Interventi assistenziali;999;Altri assegni e sussidi assistenziali;12/02/2024
389;1;9999999;360;360;OMESSO NOMINATIVO NEL RISPETTO DELLA NORMATIVA SULLA PROTEZIONE DATI PERSONALI; ;RETTE SCUOLA MATERNA NOV.DIC.2023 MINORE B.A.;07/02/2024;4157;0;893;1;Spese correnti;4;Trasferimenti correnti;2;Trasferimenti correnti a Famiglie;2;Interventi assistenziali;999;Altri assegni e sussidi assistenziali;12/02/2024
390;1;9999999;360;360;OMESSO NOMINATIVO NEL RISPETTO DELLA NORMATIVA SULLA PROTEZIONE DATI PERSONALI; ;RETTE SCUOLA MATERNA NOV.DIC. 2023 MINORE B.N.;07/02/2024;4157;0;894;1;Spese correnti;4;Trasferimenti correnti;2;Trasferimenti correnti a Famiglie;2;Interventi assistenziali;999;Altri assegni e sussidi assistenziali;12/02/2024
391;1;9999999;240;240;OMESSO NOMINATIVO NEL RISPETTO DELLA NORMATIVA SULLA PROTEZIONE DATI PERSONALI; ;BUONI MENSA DOPOSCUOLA SETT.DIC.2023 MINORE G.F.;07/02/2024;4157;0;899;1;Spese correnti;4;Trasferimenti correnti;2;Trasferimenti correnti a Famiglie;2;Interventi assistenziali;999;Altri assegni e sussidi assistenziali;12/02/2024
392;1;9999999;271;271;OMESSO NOMINATIVO NEL RISPETTO DELLA NORMATIVA SULLA PROTEZIONE DATI PERSONALI; ;BUONI MENSA DOPOSCUOLA SETT.DIC.2023 MINORE D.E.;07/02/2024;4157;0;900;1;Spese correnti;4;Trasferimenti correnti;2;Trasferimenti correnti a Famiglie;2;Interventi assistenziali;999;Altri assegni e sussidi assistenziali;12/02/2024
393;1;9999999;440;440;OMESSO NOMINATIVO NEL RISPETTO DELLA NORMATIVA SULLA PROTEZIONE DATI PERSONALI; ;BUONI MENSA DOPOSCUOLA SETT.DIC.2023 MINORE M.E.M.;07/02/2024;4157;0;896;1;Spese correnti;4;Trasferimenti correnti;2;Trasferimenti correnti a Famiglie;2;Interventi assistenziali;999;Altri assegni e sussidi assistenziali;12/02/2024
394;1;9999999;350;350;OMESSO NOMINATIVO NEL RISPETTO DELLA NORMATIVA SULLA PROTEZIONE DATI PERSONALI; ;BUONI MENSA DOPOSCUOLA SETT.DIC. 2023 MINORE M.S.;07/02/2024;4157;0;897;1;Spese correnti;4;Trasferimenti correnti;2;Trasferimenti correnti a Famiglie;2;Interventi assistenziali;999;Altri assegni e sussidi assistenziali;12/02/2024
396;1;9999999;320;320;OMESSO NOMINATIVO NEL RISPETTO DELLA NORMATIVA SULLA PROTEZIONE DATI PERSONALI; ;RETTA DOPOSCUOLA NOV.DIC.2023 MINORE L.K.;07/02/2024;4157;0;895;1;Spese correnti;4;Trasferimenti correnti;2;Trasferimenti correnti a Famiglie;2;Interventi assistenziali;999;Altri assegni e sussidi assistenziali;12/02/2024
400;1;9999999;143,65;143,65;AIDEM SRL;B010024160;SALDO Fatt.n. 32/PA  del 02/02/2024 SEMINARIO ON LINE - LA NUOVA PIATTAFORMA SEND PER LA NOTOFICA DEGITALE DEGLI ATTI - PARTECIPANTE S.S.;08/02/2024;833;0;47;1;Spese correnti;3;Acquisto di beni e servizi;2;Acquisto di servizi;4;Acquisto di servizi per formazione e addestramento del personale dell'ente;4;Acquisto di servizi per formazione obbligatoria;13/02/2024
401;1;9999999;122;122;MPLC ITALIA SRL;B02D7DB6D9;SALDO Fatt.n. FATTPA 0602024  del 01/02/2024 GIORNATA DELLA MEMORIA 2024: PROIEZIONE DEL FILM LA SCELTA DI SOPHIE;08/02/2024;1831;0;43;1;Spese correnti;3;Acquisto di beni e servizi;2;Acquisto di servizi;2;Organizzazione eventi, pubblicita` e servizi per trasferta;999;Altre spese per relazioni pubbliche, convegni e mostre, pubblicita` n.a.c;13/02/2024
402;1;9999999;195,21;195,21;OMESSO NOMINATIVO NEL RISPETTO DELLA NORMATIVA SULLA PROTEZIONE DATI PERSONALI; ;CONTRIBUTO REGIONALE BUONO-LIBRI ANNO SCOLASTICO 2023/2024.;08/02/2024;1357;50;30;1;Spese correnti;4;Trasferimenti correnti;2;Trasferimenti correnti a Famiglie;5;Altri trasferimenti a famiglie;999;Altri trasferimenti a famiglie n.a.c.;13/02/2024
403;1;9999999;85,34;85,34;OMESSO NOMINATIVO NEL RISPETTO DELLA NORMATIVA SULLA PROTEZIONE DATI PERSONALI; ;CONTRIBUTO REGIONALE BUONO-LIBRI ANNO SCOLASTICO 2023/2024.;08/02/2024;1357;50;30;1;Spese correnti;4;Trasferimenti correnti;2;Trasferimenti correnti a Famiglie;5;Altri trasferimenti a famiglie;999;Altri trasferimenti a famiglie n.a.c.;13/02/2024
404;1;9999999;185,72;185,72;OMESSO NOMINATIVO NEL RISPETTO DELLA NORMATIVA SULLA PROTEZIONE DATI PERSONALI; ;CONTRIBUTO REGIONALE BUONO-LIBRI ANNO SCOLASTICO 2023/2024.;08/02/2024;1357;50;30;1;Spese correnti;4;Trasferimenti correnti;2;Trasferimenti correnti a Famiglie;5;Altri trasferimenti a famiglie;999;Altri trasferimenti a famiglie n.a.c.;13/02/2024
405;1;9999999;93,51;93,51;OMESSO NOMINATIVO NEL RISPETTO DELLA NORMATIVA SULLA PROTEZIONE DATI PERSONALI; ;CONTRIBUTO REGIONALE BUONO-LIBRI ANNO SCOLASTICO 2023/2024.;08/02/2024;1357;50;30;1;Spese correnti;4;Trasferimenti correnti;2;Trasferimenti correnti a Famiglie;5;Altri trasferimenti a famiglie;999;Altri trasferimenti a famiglie n.a.c.;13/02/2024
406;1;9999999;200;200;OMESSO NOMINATIVO NEL RISPETTO DELLA NORMATIVA SULLA PROTEZIONE DATI PERSONALI; ;CONTRIBUTO REGIONALE BUONO-LIBRI ANNO SCOLASTICO 2023/2024.;08/02/2024;1357;50;30;1;Spese correnti;4;Trasferimenti correnti;2;Trasferimenti correnti a Famiglie;5;Altri trasferimenti a famiglie;999;Altri trasferimenti a famiglie n.a.c.;13/02/2024
407;1;9999999;93,51;93,51;OMESSO NOMINATIVO NEL RISPETTO DELLA NORMATIVA SULLA PROTEZIONE DATI PERSONALI; ;CONTRIBUTO REGIONALE BUONO-LIBRI ANNO SCOLASTICO 2023/2024.;08/02/2024;1357;50;30;1;Spese correnti;4;Trasferimenti correnti;2;Trasferimenti correnti a Famiglie;5;Altri trasferimenti a famiglie;999;Altri trasferimenti a famiglie n.a.c.;13/02/2024
408;1;9999999;200;200;OMESSO NOMINATIVO NEL RISPETTO DELLA NORMATIVA SULLA PROTEZIONE DATI PERSONALI; ;CONTRIBUTO REGIONALE BUONO-LIBRI ANNO SCOLASTICO 2023/2024.;08/02/2024;1357;50;30;1;Spese correnti;4;Trasferimenti correnti;2;Trasferimenti correnti a Famiglie;5;Altri trasferimenti a famiglie;999;Altri trasferimenti a famiglie n.a.c.;13/02/2024
409;1;9999999;93,51;93,51;OMESSO NOMINATIVO NEL RISPETTO DELLA NORMATIVA SULLA PROTEZIONE DATI PERSONALI; ;CONTRIBUTO REGIONALE BUONO-LIBRI ANNO SCOLASTICO 2023/2024.;08/02/2024;1357;50;30;1;Spese correnti;4;Trasferimenti correnti;2;Trasferimenti correnti a Famiglie;5;Altri trasferimenti a famiglie;999;Altri trasferimenti a famiglie n.a.c.;13/02/2024
410;1;9999999;148,15;148,15;OMESSO NOMINATIVO NEL RISPETTO DELLA NORMATIVA SULLA PROTEZIONE DATI PERSONALI; ;CONTRIBUTO REGIONALE BUONO-LIBRI ANNO SCOLASTICO 2023/2024.;08/02/2024;1357;50;30;1;Spese correnti;4;Trasferimenti correnti;2;Trasferimenti correnti a Famiglie;5;Altri trasferimenti a famiglie;999;Altri trasferimenti a famiglie n.a.c.;13/02/2024
411;1;9999999;279,1;279,1;OMESSO NOMINATIVO NEL RISPETTO DELLA NORMATIVA SULLA PROTEZIONE DATI PERSONALI; ;CONTRIBUTO REGIONALE BUONO-LIBRI ANNO SCOLASTICO 2023/2024.;08/02/2024;1357;50;30;1;Spese correnti;4;Trasferimenti correnti;2;Trasferimenti correnti a Famiglie;5;Altri trasferimenti a famiglie;999;Altri trasferimenti a famiglie n.a.c.;13/02/2024
412;1;9999999;52,52;52,52;OMESSO NOMINATIVO NEL RISPETTO DELLA NORMATIVA SULLA PROTEZIONE DATI PERSONALI; ;CONTRIBUTO REGIONALE BUONO-LIBRI ANNO SCOLASTICO 2023/2024.;08/02/2024;1357;50;30;1;Spese correnti;4;Trasferimenti correnti;2;Trasferimenti correnti a Famiglie;5;Altri trasferimenti a famiglie;999;Altri trasferimenti a famiglie n.a.c.;13/02/2024
413;1;9999999;93,51;93,51;OMESSO NOMINATIVO NEL RISPETTO DELLA NORMATIVA SULLA PROTEZIONE DATI PERSONALI; ;CONTRIBUTO REGIONALE BUONO-LIBRI ANNO SCOLASTICO 2023/2024.;08/02/2024;1357;50;30;1;Spese correnti;4;Trasferimenti correnti;2;Trasferimenti correnti a Famiglie;5;Altri trasferimenti a famiglie;999;Altri trasferimenti a famiglie n.a.c.;13/02/2024
414;1;9999999;380;380;OMESSO NOMINATIVO NEL RISPETTO DELLA NORMATIVA SULLA PROTEZIONE DATI PERSONALI; ;CONTRIBUTO REGIONALE BUONO-LIBRI ANNO SCOLASTICO 2023/2024.;08/02/2024;1357;50;30;1;Spese correnti;4;Trasferimenti correnti;2;Trasferimenti correnti a Famiglie;5;Altri trasferimenti a famiglie;999;Altri trasferimenti a famiglie n.a.c.;13/02/2024
415;1;9999999;93,51;93,51;OMESSO NOMINATIVO NEL RISPETTO DELLA NORMATIVA SULLA PROTEZIONE DATI PERSONALI; ;CONTRIBUTO REGIONALE BUONO-LIBRI ANNO SCOLASTICO 2023/2024.;08/02/2024;1357;50;30;1;Spese correnti;4;Trasferimenti correnti;2;Trasferimenti correnti a Famiglie;5;Altri trasferimenti a famiglie;999;Altri trasferimenti a famiglie n.a.c.;13/02/2024
416;1;9999999;195,61;195,61;OMESSO NOMINATIVO NEL RISPETTO DELLA NORMATIVA SULLA PROTEZIONE DATI PERSONALI; ;CONTRIBUTO REGIONALE BUONO-LIBRI ANNO SCOLASTICO 2023/2024.;08/02/2024;1357;50;30;1;Spese correnti;4;Trasferimenti correnti;2;Trasferimenti correnti a Famiglie;5;Altri trasferimenti a famiglie;999;Altri trasferimenti a famiglie n.a.c.;13/02/2024
417;1;9999999;49,31;49,31;OMESSO NOMINATIVO NEL RISPETTO DELLA NORMATIVA SULLA PROTEZIONE DATI PERSONALI; ;CONTRIBUTO REGIONALE BUONO-LIBRI ANNO SCOLASTICO 2023/2024.;08/02/2024;1357;50;30;1;Spese correnti;4;Trasferimenti correnti;2;Trasferimenti correnti a Famiglie;5;Altri trasferimenti a famiglie;999;Altri trasferimenti a famiglie n.a.c.;13/02/2024
418;1;9999999;231,7;231,7;OMESSO NOMINATIVO NEL RISPETTO DELLA NORMATIVA SULLA PROTEZIONE DATI PERSONALI; ;CONTRIBUTO REGIONALE BUONO-LIBRI ANNO SCOLASTICO 2023/2024.;08/02/2024;1357;50;30;1;Spese correnti;4;Trasferimenti correnti;2;Trasferimenti correnti a Famiglie;5;Altri trasferimenti a famiglie;999;Altri trasferimenti a famiglie n.a.c.;13/02/2024
419;1;9999999;292,4;292,4;OMESSO NOMINATIVO NEL RISPETTO DELLA NORMATIVA SULLA PROTEZIONE DATI PERSONALI; ;CONTRIBUTO REGIONALE BUONO-LIBRI ANNO SCOLASTICO 2023/2024.;08/02/2024;1357;50;30;1;Spese correnti;4;Trasferimenti correnti;2;Trasferimenti correnti a Famiglie;5;Altri trasferimenti a famiglie;999;Altri trasferimenti a famiglie n.a.c.;13/02/2024
420;1;9999999;174,92;174,92;OMESSO NOMINATIVO NEL RISPETTO DELLA NORMATIVA SULLA PROTEZIONE DATI PERSONALI; ;CONTRIBUTO REGIONALE BUONO-LIBRI ANNO SCOLASTICO 2023/2024.;08/02/2024;1357;50;30;1;Spese correnti;4;Trasferimenti correnti;2;Trasferimenti correnti a Famiglie;5;Altri trasferimenti a famiglie;999;Altri trasferimenti a famiglie n.a.c.;13/02/2024
421;1;9999999;187,02;187,02;OMESSO NOMINATIVO NEL RISPETTO DELLA NORMATIVA SULLA PROTEZIONE DATI PERSONALI; ;CONTRIBUTO REGIONALE BUONO-LIBRI ANNO SCOLASTICO 2023/2024.;08/02/2024;1357;50;30;1;Spese correnti;4;Trasferimenti correnti;2;Trasferimenti correnti a Famiglie;5;Altri trasferimenti a famiglie;999;Altri trasferimenti a famiglie n.a.c.;13/02/2024
422;1;9999999;200;200;OMESSO NOMINATIVO NEL RISPETTO DELLA NORMATIVA SULLA PROTEZIONE DATI PERSONALI; ;CONTRIBUTO REGIONALE BUONO-LIBRI ANNO SCOLASTICO 2023/2024.;08/02/2024;1357;50;30;1;Spese correnti;4;Trasferimenti correnti;2;Trasferimenti correnti a Famiglie;5;Altri trasferimenti a famiglie;999;Altri trasferimenti a famiglie n.a.c.;13/02/2024
423;1;9999999;143,74;143,74;OMESSO NOMINATIVO NEL RISPETTO DELLA NORMATIVA SULLA PROTEZIONE DATI PERSONALI; ;CONTRIBUTO REGIONALE BUONO-LIBRI ANNO SCOLASTICO 2023/2024.;08/02/2024;1357;50;30;1;Spese correnti;4;Trasferimenti correnti;2;Trasferimenti correnti a Famiglie;5;Altri trasferimenti a famiglie;999;Altri trasferimenti a famiglie n.a.c.;13/02/2024
424;1;9999999;83,88;83,88;OMESSO NOMINATIVO NEL RISPETTO DELLA NORMATIVA SULLA PROTEZIONE DATI PERSONALI; ;CONTRIBUTO REGIONALE BUONO-LIBRI ANNO SCOLASTICO 2023/2024.;08/02/2024;1357;50;30;1;Spese correnti;4;Trasferimenti correnti;2;Trasferimenti correnti a Famiglie;5;Altri trasferimenti a famiglie;999;Altri trasferimenti a famiglie n.a.c.;13/02/2024
425;1;9999999;93,51;93,51;OMESSO NOMINATIVO NEL RISPETTO DELLA NORMATIVA SULLA PROTEZIONE DATI PERSONALI; ;CONTRIBUTO REGIONALE BUONO-LIBRI ANNO SCOLASTICO 2023/2024.;08/02/2024;1357;50;30;1;Spese correnti;4;Trasferimenti correnti;2;Trasferimenti correnti a Famiglie;5;Altri trasferimenti a famiglie;999;Altri trasferimenti a famiglie n.a.c.;13/02/2024
426;1;9999999;326,13;326,13;OMESSO NOMINATIVO NEL RISPETTO DELLA NORMATIVA SULLA PROTEZIONE DATI PERSONALI; ;CONTRIBUTO REGIONALE BUONO-LIBRI ANNO SCOLASTICO 2023/2024.;08/02/2024;1357;50;30;1;Spese correnti;4;Trasferimenti correnti;2;Trasferimenti correnti a Famiglie;5;Altri trasferimenti a famiglie;999;Altri trasferimenti a famiglie n.a.c.;13/02/2024
427;1;9999999;146,14;146,14;OMESSO NOMINATIVO NEL RISPETTO DELLA NORMATIVA SULLA PROTEZIONE DATI PERSONALI; ;CONTRIBUTO REGIONALE BUONO-LIBRI ANNO SCOLASTICO 2023/2024.;08/02/2024;1357;50;30;1;Spese correnti;4;Trasferimenti correnti;2;Trasferimenti correnti a Famiglie;5;Altri trasferimenti a famiglie;999;Altri trasferimenti a famiglie n.a.c.;13/02/2024
428;1;9999999;200;200;OMESSO NOMINATIVO NEL RISPETTO DELLA NORMATIVA SULLA PROTEZIONE DATI PERSONALI; ;CONTRIBUTO REGIONALE BUONO-LIBRI ANNO SCOLASTICO 2023/2024.;08/02/2024;1357;50;30;1;Spese correnti;4;Trasferimenti correnti;2;Trasferimenti correnti a Famiglie;5;Altri trasferimenti a famiglie;999;Altri trasferimenti a famiglie n.a.c.;13/02/2024
429;1;9999999;73,44;73,44;OMESSO NOMINATIVO NEL RISPETTO DELLA NORMATIVA SULLA PROTEZIONE DATI PERSONALI; ;CONTRIBUTO REGIONALE BUONO-LIBRI ANNO SCOLASTICO 2023/2024.;08/02/2024;1357;50;30;1;Spese correnti;4;Trasferimenti correnti;2;Trasferimenti correnti a Famiglie;5;Altri trasferimenti a famiglie;999;Altri trasferimenti a famiglie n.a.c.;13/02/2024
430;1;9999999;93,51;93,51;OMESSO NOMINATIVO NEL RISPETTO DELLA NORMATIVA SULLA PROTEZIONE DATI PERSONALI; ;CONTRIBUTO REGIONALE BUONO-LIBRI ANNO SCOLASTICO 2023/2024.;08/02/2024;1357;50;30;1;Spese correnti;4;Trasferimenti correnti;2;Trasferimenti correnti a Famiglie;5;Altri trasferimenti a famiglie;999;Altri trasferimenti a famiglie n.a.c.;13/02/2024
431;1;9999999;93,51;93,51;OMESSO NOMINATIVO NEL RISPETTO DELLA NORMATIVA SULLA PROTEZIONE DATI PERSONALI; ;CONTRIBUTO REGIONALE BUONO-LIBRI ANNO SCOLASTICO 2023/2024.;08/02/2024;1357;50;30;1;Spese correnti;4;Trasferimenti correnti;2;Trasferimenti correnti a Famiglie;5;Altri trasferimenti a famiglie;999;Altri trasferimenti a famiglie n.a.c.;13/02/2024
432;1;9999999;77,24;77,24;OMESSO NOMINATIVO NEL RISPETTO DELLA NORMATIVA SULLA PROTEZIONE DATI PERSONALI; ;CONTRIBUTO REGIONALE BUONO-LIBRI ANNO SCOLASTICO 2023/2024.;08/02/2024;1357;50;30;1;Spese correnti;4;Trasferimenti correnti;2;Trasferimenti correnti a Famiglie;5;Altri trasferimenti a famiglie;999;Altri trasferimenti a famiglie n.a.c.;13/02/2024
433;1;9999999;187,02;187,02;OMESSO NOMINATIVO NEL RISPETTO DELLA NORMATIVA SULLA PROTEZIONE DATI PERSONALI; ;CONTRIBUTO REGIONALE BUONO-LIBRI ANNO SCOLASTICO 2023/2024.;08/02/2024;1357;50;30;1;Spese correnti;4;Trasferimenti correnti;2;Trasferimenti correnti a Famiglie;5;Altri trasferimenti a famiglie;999;Altri trasferimenti a famiglie n.a.c.;13/02/2024
434;1;9999999;142;142;OMESSO NOMINATIVO NEL RISPETTO DELLA NORMATIVA SULLA PROTEZIONE DATI PERSONALI; ;CONTRIBUTO REGIONALE BUONO-LIBRI ANNO SCOLASTICO 2023/2024.;08/02/2024;1357;50;30;1;Spese correnti;4;Trasferimenti correnti;2;Trasferimenti correnti a Famiglie;5;Altri trasferimenti a famiglie;999;Altri trasferimenti a famiglie n.a.c.;13/02/2024
435;1;9999999;200;200;OMESSO NOMINATIVO NEL RISPETTO DELLA NORMATIVA SULLA PROTEZIONE DATI PERSONALI; ;CONTRIBUTO REGIONALE BUONO-LIBRI ANNO SCOLASTICO 2023/2024.;08/02/2024;1357;50;30;1;Spese correnti;4;Trasferimenti correnti;2;Trasferimenti correnti a Famiglie;5;Altri trasferimenti a famiglie;999;Altri trasferimenti a famiglie n.a.c.;13/02/2024
436;1;9999999;200;200;OMESSO NOMINATIVO NEL RISPETTO DELLA NORMATIVA SULLA PROTEZIONE DATI PERSONALI; ;CONTRIBUTO REGIONALE BUONO-LIBRI ANNO SCOLASTICO 2023/2024.;08/02/2024;1357;50;30;1;Spese correnti;4;Trasferimenti correnti;2;Trasferimenti correnti a Famiglie;5;Altri trasferimenti a famiglie;999;Altri trasferimenti a famiglie n.a.c.;13/02/2024
437;1;9999999;114,02;114,02;OMESSO NOMINATIVO NEL RISPETTO DELLA NORMATIVA SULLA PROTEZIONE DATI PERSONALI; ;CONTRIBUTO REGIONALE BUONO-LIBRI ANNO SCOLASTICO 2023/2024.;08/02/2024;1357;50;30;1;Spese correnti;4;Trasferimenti correnti;2;Trasferimenti correnti a Famiglie;5;Altri trasferimenti a famiglie;999;Altri trasferimenti a famiglie n.a.c.;13/02/2024
438;1;9999999;84,1;84,1;OMESSO NOMINATIVO NEL RISPETTO DELLA NORMATIVA SULLA PROTEZIONE DATI PERSONALI; ;CONTRIBUTO REGIONALE BUONO-LIBRI ANNO SCOLASTICO 2023/2024.;08/02/2024;1357;50;30;1;Spese correnti;4;Trasferimenti correnti;2;Trasferimenti correnti a Famiglie;5;Altri trasferimenti a famiglie;999;Altri trasferimenti a famiglie n.a.c.;13/02/2024
439;1;9999999;400;400;OMESSO NOMINATIVO NEL RISPETTO DELLA NORMATIVA SULLA PROTEZIONE DATI PERSONALI; ;CONTRIBUTO REGIONALE BUONO-LIBRI ANNO SCOLASTICO 2023/2024.;08/02/2024;1357;50;30;1;Spese correnti;4;Trasferimenti correnti;2;Trasferimenti correnti a Famiglie;5;Altri trasferimenti a famiglie;999;Altri trasferimenti a famiglie n.a.c.;13/02/2024
440;1;9999999;200;200;OMESSO NOMINATIVO NEL RISPETTO DELLA NORMATIVA SULLA PROTEZIONE DATI PERSONALI; ;CONTRIBUTO REGIONALE BUONO-LIBRI ANNO SCOLASTICO 2023/2024.;08/02/2024;1357;50;30;1;Spese correnti;4;Trasferimenti correnti;2;Trasferimenti correnti a Famiglie;5;Altri trasferimenti a famiglie;999;Altri trasferimenti a famiglie n.a.c.;13/02/2024
441;1;9999999;88,52;88,52;OMESSO NOMINATIVO NEL RISPETTO DELLA NORMATIVA SULLA PROTEZIONE DATI PERSONALI; ;CONTRIBUTO REGIONALE BUONO-LIBRI ANNO SCOLASTICO 2023/2024.;08/02/2024;1357;50;30;1;Spese correnti;4;Trasferimenti correnti;2;Trasferimenti correnti a Famiglie;5;Altri trasferimenti a famiglie;999;Altri trasferimenti a famiglie n.a.c.;13/02/2024
442;1;9999999;200;200;OMESSO NOMINATIVO NEL RISPETTO DELLA NORMATIVA SULLA PROTEZIONE DATI PERSONALI; ;CONTRIBUTO REGIONALE BUONO-LIBRI ANNO SCOLASTICO 2023/2024.;08/02/2024;1357;50;30;1;Spese correnti;4;Trasferimenti correnti;2;Trasferimenti correnti a Famiglie;5;Altri trasferimenti a famiglie;999;Altri trasferimenti a famiglie n.a.c.;13/02/2024
443;1;9999999;560,3;560,3;OMESSO NOMINATIVO NEL RISPETTO DELLA NORMATIVA SULLA PROTEZIONE DATI PERSONALI; ;CONTRIBUTO REGIONALE BUONO-LIBRI ANNO SCOLASTICO 2023/2024.;08/02/2024;1357;50;30;1;Spese correnti;4;Trasferimenti correnti;2;Trasferimenti correnti a Famiglie;5;Altri trasferimenti a famiglie;999;Altri trasferimenti a famiglie n.a.c.;13/02/2024
444;1;9999999;200;200;OMESSO NOMINATIVO NEL RISPETTO DELLA NORMATIVA SULLA PROTEZIONE DATI PERSONALI; ;CONTRIBUTO REGIONALE BUONO-LIBRI ANNO SCOLASTICO 2023/2024.;08/02/2024;1357;50;30;1;Spese correnti;4;Trasferimenti correnti;2;Trasferimenti correnti a Famiglie;5;Altri trasferimenti a famiglie;999;Altri trasferimenti a famiglie n.a.c.;13/02/2024
445;1;9999999;200;200;OMESSO NOMINATIVO NEL RISPETTO DELLA NORMATIVA SULLA PROTEZIONE DATI PERSONALI; ;CONTRIBUTO REGIONALE BUONO-LIBRI ANNO SCOLASTICO 2023/2024.;08/02/2024;1357;50;30;1;Spese correnti;4;Trasferimenti correnti;2;Trasferimenti correnti a Famiglie;5;Altri trasferimenti a famiglie;999;Altri trasferimenti a famiglie n.a.c.;13/02/2024
446;1;9999999;200;200;OMESSO NOMINATIVO NEL RISPETTO DELLA NORMATIVA SULLA PROTEZIONE DATI PERSONALI; ;CONTRIBUTO REGIONALE BUONO-LIBRI ANNO SCOLASTICO 2023/2024.;08/02/2024;1357;50;30;1;Spese correnti;4;Trasferimenti correnti;2;Trasferimenti correnti a Famiglie;5;Altri trasferimenti a famiglie;999;Altri trasferimenti a famiglie n.a.c.;13/02/2024
447;1;9999999;165,56;165,56;OMESSO NOMINATIVO NEL RISPETTO DELLA NORMATIVA SULLA PROTEZIONE DATI PERSONALI; ;CONTRIBUTO REGIONALE BUONO-LIBRI ANNO SCOLASTICO 2023/2024.;08/02/2024;1357;50;30;1;Spese correnti;4;Trasferimenti correnti;2;Trasferimenti correnti a Famiglie;5;Altri trasferimenti a famiglie;999;Altri trasferimenti a famiglie n.a.c.;13/02/2024
448;1;9999999;83,11;83,11;OMESSO NOMINATIVO NEL RISPETTO DELLA NORMATIVA SULLA PROTEZIONE DATI PERSONALI; ;CONTRIBUTO REGIONALE BUONO-LIBRI ANNO SCOLASTICO 2023/2024.;08/02/2024;1357;50;30;1;Spese correnti;4;Trasferimenti correnti;2;Trasferimenti correnti a Famiglie;5;Altri trasferimenti a famiglie;999;Altri trasferimenti a famiglie n.a.c.;13/02/2024
449;1;9999999;90,01;90,01;OMESSO NOMINATIVO NEL RISPETTO DELLA NORMATIVA SULLA PROTEZIONE DATI PERSONALI; ;CONTRIBUTO REGIONALE BUONO-LIBRI ANNO SCOLASTICO 2023/2024.;08/02/2024;1357;50;30;1;Spese correnti;4;Trasferimenti correnti;2;Trasferimenti correnti a Famiglie;5;Altri trasferimenti a famiglie;999;Altri trasferimenti a famiglie n.a.c.;13/02/2024
450;1;9999999;93,51;93,51;OMESSO NOMINATIVO NEL RISPETTO DELLA NORMATIVA SULLA PROTEZIONE DATI PERSONALI; ;CONTRIBUTO REGIONALE BUONO-LIBRI ANNO SCOLASTICO 2023/2024.;08/02/2024;1357;50;30;1;Spese correnti;4;Trasferimenti correnti;2;Trasferimenti correnti a Famiglie;5;Altri trasferimenti a famiglie;999;Altri trasferimenti a famiglie n.a.c.;13/02/2024
451;1;9999999;132,32;132,32;OMESSO NOMINATIVO NEL RISPETTO DELLA NORMATIVA SULLA PROTEZIONE DATI PERSONALI; ;CONTRIBUTO REGIONALE BUONO-LIBRI ANNO SCOLASTICO 2023/2024.;08/02/2024;1357;50;30;1;Spese correnti;4;Trasferimenti correnti;2;Trasferimenti correnti a Famiglie;5;Altri trasferimenti a famiglie;999;Altri trasferimenti a famiglie n.a.c.;13/02/2024
452;1;9999999;200;200;OMESSO NOMINATIVO NEL RISPETTO DELLA NORMATIVA SULLA PROTEZIONE DATI PERSONALI; ;CONTRIBUTO REGIONALE BUONO-LIBRI ANNO SCOLASTICO 2023/2024.;08/02/2024;1357;50;30;1;Spese correnti;4;Trasferimenti correnti;2;Trasferimenti correnti a Famiglie;5;Altri trasferimenti a famiglie;999;Altri trasferimenti a famiglie n.a.c.;13/02/2024
453;1;9999999;280;280;OMESSO NOMINATIVO NEL RISPETTO DELLA NORMATIVA SULLA PROTEZIONE DATI PERSONALI; ;CONTRIBUTO REGIONALE BUONO-LIBRI ANNO SCOLASTICO 2023/2024.;08/02/2024;1357;50;30;1;Spese correnti;4;Trasferimenti correnti;2;Trasferimenti correnti a Famiglie;5;Altri trasferimenti a famiglie;999;Altri trasferimenti a famiglie n.a.c.;13/02/2024
454;1;9999999;200;200;OMESSO NOMINATIVO NEL RISPETTO DELLA NORMATIVA SULLA PROTEZIONE DATI PERSONALI; ;CONTRIBUTO REGIONALE BUONO-LIBRI ANNO SCOLASTICO 2023/2024.;08/02/2024;1357;50;30;1;Spese correnti;4;Trasferimenti correnti;2;Trasferimenti correnti a Famiglie;5;Altri trasferimenti a famiglie;999;Altri trasferimenti a famiglie n.a.c.;13/02/2024
455;1;9999999;200;200;OMESSO NOMINATIVO NEL RISPETTO DELLA NORMATIVA SULLA PROTEZIONE DATI PERSONALI; ;CONTRIBUTO REGIONALE BUONO-LIBRI ANNO SCOLASTICO 2023/2024.;08/02/2024;1357;50;30;1;Spese correnti;4;Trasferimenti correnti;2;Trasferimenti correnti a Famiglie;5;Altri trasferimenti a famiglie;999;Altri trasferimenti a famiglie n.a.c.;13/02/2024
456;1;9999999;93,51;93,51;OMESSO NOMINATIVO NEL RISPETTO DELLA NORMATIVA SULLA PROTEZIONE DATI PERSONALI; ;CONTRIBUTO REGIONALE BUONO-LIBRI ANNO SCOLASTICO 2023/2024.;08/02/2024;1357;50;30;1;Spese correnti;4;Trasferimenti correnti;2;Trasferimenti correnti a Famiglie;5;Altri trasferimenti a famiglie;999;Altri trasferimenti a famiglie n.a.c.;13/02/2024
457;1;9999999;52,74;52,74;OMESSO NOMINATIVO NEL RISPETTO DELLA NORMATIVA SULLA PROTEZIONE DATI PERSONALI; ;CONTRIBUTO REGIONALE BUONO-LIBRI ANNO SCOLASTICO 2023/2024.;08/02/2024;1357;50;30;1;Spese correnti;4;Trasferimenti correnti;2;Trasferimenti correnti a Famiglie;5;Altri trasferimenti a famiglie;999;Altri trasferimenti a famiglie n.a.c.;13/02/2024
458;1;9999999;156,3;156,3;OMESSO NOMINATIVO NEL RISPETTO DELLA NORMATIVA SULLA PROTEZIONE DATI PERSONALI; ;CONTRIBUTO REGIONALE BUONO-LIBRI ANNO SCOLASTICO 2023/2024.;08/02/2024;1357;50;30;1;Spese correnti;4;Trasferimenti correnti;2;Trasferimenti correnti a Famiglie;5;Altri trasferimenti a famiglie;999;Altri trasferimenti a famiglie n.a.c.;13/02/2024
459;1;9999999;326,1;326,1;OMESSO NOMINATIVO NEL RISPETTO DELLA NORMATIVA SULLA PROTEZIONE DATI PERSONALI; ;CONTRIBUTO REGIONALE BUONO-LIBRI ANNO SCOLASTICO 2023/2024.;08/02/2024;1357;50;30;1;Spese correnti;4;Trasferimenti correnti;2;Trasferimenti correnti a Famiglie;5;Altri trasferimenti a famiglie;999;Altri trasferimenti a famiglie n.a.c.;13/02/2024
460;1;9999999;149,8;149,8;OMESSO NOMINATIVO NEL RISPETTO DELLA NORMATIVA SULLA PROTEZIONE DATI PERSONALI; ;CONTRIBUTO REGIONALE BUONO-LIBRI ANNO SCOLASTICO 2023/2024.;08/02/2024;1357;50;30;1;Spese correnti;4;Trasferimenti correnti;2;Trasferimenti correnti a Famiglie;5;Altri trasferimenti a famiglie;999;Altri trasferimenti a famiglie n.a.c.;13/02/2024
461;1;9999999;93,51;93,51;OMESSO NOMINATIVO NEL RISPETTO DELLA NORMATIVA SULLA PROTEZIONE DATI PERSONALI; ;CONTRIBUTO REGIONALE BUONO-LIBRI ANNO SCOLASTICO 2023/2024.;08/02/2024;1357;50;30;1;Spese correnti;4;Trasferimenti correnti;2;Trasferimenti correnti a Famiglie;5;Altri trasferimenti a famiglie;999;Altri trasferimenti a famiglie n.a.c.;13/02/2024
462;1;9999999;547,91;547,91;OMESSO NOMINATIVO NEL RISPETTO DELLA NORMATIVA SULLA PROTEZIONE DATI PERSONALI; ;CONTRIBUTO REGIONALE BUONO-LIBRI ANNO SCOLASTICO 2023/2024.;08/02/2024;1357;50;30;1;Spese correnti;4;Trasferimenti correnti;2;Trasferimenti correnti a Famiglie;5;Altri trasferimenti a famiglie;999;Altri trasferimenti a famiglie n.a.c.;13/02/2024
463;1;9999999;82,82;82,82;OMESSO NOMINATIVO NEL RISPETTO DELLA NORMATIVA SULLA PROTEZIONE DATI PERSONALI; ;CONTRIBUTO REGIONALE BUONO-LIBRI ANNO SCOLASTICO 2023/2024.;08/02/2024;1357;50;30;1;Spese correnti;4;Trasferimenti correnti;2;Trasferimenti correnti a Famiglie;5;Altri trasferimenti a famiglie;999;Altri trasferimenti a famiglie n.a.c.;13/02/2024
464;1;9999999;93,39;93,39;OMESSO NOMINATIVO NEL RISPETTO DELLA NORMATIVA SULLA PROTEZIONE DATI PERSONALI; ;CONTRIBUTO REGIONALE BUONO-LIBRI ANNO SCOLASTICO 2023/2024.;08/02/2024;1357;50;30;1;Spese correnti;4;Trasferimenti correnti;2;Trasferimenti correnti a Famiglie;5;Altri trasferimenti a famiglie;999;Altri trasferimenti a famiglie n.a.c.;13/02/2024
465;1;9999999;57,3;57,3;OMESSO NOMINATIVO NEL RISPETTO DELLA NORMATIVA SULLA PROTEZIONE DATI PERSONALI; ;CONTRIBUTO REGIONALE BUONO-LIBRI ANNO SCOLASTICO 2023/2024.;08/02/2024;1357;50;30;1;Spese correnti;4;Trasferimenti correnti;2;Trasferimenti correnti a Famiglie;5;Altri trasferimenti a famiglie;999;Altri trasferimenti a famiglie n.a.c.;13/02/2024
466;1;9999999;280,75;280,75;OMESSO NOMINATIVO NEL RISPETTO DELLA NORMATIVA SULLA PROTEZIONE DATI PERSONALI; ;CONTRIBUTO REGIONALE BUONO-LIBRI ANNO SCOLASTICO 2023/2024.;08/02/2024;1357;50;30;1;Spese correnti;4;Trasferimenti correnti;2;Trasferimenti correnti a Famiglie;5;Altri trasferimenti a famiglie;999;Altri trasferimenti a famiglie n.a.c.;13/02/2024
467;1;9999999;132,3;132,3;OMESSO NOMINATIVO NEL RISPETTO DELLA NORMATIVA SULLA PROTEZIONE DATI PERSONALI; ;CONTRIBUTO REGIONALE BUONO-LIBRI ANNO SCOLASTICO 2023/2024.;08/02/2024;1357;50;30;1;Spese correnti;4;Trasferimenti correnti;2;Trasferimenti correnti a Famiglie;5;Altri trasferimenti a famiglie;999;Altri trasferimenti a famiglie n.a.c.;13/02/2024
468;1;9999999;93,51;93,51;OMESSO NOMINATIVO NEL RISPETTO DELLA NORMATIVA SULLA PROTEZIONE DATI PERSONALI; ;CONTRIBUTO REGIONALE BUONO-LIBRI ANNO SCOLASTICO 2023/2024.;08/02/2024;1357;50;30;1;Spese correnti;4;Trasferimenti correnti;2;Trasferimenti correnti a Famiglie;5;Altri trasferimenti a famiglie;999;Altri trasferimenti a famiglie n.a.c.;13/02/2024
469;1;9999999;200;200;OMESSO NOMINATIVO NEL RISPETTO DELLA NORMATIVA SULLA PROTEZIONE DATI PERSONALI; ;CONTRIBUTO REGIONALE BUONO-LIBRI ANNO SCOLASTICO 2023/2024.;08/02/2024;1357;50;30;1;Spese correnti;4;Trasferimenti correnti;2;Trasferimenti correnti a Famiglie;5;Altri trasferimenti a famiglie;999;Altri trasferimenti a famiglie n.a.c.;13/02/2024
470;1;9999999;91,33;91,33;OMESSO NOMINATIVO NEL RISPETTO DELLA NORMATIVA SULLA PROTEZIONE DATI PERSONALI; ;CONTRIBUTO REGIONALE BUONO-LIBRI ANNO SCOLASTICO 2023/2024.;08/02/2024;1357;50;30;1;Spese correnti;4;Trasferimenti correnti;2;Trasferimenti correnti a Famiglie;5;Altri trasferimenti a famiglie;999;Altri trasferimenti a famiglie n.a.c.;13/02/2024
471;1;9999999;135,1;135,1;OMESSO NOMINATIVO NEL RISPETTO DELLA NORMATIVA SULLA PROTEZIONE DATI PERSONALI; ;CONTRIBUTO REGIONALE BUONO-LIBRI ANNO SCOLASTICO 2023/2024.;08/02/2024;1357;50;30;1;Spese correnti;4;Trasferimenti correnti;2;Trasferimenti correnti a Famiglie;5;Altri trasferimenti a famiglie;999;Altri trasferimenti a famiglie n.a.c.;13/02/2024
472;1;9999999;150;150;OMESSO NOMINATIVO NEL RISPETTO DELLA NORMATIVA SULLA PROTEZIONE DATI PERSONALI; ;CONTRIBUTO REGIONALE BUONO-LIBRI ANNO SCOLASTICO 2023/2024.;08/02/2024;1357;50;30;1;Spese correnti;4;Trasferimenti correnti;2;Trasferimenti correnti a Famiglie;5;Altri trasferimenti a famiglie;999;Altri trasferimenti a famiglie n.a.c.;13/02/2024
473;1;9999999;84,8;84,8;OMESSO NOMINATIVO NEL RISPETTO DELLA NORMATIVA SULLA PROTEZIONE DATI PERSONALI; ;CONTRIBUTO REGIONALE BUONO-LIBRI ANNO SCOLASTICO 2023/2024.;08/02/2024;1357;50;30;1;Spese correnti;4;Trasferimenti correnti;2;Trasferimenti correnti a Famiglie;5;Altri trasferimenti a famiglie;999;Altri trasferimenti a famiglie n.a.c.;13/02/2024
474;1;9999999;93,51;93,51;OMESSO NOMINATIVO NEL RISPETTO DELLA NORMATIVA SULLA PROTEZIONE DATI PERSONALI; ;CONTRIBUTO REGIONALE BUONO-LIBRI ANNO SCOLASTICO 2023/2024.;08/02/2024;1357;50;30;1;Spese correnti;4;Trasferimenti correnti;2;Trasferimenti correnti a Famiglie;5;Altri trasferimenti a famiglie;999;Altri trasferimenti a famiglie n.a.c.;13/02/2024
475;1;9999999;93,51;93,51;OMESSO NOMINATIVO NEL RISPETTO DELLA NORMATIVA SULLA PROTEZIONE DATI PERSONALI; ;CONTRIBUTO REGIONALE BUONO-LIBRI ANNO SCOLASTICO 2023/2024.;08/02/2024;1357;50;30;1;Spese correnti;4;Trasferimenti correnti;2;Trasferimenti correnti a Famiglie;5;Altri trasferimenti a famiglie;999;Altri trasferimenti a famiglie n.a.c.;13/02/2024
476;1;9999999;93,51;93,51;OMESSO NOMINATIVO NEL RISPETTO DELLA NORMATIVA SULLA PROTEZIONE DATI PERSONALI; ;CONTRIBUTO REGIONALE BUONO-LIBRI ANNO SCOLASTICO 2023/2024.;08/02/2024;1357;50;30;1;Spese correnti;4;Trasferimenti correnti;2;Trasferimenti correnti a Famiglie;5;Altri trasferimenti a famiglie;999;Altri trasferimenti a famiglie n.a.c.;08/03/2024
477;1;9999999;156,53;156,53;OMESSO NOMINATIVO NEL RISPETTO DELLA NORMATIVA SULLA PROTEZIONE DATI PERSONALI; ;CONTRIBUTO REGIONALE BUONO-LIBRI ANNO SCOLASTICO 2023/2024.;08/02/2024;1357;50;30;1;Spese correnti;4;Trasferimenti correnti;2;Trasferimenti correnti a Famiglie;5;Altri trasferimenti a famiglie;999;Altri trasferimenti a famiglie n.a.c.;13/02/2024
478;1;9999999;93,51;93,51;OMESSO NOMINATIVO NEL RISPETTO DELLA NORMATIVA SULLA PROTEZIONE DATI PERSONALI; ;CONTRIBUTO REGIONALE BUONO-LIBRI ANNO SCOLASTICO 2023/2024.;08/02/2024;1357;50;30;1;Spese correnti;4;Trasferimenti correnti;2;Trasferimenti correnti a Famiglie;5;Altri trasferimenti a famiglie;999;Altri trasferimenti a famiglie n.a.c.;13/02/2024
479;1;9999999;93,51;93,51;OMESSO NOMINATIVO NEL RISPETTO DELLA NORMATIVA SULLA PROTEZIONE DATI PERSONALI; ;CONTRIBUTO REGIONALE BUONO-LIBRI ANNO SCOLASTICO 2023/2024.;08/02/2024;1357;50;30;1;Spese correnti;4;Trasferimenti correnti;2;Trasferimenti correnti a Famiglie;5;Altri trasferimenti a famiglie;999;Altri trasferimenti a famiglie n.a.c.;13/02/2024
480;1;9999999;93,51;93,51;OMESSO NOMINATIVO NEL RISPETTO DELLA NORMATIVA SULLA PROTEZIONE DATI PERSONALI; ;CONTRIBUTO REGIONALE BUONO-LIBRI ANNO SCOLASTICO 2023/2024.;08/02/2024;1357;50;30;1;Spese correnti;4;Trasferimenti correnti;2;Trasferimenti correnti a Famiglie;5;Altri trasferimenti a famiglie;999;Altri trasferimenti a famiglie n.a.c.;13/02/2024
481;1;9999999;93,51;93,51;OMESSO NOMINATIVO NEL RISPETTO DELLA NORMATIVA SULLA PROTEZIONE DATI PERSONALI; ;CONTRIBUTO REGIONALE BUONO-LIBRI ANNO SCOLASTICO 2023/2024.;08/02/2024;1357;50;30;1;Spese correnti;4;Trasferimenti correnti;2;Trasferimenti correnti a Famiglie;5;Altri trasferimenti a famiglie;999;Altri trasferimenti a famiglie n.a.c.;13/02/2024
482;1;9999999;149,8;149,8;OMESSO NOMINATIVO NEL RISPETTO DELLA NORMATIVA SULLA PROTEZIONE DATI PERSONALI; ;CONTRIBUTO REGIONALE BUONO-LIBRI ANNO SCOLASTICO 2023/2024.;08/02/2024;1357;50;30;1;Spese correnti;4;Trasferimenti correnti;2;Trasferimenti correnti a Famiglie;5;Altri trasferimenti a famiglie;999;Altri trasferimenti a famiglie n.a.c.;13/02/2024
483;1;9999999;163,37;163,37;OMESSO NOMINATIVO NEL RISPETTO DELLA NORMATIVA SULLA PROTEZIONE DATI PERSONALI; ;CONTRIBUTO REGIONALE BUONO-LIBRI ANNO SCOLASTICO 2023/2024.;08/02/2024;1357;50;30;1;Spese correnti;4;Trasferimenti correnti;2;Trasferimenti correnti a Famiglie;5;Altri trasferimenti a famiglie;999;Altri trasferimenti a famiglie n.a.c.;13/02/2024
484;1;9999999;93,39;93,39;OMESSO NOMINATIVO NEL RISPETTO DELLA NORMATIVA SULLA PROTEZIONE DATI PERSONALI; ;CONTRIBUTO REGIONALE BUONO-LIBRI ANNO SCOLASTICO 2023/2024.;08/02/2024;1357;50;30;1;Spese correnti;4;Trasferimenti correnti;2;Trasferimenti correnti a Famiglie;5;Altri trasferimenti a famiglie;999;Altri trasferimenti a famiglie n.a.c.;13/02/2024
485;1;9999999;200;200;OMESSO NOMINATIVO NEL RISPETTO DELLA NORMATIVA SULLA PROTEZIONE DATI PERSONALI; ;CONTRIBUTO REGIONALE BUONO-LIBRI ANNO SCOLASTICO 2023/2024.;08/02/2024;1357;50;30;1;Spese correnti;4;Trasferimenti correnti;2;Trasferimenti correnti a Famiglie;5;Altri trasferimenti a famiglie;999;Altri trasferimenti a famiglie n.a.c.;13/02/2024
486;1;9999999;200;200;OMESSO NOMINATIVO NEL RISPETTO DELLA NORMATIVA SULLA PROTEZIONE DATI PERSONALI; ;CONTRIBUTO REGIONALE BUONO-LIBRI ANNO SCOLASTICO 2023/2024.;08/02/2024;1357;50;30;1;Spese correnti;4;Trasferimenti correnti;2;Trasferimenti correnti a Famiglie;5;Altri trasferimenti a famiglie;999;Altri trasferimenti a famiglie n.a.c.;13/02/2024
487;1;9999999;127,16;127,16;OMESSO NOMINATIVO NEL RISPETTO DELLA NORMATIVA SULLA PROTEZIONE DATI PERSONALI; ;CONTRIBUTO REGIONALE BUONO-LIBRI ANNO SCOLASTICO 2023/2024.;08/02/2024;1357;50;30;1;Spese correnti;4;Trasferimenti correnti;2;Trasferimenti correnti a Famiglie;5;Altri trasferimenti a famiglie;999;Altri trasferimenti a famiglie n.a.c.;13/02/2024
488;1;9999999;93,51;93,51;OMESSO NOMINATIVO NEL RISPETTO DELLA NORMATIVA SULLA PROTEZIONE DATI PERSONALI; ;CONTRIBUTO REGIONALE BUONO-LIBRI ANNO SCOLASTICO 2023/2024.;08/02/2024;1357;50;30;1;Spese correnti;4;Trasferimenti correnti;2;Trasferimenti correnti a Famiglie;5;Altri trasferimenti a famiglie;999;Altri trasferimenti a famiglie n.a.c.;13/02/2024
489;1;9999999;93,51;93,51;OMESSO NOMINATIVO NEL RISPETTO DELLA NORMATIVA SULLA PROTEZIONE DATI PERSONALI; ;CONTRIBUTO REGIONALE BUONO-LIBRI ANNO SCOLASTICO 2023/2024.;08/02/2024;1357;50;30;1;Spese correnti;4;Trasferimenti correnti;2;Trasferimenti correnti a Famiglie;5;Altri trasferimenti a famiglie;999;Altri trasferimenti a famiglie n.a.c.;13/02/2024
490;1;9999999;93,51;93,51;OMESSO NOMINATIVO NEL RISPETTO DELLA NORMATIVA SULLA PROTEZIONE DATI PERSONALI; ;CONTRIBUTO REGIONALE BUONO-LIBRI ANNO SCOLASTICO 2023/2024.;08/02/2024;1357;50;30;1;Spese correnti;4;Trasferimenti correnti;2;Trasferimenti correnti a Famiglie;5;Altri trasferimenti a famiglie;999;Altri trasferimenti a famiglie n.a.c.;13/02/2024
491;1;9999999;149,9;149,9;OMESSO NOMINATIVO NEL RISPETTO DELLA NORMATIVA SULLA PROTEZIONE DATI PERSONALI; ;CONTRIBUTO REGIONALE BUONO-LIBRI ANNO SCOLASTICO 2023/2024.;08/02/2024;1357;50;30;1;Spese correnti;4;Trasferimenti correnti;2;Trasferimenti correnti a Famiglie;5;Altri trasferimenti a famiglie;999;Altri trasferimenti a famiglie n.a.c.;13/02/2024
492;1;9999999;200;200;OMESSO NOMINATIVO NEL RISPETTO DELLA NORMATIVA SULLA PROTEZIONE DATI PERSONALI; ;CONTRIBUTO REGIONALE BUONO-LIBRI ANNO SCOLASTICO 2023/2024.;08/02/2024;1357;50;30;1;Spese correnti;4;Trasferimenti correnti;2;Trasferimenti correnti a Famiglie;5;Altri trasferimenti a famiglie;999;Altri trasferimenti a famiglie n.a.c.;13/02/2024
493;1;9999999;335;335;OMESSO NOMINATIVO NEL RISPETTO DELLA NORMATIVA SULLA PROTEZIONE DATI PERSONALI; ;CONTRIBUTO REGIONALE BUONO-LIBRI ANNO SCOLASTICO 2023/2024.;08/02/2024;1357;50;30;1;Spese correnti;4;Trasferimenti correnti;2;Trasferimenti correnti a Famiglie;5;Altri trasferimenti a famiglie;999;Altri trasferimenti a famiglie n.a.c.;13/02/2024
494;1;9999999;128,43;128,43;OMESSO NOMINATIVO NEL RISPETTO DELLA NORMATIVA SULLA PROTEZIONE DATI PERSONALI; ;CONTRIBUTO REGIONALE BUONO-LIBRI ANNO SCOLASTICO 2023/2024.;08/02/2024;1357;50;30;1;Spese correnti;4;Trasferimenti correnti;2;Trasferimenti correnti a Famiglie;5;Altri trasferimenti a famiglie;999;Altri trasferimenti a famiglie n.a.c.;13/02/2024
495;1;9999999;154,03;154,03;OMESSO NOMINATIVO NEL RISPETTO DELLA NORMATIVA SULLA PROTEZIONE DATI PERSONALI; ;CONTRIBUTO REGIONALE BUONO-LIBRI ANNO SCOLASTICO 2023/2024.;08/02/2024;1357;50;30;1;Spese correnti;4;Trasferimenti correnti;2;Trasferimenti correnti a Famiglie;5;Altri trasferimenti a famiglie;999;Altri trasferimenti a famiglie n.a.c.;13/02/2024
496;1;9999999;70,79;70,79;OMESSO NOMINATIVO NEL RISPETTO DELLA NORMATIVA SULLA PROTEZIONE DATI PERSONALI; ;CONTRIBUTO REGIONALE BUONO-LIBRI ANNO SCOLASTICO 2023/2024.;08/02/2024;1357;50;30;1;Spese correnti;4;Trasferimenti correnti;2;Trasferimenti correnti a Famiglie;5;Altri trasferimenti a famiglie;999;Altri trasferimenti a famiglie n.a.c.;13/02/2024
497;1;9999999;136,65;136,65;OMESSO NOMINATIVO NEL RISPETTO DELLA NORMATIVA SULLA PROTEZIONE DATI PERSONALI; ;CONTRIBUTO REGIONALE BUONO-LIBRI ANNO SCOLASTICO 2023/2024.;08/02/2024;1357;50;30;1;Spese correnti;4;Trasferimenti correnti;2;Trasferimenti correnti a Famiglie;5;Altri trasferimenti a famiglie;999;Altri trasferimenti a famiglie n.a.c.;13/02/2024
498;1;9999999;293,46;293,46;OMESSO NOMINATIVO NEL RISPETTO DELLA NORMATIVA SULLA PROTEZIONE DATI PERSONALI; ;CONTRIBUTO REGIONALE BUONO-LIBRI ANNO SCOLASTICO 2023/2024.;08/02/2024;1357;50;30;1;Spese correnti;4;Trasferimenti correnti;2;Trasferimenti correnti a Famiglie;5;Altri trasferimenti a famiglie;999;Altri trasferimenti a famiglie n.a.c.;13/02/2024
499;1;9999999;93,51;93,51;OMESSO NOMINATIVO NEL RISPETTO DELLA NORMATIVA SULLA PROTEZIONE DATI PERSONALI; ;CONTRIBUTO REGIONALE BUONO-LIBRI ANNO SCOLASTICO 2023/2024.;08/02/2024;1357;50;30;1;Spese correnti;4;Trasferimenti correnti;2;Trasferimenti correnti a Famiglie;5;Altri trasferimenti a famiglie;999;Altri trasferimenti a famiglie n.a.c.;13/02/2024
500;1;9999999;110,41;110,41;OMESSO NOMINATIVO NEL RISPETTO DELLA NORMATIVA SULLA PROTEZIONE DATI PERSONALI; ;CONTRIBUTO REGIONALE BUONO-LIBRI ANNO SCOLASTICO 2023/2024.;08/02/2024;1357;50;30;1;Spese correnti;4;Trasferimenti correnti;2;Trasferimenti correnti a Famiglie;5;Altri trasferimenti a famiglie;999;Altri trasferimenti a famiglie n.a.c.;13/02/2024
501;1;9999999;84,78;84,78;OMESSO NOMINATIVO NEL RISPETTO DELLA NORMATIVA SULLA PROTEZIONE DATI PERSONALI; ;CONTRIBUTO REGIONALE BUONO-LIBRI ANNO SCOLASTICO 2023/2024.;08/02/2024;1357;50;30;1;Spese correnti;4;Trasferimenti correnti;2;Trasferimenti correnti a Famiglie;5;Altri trasferimenti a famiglie;999;Altri trasferimenti a famiglie n.a.c.;13/02/2024
502;1;9999999;187,02;187,02;OMESSO NOMINATIVO NEL RISPETTO DELLA NORMATIVA SULLA PROTEZIONE DATI PERSONALI; ;CONTRIBUTO REGIONALE BUONO-LIBRI ANNO SCOLASTICO 2023/2024.;08/02/2024;1357;50;30;1;Spese correnti;4;Trasferimenti correnti;2;Trasferimenti correnti a Famiglie;5;Altri trasferimenti a famiglie;999;Altri trasferimenti a famiglie n.a.c.;13/02/2024
503;1;9999999;527,7;527,7;OMESSO NOMINATIVO NEL RISPETTO DELLA NORMATIVA SULLA PROTEZIONE DATI PERSONALI; ;CONTRIBUTO REGIONALE BUONO-LIBRI ANNO SCOLASTICO 2023/2024.;08/02/2024;1357;50;30;1;Spese correnti;4;Trasferimenti correnti;2;Trasferimenti correnti a Famiglie;5;Altri trasferimenti a famiglie;999;Altri trasferimenti a famiglie n.a.c.;13/02/2024
504;1;9999999;93,51;93,51;OMESSO NOMINATIVO NEL RISPETTO DELLA NORMATIVA SULLA PROTEZIONE DATI PERSONALI; ;CONTRIBUTO REGIONALE BUONO-LIBRI ANNO SCOLASTICO 2023/2024.;08/02/2024;1357;50;30;1;Spese correnti;4;Trasferimenti correnti;2;Trasferimenti correnti a Famiglie;5;Altri trasferimenti a famiglie;999;Altri trasferimenti a famiglie n.a.c.;13/02/2024
505;1;9999999;150;150;OMESSO NOMINATIVO NEL RISPETTO DELLA NORMATIVA SULLA PROTEZIONE DATI PERSONALI; ;CONTRIBUTO REGIONALE BUONO-LIBRI ANNO SCOLASTICO 2023/2024.;08/02/2024;1357;50;30;1;Spese correnti;4;Trasferimenti correnti;2;Trasferimenti correnti a Famiglie;5;Altri trasferimenti a famiglie;999;Altri trasferimenti a famiglie n.a.c.;13/02/2024
506;1;9999999;200;200;OMESSO NOMINATIVO NEL RISPETTO DELLA NORMATIVA SULLA PROTEZIONE DATI PERSONALI; ;CONTRIBUTO REGIONALE BUONO-LIBRI ANNO SCOLASTICO 2023/2024.;08/02/2024;1357;50;30;1;Spese correnti;4;Trasferimenti correnti;2;Trasferimenti correnti a Famiglie;5;Altri trasferimenti a famiglie;999;Altri trasferimenti a famiglie n.a.c.;13/02/2024
507;1;9999999;179,6;179,6;OMESSO NOMINATIVO NEL RISPETTO DELLA NORMATIVA SULLA PROTEZIONE DATI PERSONALI; ;CONTRIBUTO REGIONALE BUONO-LIBRI ANNO SCOLASTICO 2023/2024.;08/02/2024;1357;50;30;1;Spese correnti;4;Trasferimenti correnti;2;Trasferimenti correnti a Famiglie;5;Altri trasferimenti a famiglie;999;Altri trasferimenti a famiglie n.a.c.;13/02/2024
508;1;9999999;200;200;OMESSO NOMINATIVO NEL RISPETTO DELLA NORMATIVA SULLA PROTEZIONE DATI PERSONALI; ;CONTRIBUTO REGIONALE BUONO-LIBRI ANNO SCOLASTICO 2023/2024.;08/02/2024;1357;50;30;1;Spese correnti;4;Trasferimenti correnti;2;Trasferimenti correnti a Famiglie;5;Altri trasferimenti a famiglie;999;Altri trasferimenti a famiglie n.a.c.;13/02/2024
509;1;9999999;200;200;OMESSO NOMINATIVO NEL RISPETTO DELLA NORMATIVA SULLA PROTEZIONE DATI PERSONALI; ;CONTRIBUTO REGIONALE BUONO-LIBRI ANNO SCOLASTICO 2023/2024.;08/02/2024;1357;50;30;1;Spese correnti;4;Trasferimenti correnti;2;Trasferimenti correnti a Famiglie;5;Altri trasferimenti a famiglie;999;Altri trasferimenti a famiglie n.a.c.;13/02/2024
510;1;9999999;200;200;OMESSO NOMINATIVO NEL RISPETTO DELLA NORMATIVA SULLA PROTEZIONE DATI PERSONALI; ;CONTRIBUTO REGIONALE BUONO-LIBRI ANNO SCOLASTICO 2023/2024.;08/02/2024;1357;50;30;1;Spese correnti;4;Trasferimenti correnti;2;Trasferimenti correnti a Famiglie;5;Altri trasferimenti a famiglie;999;Altri trasferimenti a famiglie n.a.c.;13/02/2024
511;1;9999999;93,51;93,51;OMESSO NOMINATIVO NEL RISPETTO DELLA NORMATIVA SULLA PROTEZIONE DATI PERSONALI; ;CONTRIBUTO REGIONALE BUONO-LIBRI ANNO SCOLASTICO 2023/2024.;08/02/2024;1357;50;30;1;Spese correnti;4;Trasferimenti correnti;2;Trasferimenti correnti a Famiglie;5;Altri trasferimenti a famiglie;999;Altri trasferimenti a famiglie n.a.c.;13/02/2024
512;1;9999999;83,35;83,35;OMESSO NOMINATIVO NEL RISPETTO DELLA NORMATIVA SULLA PROTEZIONE DATI PERSONALI; ;CONTRIBUTO REGIONALE BUONO-LIBRI ANNO SCOLASTICO 2023/2024.;08/02/2024;1357;50;30;1;Spese correnti;4;Trasferimenti correnti;2;Trasferimenti correnti a Famiglie;5;Altri trasferimenti a famiglie;999;Altri trasferimenti a famiglie n.a.c.;13/02/2024
513;1;9999999;93,51;93,51;OMESSO NOMINATIVO NEL RISPETTO DELLA NORMATIVA SULLA PROTEZIONE DATI PERSONALI; ;CONTRIBUTO REGIONALE BUONO-LIBRI ANNO SCOLASTICO 2023/2024.;08/02/2024;1357;50;30;1;Spese correnti;4;Trasferimenti correnti;2;Trasferimenti correnti a Famiglie;5;Altri trasferimenti a famiglie;999;Altri trasferimenti a famiglie n.a.c.;13/02/2024
514;1;9999999;93,39;93,39;OMESSO NOMINATIVO NEL RISPETTO DELLA NORMATIVA SULLA PROTEZIONE DATI PERSONALI; ;CONTRIBUTO REGIONALE BUONO-LIBRI ANNO SCOLASTICO 2023/2024.;08/02/2024;1357;50;30;1;Spese correnti;4;Trasferimenti correnti;2;Trasferimenti correnti a Famiglie;5;Altri trasferimenti a famiglie;999;Altri trasferimenti a famiglie n.a.c.;13/02/2024
515;1;9999999;93,51;93,51;OMESSO NOMINATIVO NEL RISPETTO DELLA NORMATIVA SULLA PROTEZIONE DATI PERSONALI; ;CONTRIBUTO REGIONALE BUONO-LIBRI ANNO SCOLASTICO 2023/2024.;08/02/2024;1357;50;30;1;Spese correnti;4;Trasferimenti correnti;2;Trasferimenti correnti a Famiglie;5;Altri trasferimenti a famiglie;999;Altri trasferimenti a famiglie n.a.c.;13/02/2024
516;1;9999999;93,51;93,51;OMESSO NOMINATIVO NEL RISPETTO DELLA NORMATIVA SULLA PROTEZIONE DATI PERSONALI; ;CONTRIBUTO REGIONALE BUONO-LIBRI ANNO SCOLASTICO 2023/2024.;08/02/2024;1357;50;30;1;Spese correnti;4;Trasferimenti correnti;2;Trasferimenti correnti a Famiglie;5;Altri trasferimenti a famiglie;999;Altri trasferimenti a famiglie n.a.c.;13/02/2024
517;1;9999999;322,3;322,3;OMESSO NOMINATIVO NEL RISPETTO DELLA NORMATIVA SULLA PROTEZIONE DATI PERSONALI; ;CONTRIBUTO REGIONALE BUONO-LIBRI ANNO SCOLASTICO 2023/2024.;08/02/2024;1357;50;30;1;Spese correnti;4;Trasferimenti correnti;2;Trasferimenti correnti a Famiglie;5;Altri trasferimenti a famiglie;999;Altri trasferimenti a famiglie n.a.c.;13/02/2024
518;1;9999999;93,51;93,51;OMESSO NOMINATIVO NEL RISPETTO DELLA NORMATIVA SULLA PROTEZIONE DATI PERSONALI; ;CONTRIBUTO REGIONALE BUONO-LIBRI ANNO SCOLASTICO 2023/2024.;08/02/2024;1357;50;30;1;Spese correnti;4;Trasferimenti correnti;2;Trasferimenti correnti a Famiglie;5;Altri trasferimenti a famiglie;999;Altri trasferimenti a famiglie n.a.c.;13/02/2024
519;1;9999999;200;200;OMESSO NOMINATIVO NEL RISPETTO DELLA NORMATIVA SULLA PROTEZIONE DATI PERSONALI; ;CONTRIBUTO REGIONALE BUONO-LIBRI ANNO SCOLASTICO 2023/2024.;08/02/2024;1357;50;30;1;Spese correnti;4;Trasferimenti correnti;2;Trasferimenti correnti a Famiglie;5;Altri trasferimenti a famiglie;999;Altri trasferimenti a famiglie n.a.c.;13/02/2024
520;1;9999999;93,51;93,51;OMESSO NOMINATIVO NEL RISPETTO DELLA NORMATIVA SULLA PROTEZIONE DATI PERSONALI; ;CONTRIBUTO REGIONALE BUONO-LIBRI ANNO SCOLASTICO 2023/2024.;08/02/2024;1357;50;30;1;Spese correnti;4;Trasferimenti correnti;2;Trasferimenti correnti a Famiglie;5;Altri trasferimenti a famiglie;999;Altri trasferimenti a famiglie n.a.c.;13/02/2024
521;1;9999999;93,51;93,51;OMESSO NOMINATIVO NEL RISPETTO DELLA NORMATIVA SULLA PROTEZIONE DATI PERSONALI; ;CONTRIBUTO REGIONALE BUONO-LIBRI ANNO SCOLASTICO 2023/2024.;08/02/2024;1357;50;30;1;Spese correnti;4;Trasferimenti correnti;2;Trasferimenti correnti a Famiglie;5;Altri trasferimenti a famiglie;999;Altri trasferimenti a famiglie n.a.c.;13/02/2024
522;1;9999999;200;200;OMESSO NOMINATIVO NEL RISPETTO DELLA NORMATIVA SULLA PROTEZIONE DATI PERSONALI; ;CONTRIBUTO REGIONALE BUONO-LIBRI ANNO SCOLASTICO 2023/2024.;08/02/2024;1357;50;30;1;Spese correnti;4;Trasferimenti correnti;2;Trasferimenti correnti a Famiglie;5;Altri trasferimenti a famiglie;999;Altri trasferimenti a famiglie n.a.c.;13/02/2024
523;1;9999999;400;400;OMESSO NOMINATIVO NEL RISPETTO DELLA NORMATIVA SULLA PROTEZIONE DATI PERSONALI; ;CONTRIBUTO REGIONALE BUONO-LIBRI ANNO SCOLASTICO 2023/2024.;08/02/2024;1357;50;30;1;Spese correnti;4;Trasferimenti correnti;2;Trasferimenti correnti a Famiglie;5;Altri trasferimenti a famiglie;999;Altri trasferimenti a famiglie n.a.c.;13/02/2024
524;1;9999999;186,81;186,81;OMESSO NOMINATIVO NEL RISPETTO DELLA NORMATIVA SULLA PROTEZIONE DATI PERSONALI; ;CONTRIBUTO REGIONALE BUONO-LIBRI ANNO SCOLASTICO 2023/2024.;08/02/2024;1357;50;30;1;Spese correnti;4;Trasferimenti correnti;2;Trasferimenti correnti a Famiglie;5;Altri trasferimenti a famiglie;999;Altri trasferimenti a famiglie n.a.c.;13/02/2024
525;1;9999999;500;500;ITAS MUTUA; ;FRANCHIGIA N.230187733;08/02/2024;992;0;36;1;Spese correnti;10;Altre spese correnti;4;Premi di assicurazione;1;Premi di assicurazione contro i danni;999;Altri premi di assicurazione contro i danni;13/02/2024
526;1;9999999;1.000,00;1.000,00;ITAS MUTUA; ;FRANCHIGIA N. 210109841;08/02/2024;992;0;37;1;Spese correnti;10;Altre spese correnti;4;Premi di assicurazione;1;Premi di assicurazione contro i danni;999;Altri premi di assicurazione contro i danni;13/02/2024
530;1;9999999;5.031,77;5.031,77;AGENZIA DELLE ENTRATE - IVA; ;LIQUIDAZIONE IVA COMMERCIALE MESE DI GENNAIO 2024;12/02/2024;291;0;63;1;Spese correnti;10;Altre spese correnti;3;Versamenti IVA a debito;1;Versamenti IVA a debito per le gestioni commerciali;1;Versamenti IVA a debito per le gestioni commerciali;15/02/2024
531;1;9999999;3.115,00;3.115,00;LABS LABORATORIO SOLIDALE - ODV; ;DICEMBRE 2023 - PROGETTI PUBBLICA UTILITA LIQUIDAZIONE QUOTA - SFALCIO ERBA - SERVIZI CIMITERI - PULIZA SPAZI COMUNALI;12/02/2024;4059;10;807;1;Spese correnti;4;Trasferimenti correnti;4;Trasferimenti correnti a Istituzioni Sociali Private;1;Trasferimenti correnti a Istituzioni Sociali Private;1;Trasferimenti correnti a Istituzioni Sociali Private;14/02/2024
532;1;9999999;8.797,48;8.797,48;EUROSCAVI S.R.L.;Z5B384C862;SALDO Fatt.n. 2  del 15/01/2024 LAVORI DI INTERVENTI DI MANUTENZIONE ORDINARIA STRADE TERRITORIO COMUNALE  S.A.L. N. 3;12/02/2024;3538;0;938;1;Spese correnti;3;Acquisto di beni e servizi;2;Acquisto di servizi;9;Manutenzione ordinaria e riparazioni;11;Manutenzione ordinaria e riparazioni di altri beni materiali;14/02/2024
533;1;9999999;2.708,40;2.708,40;E.C.I. ELETTRONICA SRL;Z403DC2476;SALDO Fatt.n. 000181/24  del 26/01/2024 RINNOVO SERVIZIO SCHEDE SIM E INDIRIZZI IP DELLE TELECAMERE MOBILI INSTALLATE NEL COMUNE SMS ANNO 2024;13/02/2024;134;0;1048;1;Spese correnti;3;Acquisto di beni e servizi;2;Acquisto di servizi;5;Utenze e canoni;2;Telefonia mobile;15/02/2024
534;1;9999999;95,73;95,73;V.E.R.I.T.A.S. SPA; ;ACCONTO Fatt.n. 600007241325  del 17/01/2024 PERIODO 01.11.2023-31.12.2023 - CONSUMI SEDE MUNICIPALE;13/02/2024;134;31;231;1;Spese correnti;3;Acquisto di beni e servizi;2;Acquisto di servizi;5;Utenze e canoni;5;Acqua;15/02/2024
535;1;9999999;75,21;75,21;V.E.R.I.T.A.S. SPA; ;ACCONTO Fatt.n. 600007241325  del 17/01/2024 PERIODO 01.11.2023-31.12.2023 - CONSUMI SEDE MUNICIPALE;13/02/2024;3534;0;235;1;Spese correnti;3;Acquisto di beni e servizi;2;Acquisto di servizi;5;Utenze e canoni;5;Acqua;15/02/2024
536;1;9999999;4,56;4,56;V.E.R.I.T.A.S. SPA; ;SALDO Fatt.n. 600007241325  del 17/01/2024 PERIODO 01.11.2023-31.12.2023 - CONSUMI SEDE MUNICIPALE;13/02/2024;4434;0;237;1;Spese correnti;3;Acquisto di beni e servizi;2;Acquisto di servizi;5;Utenze e canoni;5;Acqua;15/02/2024
537;1;9999999;16,51;224,64;V.E.R.I.T.A.S. SPA; ;SALDO Fatt.n. 600007241345  del 17/01/2024 PERIODO 01.11.2023-31.12.2023 - PIAZZA S.D.A. CALTANA;13/02/2024;134;31;231;1;Spese correnti;3;Acquisto di beni e servizi;2;Acquisto di servizi;5;Utenze e canoni;5;Acqua;15/02/2024
537;2;9999999;47,91;224,64;V.E.R.I.T.A.S. SPA; ;SALDO Fatt.n. 600007241333  del 17/01/2024 PERIODO 01.11.2023-31.12.2023 - CONSUMI DISTRIBUTORE ACQUA CASELLE;13/02/2024;134;31;231;1;Spese correnti;3;Acquisto di beni e servizi;2;Acquisto di servizi;5;Utenze e canoni;5;Acqua;15/02/2024
537;3;9999999;51,52;224,64;V.E.R.I.T.A.S. SPA; ;SALDO Fatt.n. 600007241344  del 17/01/2024 PERIODO 01.11.2023-31.12.2023 - CONSUMI ACTV;13/02/2024;134;31;231;1;Spese correnti;3;Acquisto di beni e servizi;2;Acquisto di servizi;5;Utenze e canoni;5;Acqua;15/02/2024
537;4;9999999;52,21;224,64;V.E.R.I.T.A.S. SPA; ;SALDO Fatt.n. 600007241334  del 17/01/2024 PERIODO 01.11.2023-31.12.2023 - ANTINCENDIO PARCHEGGIO SMS;13/02/2024;134;31;231;1;Spese correnti;3;Acquisto di beni e servizi;2;Acquisto di servizi;5;Utenze e canoni;5;Acqua;15/02/2024
537;5;9999999;56,49;224,64;V.E.R.I.T.A.S. SPA; ;SALDO Fatt.n. 600007241324  del 17/01/2024 PERIODO 01.11.2023-31.12.2023 - CONSUMI MERCATO CASELLE;13/02/2024;134;31;231;1;Spese correnti;3;Acquisto di beni e servizi;2;Acquisto di servizi;5;Utenze e canoni;5;Acqua;15/02/2024
538;1;9999999;13,32;183,27;V.E.R.I.T.A.S. SPA; ;SALDO Fatt.n. 600007241347  del 17/01/2024 PERIODO 01.11.2023-31.12.2023 - CONSUMI PER MANIFESTAZIONI CALTANA;13/02/2024;134;31;231;1;Spese correnti;3;Acquisto di beni e servizi;2;Acquisto di servizi;5;Utenze e canoni;5;Acqua;15/02/2024
538;2;9999999;13,32;183,27;V.E.R.I.T.A.S. SPA; ;SALDO Fatt.n. 600007241352  del 17/01/2024 PERIODO 01.11.2023-31.12.2023 - CONSUMI FONTANA VETERNIGO;13/02/2024;134;31;231;1;Spese correnti;3;Acquisto di beni e servizi;2;Acquisto di servizi;5;Utenze e canoni;5;Acqua;15/02/2024
538;3;9999999;52,21;183,27;V.E.R.I.T.A.S. SPA; ;SALDO Fatt.n. 600007241349  del 17/01/2024 PERIODO 01.11.2023-31.12.2023 - ANTINCENDIO Z.I. SMS;13/02/2024;134;31;231;1;Spese correnti;3;Acquisto di beni e servizi;2;Acquisto di servizi;5;Utenze e canoni;5;Acqua;15/02/2024
538;4;9999999;52,21;183,27;V.E.R.I.T.A.S. SPA; ;SALDO Fatt.n. 600007241350  del 17/01/2024 PERIODO 01.11.2023-31.12.2023 - ANTINCENDIO PARCHEGGIO C.C. PRISMA CASELLE;13/02/2024;134;31;231;1;Spese correnti;3;Acquisto di beni e servizi;2;Acquisto di servizi;5;Utenze e canoni;5;Acqua;15/02/2024
538;5;9999999;52,21;183,27;V.E.R.I.T.A.S. SPA; ;SALDO Fatt.n. 600007241351  del 17/01/2024 PERIODO 01.11.2023-31.12.2023 - ANTINCENDIO STRADA PRESSO ALLOGGIO GUIOTTO;13/02/2024;134;31;231;1;Spese correnti;3;Acquisto di beni e servizi;2;Acquisto di servizi;5;Utenze e canoni;5;Acqua;15/02/2024
539;1;9999999;14,48;207,85;V.E.R.I.T.A.S. SPA; ;SALDO Fatt.n. 600007241366  del 17/01/2024 PERIODO 01.11.2023-31.12.2023 - CONSUMI FONTANA VERDE CASELLE;13/02/2024;134;31;231;1;Spese correnti;3;Acquisto di beni e servizi;2;Acquisto di servizi;5;Utenze e canoni;5;Acqua;15/02/2024
539;2;9999999;19,4;207,85;V.E.R.I.T.A.S. SPA; ;SALDO Fatt.n. 600007241363  del 17/01/2024 PERIODO 01.11.2023-31.12.2023 - CONSUMI PARCHEGGIO CASELLE;13/02/2024;134;31;231;1;Spese correnti;3;Acquisto di beni e servizi;2;Acquisto di servizi;5;Utenze e canoni;5;Acqua;15/02/2024
539;3;9999999;19,72;207,85;V.E.R.I.T.A.S. SPA; ;SALDO Fatt.n. 600007241362  del 17/01/2024 PERIODO 01.11.2023-31.12.2023 - CONSUMI PARCHEGGIO C.C. PRISMA CASELLE;13/02/2024;134;31;231;1;Spese correnti;3;Acquisto di beni e servizi;2;Acquisto di servizi;5;Utenze e canoni;5;Acqua;15/02/2024
539;4;9999999;49,83;207,85;V.E.R.I.T.A.S. SPA; ;SALDO Fatt.n. 600007241365  del 17/01/2024 PERIODO 01.11.2023-31.12.2023 - CONSUMI P.ZZA CASELLE;13/02/2024;134;31;231;1;Spese correnti;3;Acquisto di beni e servizi;2;Acquisto di servizi;5;Utenze e canoni;5;Acqua;15/02/2024
539;5;9999999;52,21;207,85;V.E.R.I.T.A.S. SPA; ;SALDO Fatt.n. 600007241354  del 17/01/2024 PERIODO 01.11.2023-31.12.2023 - ANTINCENDIO PER MANIFESTAZIONI SMS;13/02/2024;134;31;231;1;Spese correnti;3;Acquisto di beni e servizi;2;Acquisto di servizi;5;Utenze e canoni;5;Acqua;15/02/2024
539;6;9999999;52,21;207,85;V.E.R.I.T.A.S. SPA; ;SALDO Fatt.n. 600007241364  del 17/01/2024 PERIODO 01.11.2023-31.12.2023 - ANTINCENDIO PARCHEGGIO CASELLE;13/02/2024;134;31;231;1;Spese correnti;3;Acquisto di beni e servizi;2;Acquisto di servizi;5;Utenze e canoni;5;Acqua;15/02/2024
540;1;9999999;52,21;1.274,48;V.E.R.I.T.A.S. SPA; ;SALDO Fatt.n. 600007241329  del 17/01/2024 PERIODO 01.11.2023-31.12.2023 - ANTINCENDIO  SC. ELEM. CALTANA;13/02/2024;1334;30;232;1;Spese correnti;3;Acquisto di beni e servizi;2;Acquisto di servizi;5;Utenze e canoni;5;Acqua;15/02/2024
540;2;9999999;122,19;1.274,48;V.E.R.I.T.A.S. SPA; ;SALDO Fatt.n. 600007241328  del 17/01/2024 PERIODO 01.11.2023-31.12.2023 - CONSUMI SC. ELEM. SMS;13/02/2024;1334;30;232;1;Spese correnti;3;Acquisto di beni e servizi;2;Acquisto di servizi;5;Utenze e canoni;5;Acqua;15/02/2024
540;3;9999999;157,44;1.274,48;V.E.R.I.T.A.S. SPA; ;SALDO Fatt.n. 600007241327  del 17/01/2024 PERIODO 21.07.2022-31.12.2023 - ANTINCENDIO SC. MEDIA SMS;13/02/2024;1334;30;232;1;Spese correnti;3;Acquisto di beni e servizi;2;Acquisto di servizi;5;Utenze e canoni;5;Acqua;15/02/2024
540;4;9999999;159,73;1.274,48;V.E.R.I.T.A.S. SPA; ;SALDO Fatt.n. 600007241317  del 17/01/2024 PERIODO 01.11.2023-31.12.2023 - CONSUMI SC. ELEM.CALTANA;13/02/2024;1334;30;232;1;Spese correnti;3;Acquisto di beni e servizi;2;Acquisto di servizi;5;Utenze e canoni;5;Acqua;15/02/2024
540;5;9999999;782,91;1.274,48;V.E.R.I.T.A.S. SPA; ;SALDO Fatt.n. 600007241326  del 17/01/2024 PERIODO 01.11.2023-31.12.2023 - CONSUMI SC. MEDIA SMS;13/02/2024;1334;30;232;1;Spese correnti;3;Acquisto di beni e servizi;2;Acquisto di servizi;5;Utenze e canoni;5;Acqua;15/02/2024
541;1;9999999;40;40;V.E.R.I.T.A.S. SPA; ;ACCONTO Fatt.n. 600007241321  del 17/01/2024 PERIODO 01.11.2023-31.12.2023 - CONSUMI SC. ELEM - PALESTRA - ASILO S.ANGELO;13/02/2024;1334;30;232;1;Spese correnti;3;Acquisto di beni e servizi;2;Acquisto di servizi;5;Utenze e canoni;5;Acqua;15/02/2024
542;1;9999999;120,26;120,26;V.E.R.I.T.A.S. SPA; ;ACCONTO Fatt.n. 600007241321  del 17/01/2024 PERIODO 01.11.2023-31.12.2023 - CONSUMI SC. ELEM - PALESTRA - ASILO S.ANGELO;13/02/2024;1334;30;232;1;Spese correnti;3;Acquisto di beni e servizi;2;Acquisto di servizi;5;Utenze e canoni;5;Acqua;15/02/2024
543;1;9999999;99,18;99,18;V.E.R.I.T.A.S. SPA; ;ACCONTO Fatt.n. 600007241322  del 17/01/2024 PERIODO 01.11.2023-31.12.2023 - CONSUMI PALESTRA SMS;13/02/2024;1334;30;232;1;Spese correnti;3;Acquisto di beni e servizi;2;Acquisto di servizi;5;Utenze e canoni;5;Acqua;15/02/2024
544;1;9999999;71,56;71,56;V.E.R.I.T.A.S. SPA; ;ACCONTO Fatt.n. 600007241358  del 17/01/2024 PERIODO 01.11.2023-31.12.2023 - CONSUMI PALESTRA CALTANA;13/02/2024;1334;30;232;1;Spese correnti;3;Acquisto di beni e servizi;2;Acquisto di servizi;5;Utenze e canoni;5;Acqua;15/02/2024
545;1;9999999;26,11;26,11;V.E.R.I.T.A.S. SPA; ;ACCONTO Fatt.n. 600007241359  del 17/01/2024 PERIODO 01.11.2023-31.12.2023 - ANTINCENDIO PALESTRA CALTANA;13/02/2024;1334;30;232;1;Spese correnti;3;Acquisto di beni e servizi;2;Acquisto di servizi;5;Utenze e canoni;5;Acqua;15/02/2024
546;1;9999999;35;35;V.E.R.I.T.A.S. SPA; ;ACCONTO Fatt.n. 600007241320  del 17/01/2024 PERIODO 01.11.2023-31.12.2023 - CONSUMI SC. ELEM - PALESTRA VETERNIGO;13/02/2024;1334;30;232;1;Spese correnti;3;Acquisto di beni e servizi;2;Acquisto di servizi;5;Utenze e canoni;5;Acqua;15/02/2024
547;1;9999999;57,9;57,9;V.E.R.I.T.A.S. SPA; ;ACCONTO Fatt.n. 600007241320  del 17/01/2024 PERIODO 01.11.2023-31.12.2023 - CONSUMI SC. ELEM - PALESTRA VETERNIGO;13/02/2024;1334;30;232;1;Spese correnti;3;Acquisto di beni e servizi;2;Acquisto di servizi;5;Utenze e canoni;5;Acqua;15/02/2024
548;1;9999999;10;10;V.E.R.I.T.A.S. SPA; ;ACCONTO Fatt.n. 600007241330  del 17/01/2024 PERIODO 01.11.2023-31.12.2023 - ANTINCENDIO SC. ELEM - PALESTRA CASELLE;13/02/2024;1334;30;232;1;Spese correnti;3;Acquisto di beni e servizi;2;Acquisto di servizi;5;Utenze e canoni;5;Acqua;15/02/2024
549;1;9999999;32,21;32,21;V.E.R.I.T.A.S. SPA; ;ACCONTO Fatt.n. 600007241330  del 17/01/2024 PERIODO 01.11.2023-31.12.2023 - ANTINCENDIO SC. ELEM - PALESTRA CASELLE;13/02/2024;1334;30;232;1;Spese correnti;3;Acquisto di beni e servizi;2;Acquisto di servizi;5;Utenze e canoni;5;Acqua;15/02/2024
550;1;9999999;38,4;38,4;V.E.R.I.T.A.S. SPA; ;ACCONTO Fatt.n. 600007241319  del 17/01/2024 PERIODO 01.11.2023-31.12.2023 - CONSUMI SC. ELEM - PALESTRA STIGLIANO;13/02/2024;1334;30;232;1;Spese correnti;3;Acquisto di beni e servizi;2;Acquisto di servizi;5;Utenze e canoni;5;Acqua;15/02/2024
551;1;9999999;41,97;41,97;V.E.R.I.T.A.S. SPA; ;ACCONTO Fatt.n. 600007241319  del 17/01/2024 PERIODO 01.11.2023-31.12.2023 - CONSUMI SC. ELEM - PALESTRA STIGLIANO;13/02/2024;1334;30;232;1;Spese correnti;3;Acquisto di beni e servizi;2;Acquisto di servizi;5;Utenze e canoni;5;Acqua;15/02/2024
552;1;9999999;14;14;V.E.R.I.T.A.S. SPA; ;ACCONTO Fatt.n. 600007241331  del 17/01/2024 PERIODO 01.11.2023-31.12.2023 - ANTINCENDIO SC. ELEM - PALESTRA VETERNIGO;13/02/2024;1334;30;232;1;Spese correnti;3;Acquisto di beni e servizi;2;Acquisto di servizi;5;Utenze e canoni;5;Acqua;15/02/2024
553;1;9999999;24,21;24,21;V.E.R.I.T.A.S. SPA; ;ACCONTO Fatt.n. 600007241331  del 17/01/2024 PERIODO 01.11.2023-31.12.2023 - ANTINCENDIO SC. ELEM - PALESTRA VETERNIGO;13/02/2024;1334;30;232;1;Spese correnti;3;Acquisto di beni e servizi;2;Acquisto di servizi;5;Utenze e canoni;5;Acqua;15/02/2024
554;1;9999999;14,4;14,4;V.E.R.I.T.A.S. SPA; ;ACCONTO Fatt.n. 600007241346  del 17/01/2024 PERIODO 01.11.2023-31.12.2023 - ANTINCENDIO SC. ELEM - PALESTRA STIGLIANO;13/02/2024;1334;30;232;1;Spese correnti;3;Acquisto di beni e servizi;2;Acquisto di servizi;5;Utenze e canoni;5;Acqua;15/02/2024
555;1;9999999;16,21;16,21;V.E.R.I.T.A.S. SPA; ;ACCONTO Fatt.n. 600007241346  del 17/01/2024 PERIODO 01.11.2023-31.12.2023 - ANTINCENDIO SC. ELEM - PALESTRA STIGLIANO;13/02/2024;1334;30;232;1;Spese correnti;3;Acquisto di beni e servizi;2;Acquisto di servizi;5;Utenze e canoni;5;Acqua;15/02/2024
556;1;9999999;12;12;V.E.R.I.T.A.S. SPA; ;ACCONTO Fatt.n. 600007241318  del 17/01/2024 PERIODO 01.11.2023-31.12.2023 - CONSUMI SC. ELEM - PALESTRA CASELLE;13/02/2024;1334;30;232;1;Spese correnti;3;Acquisto di beni e servizi;2;Acquisto di servizi;5;Utenze e canoni;5;Acqua;15/02/2024
557;1;9999999;35,68;35,68;V.E.R.I.T.A.S. SPA; ;ACCONTO Fatt.n. 600007241318  del 17/01/2024 PERIODO 01.11.2023-31.12.2023 - CONSUMI SC. ELEM - PALESTRA CASELLE;13/02/2024;1334;30;232;1;Spese correnti;3;Acquisto di beni e servizi;2;Acquisto di servizi;5;Utenze e canoni;5;Acqua;15/02/2024
558;1;9999999;10;10;V.E.R.I.T.A.S. SPA; ;ACCONTO Fatt.n. 600007241332  del 17/01/2024 PERIODO 01.11.2023-31.12.2023 - ANTINCENDIO SC. ELEM - PALESTRA - ASILO S.ANGELO;13/02/2024;1334;30;232;1;Spese correnti;3;Acquisto di beni e servizi;2;Acquisto di servizi;5;Utenze e canoni;5;Acqua;15/02/2024
559;1;9999999;32,21;32,21;V.E.R.I.T.A.S. SPA; ;ACCONTO Fatt.n. 600007241332  del 17/01/2024 PERIODO 01.11.2023-31.12.2023 - ANTINCENDIO SC. ELEM - PALESTRA - ASILO S.ANGELO;13/02/2024;1334;30;232;1;Spese correnti;3;Acquisto di beni e servizi;2;Acquisto di servizi;5;Utenze e canoni;5;Acqua;15/02/2024
560;1;9999999;18,11;169,43;V.E.R.I.T.A.S. SPA; ;SALDO Fatt.n. 600007241336  del 17/01/2024 PERIODO 01.11.2023-31.12.2023 - CONSUMI MAGAZZINO COMUNALE;13/02/2024;1834;0;233;1;Spese correnti;3;Acquisto di beni e servizi;2;Acquisto di servizi;5;Utenze e canoni;5;Acqua;15/02/2024
560;2;9999999;46,9;169,43;V.E.R.I.T.A.S. SPA; ;SALDO Fatt.n. 600007241357  del 17/01/2024 PERIODO 01.11.2023-31.12.2023 - CONSUMI ECOCENTRO COMUNALE;13/02/2024;1834;0;233;1;Spese correnti;3;Acquisto di beni e servizi;2;Acquisto di servizi;5;Utenze e canoni;5;Acqua;15/02/2024
560;3;9999999;52,21;169,43;V.E.R.I.T.A.S. SPA; ;SALDO Fatt.n. 600007241337  del 17/01/2024 PERIODO 01.11.2023-31.12.2023 - ANTINCENDIO MAGAZZINO COMUNALE;13/02/2024;1834;0;233;1;Spese correnti;3;Acquisto di beni e servizi;2;Acquisto di servizi;5;Utenze e canoni;5;Acqua;15/02/2024
560;4;9999999;52,21;169,43;V.E.R.I.T.A.S. SPA; ;SALDO Fatt.n. 600007241356  del 17/01/2024 PERIODO 01.11.2023-31.12.2023 - ANTINCENDIO ECOCENTRO COMUNALE;13/02/2024;1834;0;233;1;Spese correnti;3;Acquisto di beni e servizi;2;Acquisto di servizi;5;Utenze e canoni;5;Acqua;15/02/2024
561;1;9999999;40;40;V.E.R.I.T.A.S. SPA; ;SALDO Fatt.n. 600007241321  del 17/01/2024 PERIODO 01.11.2023-31.12.2023 - CONSUMI SC. ELEM - PALESTRA - ASILO S.ANGELO;13/02/2024;1934;0;234;1;Spese correnti;3;Acquisto di beni e servizi;2;Acquisto di servizi;5;Utenze e canoni;5;Acqua;15/02/2024
562;1;9999999;99,18;99,18;V.E.R.I.T.A.S. SPA; ;SALDO Fatt.n. 600007241322  del 17/01/2024 PERIODO 01.11.2023-31.12.2023 - CONSUMI PALESTRA SMS;13/02/2024;1934;0;234;1;Spese correnti;3;Acquisto di beni e servizi;2;Acquisto di servizi;5;Utenze e canoni;5;Acqua;15/02/2024
563;1;9999999;71,56;71,56;V.E.R.I.T.A.S. SPA; ;SALDO Fatt.n. 600007241358  del 17/01/2024 PERIODO 01.11.2023-31.12.2023 - CONSUMI PALESTRA CALTANA;13/02/2024;1934;0;234;1;Spese correnti;3;Acquisto di beni e servizi;2;Acquisto di servizi;5;Utenze e canoni;5;Acqua;15/02/2024
564;1;9999999;26,1;26,1;V.E.R.I.T.A.S. SPA; ;SALDO Fatt.n. 600007241359  del 17/01/2024 PERIODO 01.11.2023-31.12.2023 - ANTINCENDIO PALESTRA CALTANA;13/02/2024;1934;0;234;1;Spese correnti;3;Acquisto di beni e servizi;2;Acquisto di servizi;5;Utenze e canoni;5;Acqua;15/02/2024
565;1;9999999;35;35;V.E.R.I.T.A.S. SPA; ;SALDO Fatt.n. 600007241320  del 17/01/2024 PERIODO 01.11.2023-31.12.2023 - CONSUMI SC. ELEM - PALESTRA VETERNIGO;13/02/2024;1934;0;234;1;Spese correnti;3;Acquisto di beni e servizi;2;Acquisto di servizi;5;Utenze e canoni;5;Acqua;15/02/2024
566;1;9999999;10;10;V.E.R.I.T.A.S. SPA; ;SALDO Fatt.n. 600007241330  del 17/01/2024 PERIODO 01.11.2023-31.12.2023 - ANTINCENDIO SC. ELEM - PALESTRA CASELLE;13/02/2024;1934;0;234;1;Spese correnti;3;Acquisto di beni e servizi;2;Acquisto di servizi;5;Utenze e canoni;5;Acqua;15/02/2024
567;1;9999999;57,6;57,6;V.E.R.I.T.A.S. SPA; ;SALDO Fatt.n. 600007241319  del 17/01/2024 PERIODO 01.11.2023-31.12.2023 - CONSUMI SC. ELEM - PALESTRA STIGLIANO;13/02/2024;1934;0;234;1;Spese correnti;3;Acquisto di beni e servizi;2;Acquisto di servizi;5;Utenze e canoni;5;Acqua;15/02/2024
568;1;9999999;14;14;V.E.R.I.T.A.S. SPA; ;SALDO Fatt.n. 600007241331  del 17/01/2024 PERIODO 01.11.2023-31.12.2023 - ANTINCENDIO SC. ELEM - PALESTRA VETERNIGO;13/02/2024;1934;0;234;1;Spese correnti;3;Acquisto di beni e servizi;2;Acquisto di servizi;5;Utenze e canoni;5;Acqua;15/02/2024
569;1;9999999;21,6;21,6;V.E.R.I.T.A.S. SPA; ;SALDO Fatt.n. 600007241346  del 17/01/2024 PERIODO 01.11.2023-31.12.2023 - ANTINCENDIO SC. ELEM - PALESTRA STIGLIANO;13/02/2024;1934;0;234;1;Spese correnti;3;Acquisto di beni e servizi;2;Acquisto di servizi;5;Utenze e canoni;5;Acqua;15/02/2024
570;1;9999999;12;12;V.E.R.I.T.A.S. SPA; ;SALDO Fatt.n. 600007241318  del 17/01/2024 PERIODO 01.11.2023-31.12.2023 - CONSUMI SC. ELEM - PALESTRA CASELLE;13/02/2024;1934;0;234;1;Spese correnti;3;Acquisto di beni e servizi;2;Acquisto di servizi;5;Utenze e canoni;5;Acqua;15/02/2024
571;1;9999999;10;10;V.E.R.I.T.A.S. SPA; ;SALDO Fatt.n. 600007241332  del 17/01/2024 PERIODO 01.11.2023-31.12.2023 - ANTINCENDIO SC. ELEM - PALESTRA - ASILO S.ANGELO;13/02/2024;1934;0;234;1;Spese correnti;3;Acquisto di beni e servizi;2;Acquisto di servizi;5;Utenze e canoni;5;Acqua;15/02/2024
572;1;9999999;38,79;206,41;V.E.R.I.T.A.S. SPA; ;SALDO Fatt.n. 600007241353  del 17/01/2024 PERIODO 01.11.2023-31.12.2023 - CONSUMI MERCATO SMS;13/02/2024;4234;0;236;1;Spese correnti;3;Acquisto di beni e servizi;2;Acquisto di servizi;5;Utenze e canoni;5;Acqua;15/02/2024
572;2;9999999;52,21;206,41;V.E.R.I.T.A.S. SPA; ;SALDO Fatt.n. 600007241348  del 17/01/2024 PERIODO 01.11.2023-31.12.2023 - ANTINCENDIO Z.I. SMS;13/02/2024;4234;0;236;1;Spese correnti;3;Acquisto di beni e servizi;2;Acquisto di servizi;5;Utenze e canoni;5;Acqua;15/02/2024
572;3;9999999;52,21;206,41;V.E.R.I.T.A.S. SPA; ;SALDO Fatt.n. 600007241361  del 17/01/2024 PERIODO 01.11.2023-31.12.2023 - ANTINCENDIO PIAZZA BEVILACQUA S.ANGELO;13/02/2024;4234;0;236;1;Spese correnti;3;Acquisto di beni e servizi;2;Acquisto di servizi;5;Utenze e canoni;5;Acqua;15/02/2024
572;4;9999999;63,2;206,41;V.E.R.I.T.A.S. SPA; ;SALDO Fatt.n. 600007241355  del 17/01/2024 PERIODO 01.11.2023-31.12.2023 - CONSUMI PER MANIFESTAZIONI SMS;13/02/2024;4234;0;236;1;Spese correnti;3;Acquisto di beni e servizi;2;Acquisto di servizi;5;Utenze e canoni;5;Acqua;15/02/2024
573;1;9999999;47,7;180,38;V.E.R.I.T.A.S. SPA; ;SALDO Fatt.n. 600007241323  del 17/01/2024 PERIODO 01.11.2023-31.12.2023 - CONSUMI VILLA FARSETTI;13/02/2024;4234;0;236;1;Spese correnti;3;Acquisto di beni e servizi;2;Acquisto di servizi;5;Utenze e canoni;5;Acqua;15/02/2024
573;2;9999999;52,21;180,38;V.E.R.I.T.A.S. SPA; ;SALDO Fatt.n. 600007241335  del 17/01/2024 PERIODO 01.11.2023-31.12.2023 - ANTINCENDIO VILLA FARSETTI;13/02/2024;4234;0;236;1;Spese correnti;3;Acquisto di beni e servizi;2;Acquisto di servizi;5;Utenze e canoni;5;Acqua;15/02/2024
573;3;9999999;80,47;180,38;V.E.R.I.T.A.S. SPA; ;SALDO Fatt.n. 600007241360  del 17/01/2024 PERIODO 01.11.2023-31.12.2023 - CONSUMI VILLA FARSETTI;13/02/2024;4234;0;236;1;Spese correnti;3;Acquisto di beni e servizi;2;Acquisto di servizi;5;Utenze e canoni;5;Acqua;15/02/2024
574;1;9999999;16,51;184,55;V.E.R.I.T.A.S. SPA; ;SALDO Fatt.n. 600007241340  del 17/01/2024 PERIODO 01.11.2023-31.12.2023 - CONSUMI CIMITERO VETERNIGO;13/02/2024;4434;0;237;1;Spese correnti;3;Acquisto di beni e servizi;2;Acquisto di servizi;5;Utenze e canoni;5;Acqua;15/02/2024
574;2;9999999;16,51;184,55;V.E.R.I.T.A.S. SPA; ;SALDO Fatt.n. 600007241341  del 17/01/2024 PERIODO 01.11.2023-31.12.2023 - CONSUMI CIMITERO S.ANGELO;13/02/2024;4434;0;237;1;Spese correnti;3;Acquisto di beni e servizi;2;Acquisto di servizi;5;Utenze e canoni;5;Acqua;15/02/2024
574;3;9999999;17,32;184,55;V.E.R.I.T.A.S. SPA; ;SALDO Fatt.n. 600007241339  del 17/01/2024 PERIODO 01.11.2023-31.12.2023 - CONSUMI CIMITERO CALTANA;13/02/2024;4434;0;237;1;Spese correnti;3;Acquisto di beni e servizi;2;Acquisto di servizi;5;Utenze e canoni;5;Acqua;15/02/2024
574;4;9999999;24,51;184,55;V.E.R.I.T.A.S. SPA; ;SALDO Fatt.n. 600007241342  del 17/01/2024 PERIODO 01.11.2023-31.12.2023 - CONSUMI CIMITERO CASELLE;13/02/2024;4434;0;237;1;Spese correnti;3;Acquisto di beni e servizi;2;Acquisto di servizi;5;Utenze e canoni;5;Acqua;15/02/2024
574;5;9999999;49,28;184,55;V.E.R.I.T.A.S. SPA; ;SALDO Fatt.n. 600007241338  del 17/01/2024 PERIODO 01.11.2023-31.12.2023 - CONSUMI CIMITERO SMS;13/02/2024;4434;0;237;1;Spese correnti;3;Acquisto di beni e servizi;2;Acquisto di servizi;5;Utenze e canoni;5;Acqua;15/02/2024
574;6;9999999;60,42;184,55;V.E.R.I.T.A.S. SPA; ;SALDO Fatt.n. 600007241343  del 17/01/2024 PERIODO 01.11.2023-31.12.2023 - CONSUMI CIMITERO STIGLIANO;13/02/2024;4434;0;237;1;Spese correnti;3;Acquisto di beni e servizi;2;Acquisto di servizi;5;Utenze e canoni;5;Acqua;15/02/2024
575;1;9999999;3.294,00;3.294,00;E.C.I. ELETTRONICA SRL;ZED3DBBB1E;SALDO Fatt.n. 000182/24  del 26/01/2024 SERVIZIO DI MANUTENZIONE ALLE TELECAMERE MOBILI INSTALLATE PRESSO IL TERRITORIO SMS ANNO 2024;13/02/2024;1138;0;1036;1;Spese correnti;3;Acquisto di beni e servizi;2;Acquisto di servizi;9;Manutenzione ordinaria e riparazioni;4;Manutenzione ordinaria e riparazioni di impianti e macchinari;15/02/2024
576;1;9999999;7.902,40;7.902,40;EUROSCAVI S.R.L.;Z013B4127C;SALDO Fatt.n. 3  del 15/01/2024 MANUTENZIONE ORDINARIA STRADE COMUNALI;13/02/2024;3538;0;462;1;Spese correnti;3;Acquisto di beni e servizi;2;Acquisto di servizi;9;Manutenzione ordinaria e riparazioni;11;Manutenzione ordinaria e riparazioni di altri beni materiali;15/02/2024
577;1;9999999;5.902,40;5.902,40;EDILNOVA DI ZILLIO PAOLO;ZE13B70BE5;SALDO Fatt.n. 2/03  del 17/01/2024 LAVORI DI PRONTO INTERVENTO SUL TERRITORIO COMUNALE;13/02/2024;3538;0;544;1;Spese correnti;3;Acquisto di beni e servizi;2;Acquisto di servizi;9;Manutenzione ordinaria e riparazioni;4;Manutenzione ordinaria e riparazioni di impianti e macchinari;15/02/2024
578;1;9999999;15.000,00;15.000,00;EDILNOVA DI ZILLIO PAOLO;Z7F37A277B;SALDO Fatt.n. 1/03  del 17/01/2024 LAVORI DI PRONTO INTERVENTO SUL TERRITORIO COMUNALE;13/02/2024;3538;0;916;1;Spese correnti;3;Acquisto di beni e servizi;2;Acquisto di servizi;9;Manutenzione ordinaria e riparazioni;4;Manutenzione ordinaria e riparazioni di impianti e macchinari;15/02/2024
579;1;9999999;7.320,00;7.320,00;LU.NA. IMPIANTI SAS DI BERTIATO GABRIELE & C.;Z933D64E0C;SALDO Fatt.n. FPA 5/24  del 15/01/2024 SERVIZIO INSTALLAZIONE LUMINARIE NATALIZIE A NOLEGGIO NEL COMUNE;13/02/2024;3538;0;999;1;Spese correnti;3;Acquisto di beni e servizi;2;Acquisto di servizi;9;Manutenzione ordinaria e riparazioni;11;Manutenzione ordinaria e riparazioni di altri beni materiali;15/02/2024
580;1;9999999;253,28;600;ACLI SERVICE VENEZIA SRL;Z25321665A;ACCONTO Fatt.n. 31/58  del 22/01/2024 BONUS SOCIALI - CONVENZIONE;13/02/2024;4149;0;593;1;Spese correnti;3;Acquisto di beni e servizi;2;Acquisto di servizi;99;Altri servizi;999;Altri servizi diversi n.a.c.;15/02/2024
580;2;9999999;346,72;600;ACLI SERVICE VENEZIA SRL;Z25321665A;ACCONTO Fatt.n. 31/58  del 22/01/2024 BONUS SOCIALI - CONVENZIONE;13/02/2024;4149;0;593;1;Spese correnti;3;Acquisto di beni e servizi;2;Acquisto di servizi;99;Altri servizi;999;Altri servizi diversi n.a.c.;15/02/2024
581;1;9999999;346,72;346,72;ACLI SERVICE VENEZIA SRL;Z25321665A;SALDO Fatt.n. 31/58  del 22/01/2024 BONUS SOCIALI - CONVENZIONE;13/02/2024;4149;0;593;1;Spese correnti;3;Acquisto di beni e servizi;2;Acquisto di servizi;99;Altri servizi;999;Altri servizi diversi n.a.c.;15/02/2024
582;1;9999999;400;400;OMESSO NOMINATIVO NEL RISPETTO DELLA NORMATIVA SULLA PROTEZIONE DATI PERSONALI; ;GENNAIO FEBBRAIO 2024 MINIMO VITALE 2024;14/02/2024;4157;0;50;1;Spese correnti;4;Trasferimenti correnti;2;Trasferimenti correnti a Famiglie;2;Interventi assistenziali;999;Altri assegni e sussidi assistenziali;16/02/2024
583;1;9999999;400;400;OMESSO NOMINATIVO NEL RISPETTO DELLA NORMATIVA SULLA PROTEZIONE DATI PERSONALI; ;GENNAIO FEBBRAIO 2024 MINIMO VITALE;14/02/2024;4157;0;51;1;Spese correnti;4;Trasferimenti correnti;2;Trasferimenti correnti a Famiglie;2;Interventi assistenziali;999;Altri assegni e sussidi assistenziali;28/02/2024
584;1;9999999;200;200;OMESSO NOMINATIVO NEL RISPETTO DELLA NORMATIVA SULLA PROTEZIONE DATI PERSONALI; ;GENNAIO FEBBRAIO 2024 MINIMO VITALE;14/02/2024;4157;0;57;1;Spese correnti;4;Trasferimenti correnti;2;Trasferimenti correnti a Famiglie;2;Interventi assistenziali;999;Altri assegni e sussidi assistenziali;16/02/2024
585;1;9999999;250;250;OMESSO NOMINATIVO NEL RISPETTO DELLA NORMATIVA SULLA PROTEZIONE DATI PERSONALI; ;GENNAIO 2024 MINIMO VITALE;14/02/2024;4157;0;990;1;Spese correnti;4;Trasferimenti correnti;2;Trasferimenti correnti a Famiglie;2;Interventi assistenziali;999;Altri assegni e sussidi assistenziali;16/02/2024
586;1;9999999;150;150;OMESSO NOMINATIVO NEL RISPETTO DELLA NORMATIVA SULLA PROTEZIONE DATI PERSONALI; ;FEBBRAIO 2024 MINIMO VITALE;14/02/2024;4157;0;52;1;Spese correnti;4;Trasferimenti correnti;2;Trasferimenti correnti a Famiglie;2;Interventi assistenziali;999;Altri assegni e sussidi assistenziali;16/02/2024
587;1;9999999;400;400;OMESSO NOMINATIVO NEL RISPETTO DELLA NORMATIVA SULLA PROTEZIONE DATI PERSONALI; ;GENNAIO FEBBRAIO 2024 MINIMO VITALE;14/02/2024;4157;0;53;1;Spese correnti;4;Trasferimenti correnti;2;Trasferimenti correnti a Famiglie;2;Interventi assistenziali;999;Altri assegni e sussidi assistenziali;16/02/2024
588;1;9999999;1.400,00;1.400,00;OMESSO NOMINATIVO NEL RISPETTO DELLA NORMATIVA SULLA PROTEZIONE DATI PERSONALI; ;GENNAIO FEBBRAIO 2024 PROGETTO RILEVANZA SOCIALE;14/02/2024;4157;0;58;1;Spese correnti;4;Trasferimenti correnti;2;Trasferimenti correnti a Famiglie;2;Interventi assistenziali;999;Altri assegni e sussidi assistenziali;16/02/2024
589;1;9999999;500;500;OMESSO NOMINATIVO NEL RISPETTO DELLA NORMATIVA SULLA PROTEZIONE DATI PERSONALI; ;GENNAIO 2024 MINIMO VITALE;14/02/2024;4157;0;54;1;Spese correnti;4;Trasferimenti correnti;2;Trasferimenti correnti a Famiglie;2;Interventi assistenziali;999;Altri assegni e sussidi assistenziali;16/02/2024
590;1;9999999;500;500;OMESSO NOMINATIVO NEL RISPETTO DELLA NORMATIVA SULLA PROTEZIONE DATI PERSONALI; ;GENNAIO 2024 MINIMO VITALE;14/02/2024;4157;0;55;1;Spese correnti;4;Trasferimenti correnti;2;Trasferimenti correnti a Famiglie;2;Interventi assistenziali;999;Altri assegni e sussidi assistenziali;16/02/2024
591;1;9999999;360;360;OMESSO NOMINATIVO NEL RISPETTO DELLA NORMATIVA SULLA PROTEZIONE DATI PERSONALI; ;GENNAIO FEBBRAIO 2024 MINIMO VITALE;14/02/2024;4157;0;56;1;Spese correnti;4;Trasferimenti correnti;2;Trasferimenti correnti a Famiglie;2;Interventi assistenziali;999;Altri assegni e sussidi assistenziali;16/02/2024
592;1;9999999;162,75;162,75;OMESSO NOMINATIVO NEL RISPETTO DELLA NORMATIVA SULLA PROTEZIONE DATI PERSONALI; ;QUOTA GENNAIO 2024SERVIZIO DI ISTRUZIONE PARENTALE;14/02/2024;3757;0;62;1;Spese correnti;4;Trasferimenti correnti;2;Trasferimenti correnti a Famiglie;5;Altri trasferimenti a famiglie;999;Altri trasferimenti a famiglie n.a.c.;16/02/2024
593;1;9999999;31,01;31,01;ABACO S.P.A.;5325258DE8;SALDO Fatt.n. 2024140000549  del 18/01/2024 AGGIO SU RISCOSSO - INCASSI IC I IMU TASI LOTTO 5 RENDICONTO AL 30-04-2023 CIG.5325258DE8;15/02/2024;332;0;121;1;Spese correnti;3;Acquisto di beni e servizi;2;Acquisto di servizi;3;Aggi di riscossione;999;Altri aggi di riscossione n.a.c.;20/02/2024
594;1;9999999;11.037,48;11.037,48;REGIONE DEL VENETO; ;L.13/89 (DDR N.60/2022) RESTITUZIONE MANCATE ASSEGNAZIONI;15/02/2024;3957;52;1119;1;Spese correnti;4;Trasferimenti correnti;2;Trasferimenti correnti a Famiglie;5;Altri trasferimenti a famiglie;999;Altri trasferimenti a famiglie n.a.c.;20/02/2024
595;1;9999999;2.811,71;2.811,71;OMESSO NOMINATIVO NEL RISPETTO DELLA NORMATIVA SULLA PROTEZIONE DATI PERSONALI; ;CONTRIBUTO REGIONE VENETO ACC.BI.-LEGGE 13.89. FONDO SPECIALE PER LELIMINAZIONE EDIL SUPERAMENTO DELLE BARRIERE;15/02/2024;3957;52;1119;1;Spese correnti;4;Trasferimenti correnti;2;Trasferimenti correnti a Famiglie;5;Altri trasferimenti a famiglie;999;Altri trasferimenti a famiglie n.a.c.;20/02/2024
596;1;9999999;5.448,50;5.448,50;OMESSO NOMINATIVO NEL RISPETTO DELLA NORMATIVA SULLA PROTEZIONE DATI PERSONALI; ;CONTRIBUTO REGIONE VENETO ACC.BI.-LEGGE 13.89. FONDO SPECIALE PER LELIMINAZIONE EDIL SUPERAMENTO DELLE BARRIERE;15/02/2024;3957;52;1119;1;Spese correnti;4;Trasferimenti correnti;2;Trasferimenti correnti a Famiglie;5;Altri trasferimenti a famiglie;999;Altri trasferimenti a famiglie n.a.c.;20/02/2024
597;1;9999999;2.246,40;2.246,40;OMESSO NOMINATIVO NEL RISPETTO DELLA NORMATIVA SULLA PROTEZIONE DATI PERSONALI; ;CONTRIBUTO REGIONE VENETO ACC.BI.-LEGGE 13.89. FONDO SPECIALE PER LELIMINAZIONE EDIL SUPERAMENTO DELLE BARRIERE;15/02/2024;3957;52;1119;1;Spese correnti;4;Trasferimenti correnti;2;Trasferimenti correnti a Famiglie;5;Altri trasferimenti a famiglie;999;Altri trasferimenti a famiglie n.a.c.;20/02/2024
598;1;9999999;1.000,00;1.000,00;ITAS MUTUA; ;FRANCHIGIA N.230167268 RIMBORSO QUOTA;16/02/2024;992;0;67;1;Spese correnti;10;Altre spese correnti;4;Premi di assicurazione;1;Premi di assicurazione contro i danni;999;Altri premi di assicurazione contro i danni;20/02/2024
599;1;9999999;1.720,00;1.720,00;LABS LABORATORIO SOLIDALE - ODV; ;GENNAIO 2024 SERVIZI COLLEGATI ALLA SCUOLA;16/02/2024;1257;0;648;1;Spese correnti;4;Trasferimenti correnti;4;Trasferimenti correnti a Istituzioni Sociali Private;1;Trasferimenti correnti a Istituzioni Sociali Private;1;Trasferimenti correnti a Istituzioni Sociali Private;20/02/2024
600;1;9999999;440;440;OMESSO NOMINATIVO NEL RISPETTO DELLA NORMATIVA SULLA PROTEZIONE DATI PERSONALI; ;riproposizione mandato non andato a buon fine -BUONI MENSA DOPOSCUOLA SETT.DIC.2023 MINORE M.L.F.;16/02/2024;4157;0;898;1;Spese correnti;4;Trasferimenti correnti;2;Trasferimenti correnti a Famiglie;2;Interventi assistenziali;999;Altri assegni e sussidi assistenziali;20/02/2024
601;1;9999999;12.730,50;12.730,50;DIVERSI-AMMINISTRATORI COM.LI; ;STIPENDI MESE DI FEBBRAIO 24;20/02/2024;30;99;0;1;Spese correnti;3;Acquisto di beni e servizi;2;Acquisto di servizi;1;Organi e incarichi istituzionali dell'amministrazione;1;Organi istituzionali dell'amministrazione - Indennità;26/02/2024
673;1;9999999;1.650,00;1.650,00;MANO AMICA - GRUPPO SALESE DI IMPEGNO SOCIALE O.D.V.; ;GENNAIO 2024 - SERVIZI AUSILIARI COLLEGATI ALLA SCUOLA;20/02/2024;1257;0;648;1;Spese correnti;4;Trasferimenti correnti;4;Trasferimenti correnti a Istituzioni Sociali Private;1;Trasferimenti correnti a Istituzioni Sociali Private;1;Trasferimenti correnti a Istituzioni Sociali Private;23/02/2024
674;1;9999999;538,84;538,84;ARUBA SPA;Z813DBB976;SALDO Fatt.n. 1000241500000910  del 31/01/2024 SERVIZI DI HOSTING E PEC;20/02/2024;748;0;1041;1;Spese correnti;3;Acquisto di beni e servizi;2;Acquisto di servizi;19;Servizi informatici e di telecomunicazioni;3;Servizi per l'interoperabilità e la cooperazione;23/02/2024
675;1;9999999;719,8;719,8;MDE RESEARCH S.R.L.;ZC83DBB9F8;SALDO Fatt.n. 8  del 31/01/2024 CANONE SEMESTRALE 2024 DI MANUTENZIONE SISTEMI DI CONTROLLO ACCESSI;20/02/2024;748;0;1044;1;Spese correnti;3;Acquisto di beni e servizi;2;Acquisto di servizi;19;Servizi informatici e di telecomunicazioni;1;Gestione e manutenzione applicazioni;23/02/2024
676;1;9999999;951,6;951,6;SOLUZIONI OPENSOURCE M3 SNC;Z823DBB9BB;SALDO Fatt.n. 72  del 05/02/2024 CANONE ANNUALE LICENZE MICROSOFT 365;20/02/2024;748;0;1054;1;Spese correnti;3;Acquisto di beni e servizi;2;Acquisto di servizi;19;Servizi informatici e di telecomunicazioni;5;Servizi per i sistemi e relativa manutenzione;23/02/2024
678;1;9999999;15.710,51;15.710,51;BONAVENTURA EXPRESS SRL;8704892021;SALDO Fatt.n. 11PA  del 31/01/2024 TRASPORTO SCOLASTICO GENNAIO 2024;20/02/2024;1344;0;388;1;Spese correnti;3;Acquisto di beni e servizi;2;Acquisto di servizi;15;Contratti di servizio pubblico;2;Contratti di servizio di trasporto scolastico;23/02/2024
679;1;9999999;8.514,00;8.514,00;BONAVENTURA EXPRESS SRL;8704892021;SALDO Fatt.n. 12PA  del 31/01/2024 TRASPORTO SCOLASTICO AGGIUNTIVO ALUNNI SCUOLA PRIMARIA E SECONDARIA PER ATTIVITA MOTORIA GENNAIO 2024;20/02/2024;1344;0;1110;1;Spese correnti;3;Acquisto di beni e servizi;2;Acquisto di servizi;15;Contratti di servizio pubblico;2;Contratti di servizio di trasporto scolastico;23/02/2024
680;1;9999999;22.973,86;22.973,86;DUSSMANN SERVICE SRL;90957312AC;SALDO Fatt.n. 32405155  del 31/01/2024 GENNAIO 2024 - PASTI SCUOLE ELEMENTARI BAMBINI E INSEGNANTI;20/02/2024;1344;0;149;1;Spese correnti;3;Acquisto di beni e servizi;2;Acquisto di servizi;15;Contratti di servizio pubblico;6;Contratti di servizio per le mense scolastiche;23/02/2024
681;1;9999999;1.820,30;1.820,30;DUSSMANN SERVICE SRL;90957312AC;SALDO Fatt.n. 32405154  del 31/01/2024 GENNAIO 2024 - PASTI SCUOLA MATERNA S. ANGELO BAMBINI E INSEGNANTI;20/02/2024;1344;0;149;1;Spese correnti;3;Acquisto di beni e servizi;2;Acquisto di servizi;15;Contratti di servizio pubblico;6;Contratti di servizio per le mense scolastiche;23/02/2024
682;1;9999999;500;500;COMUNE DI SAN POLO DI PIAVE; ;COMPARTECIPAZIONE SPESE CONCORSUALI PER SCORRIMENTO GRADUATORIA CONCORSO PUBBLICO UN POSTO POLIZIA LOCALE  C.M.;20/02/2024;849;0;370;1;Spese correnti;3;Acquisto di beni e servizi;2;Acquisto di servizi;99;Altri servizi;999;Altri servizi diversi n.a.c.;23/02/2024
683;1;9999999;2.500,00;2.500,00;QUADIENT ITALY SRL;B06E3762AC;1 TRANCHE FONDO SPESE PER UTILIZZO MACCHINA AFFRANCATRICE IN USO ALLUFFICIO PROTOCOLLO;22/02/2024;145;0;82;1;Spese correnti;3;Acquisto di beni e servizi;2;Acquisto di servizi;16;Servizi amministrativi;999;Altre spese per servizi amministrativi;26/02/2024
684;1;9999999;87,42;87,42;COMUNE DI S.MARIA DI SALA; ;AGGIO RISCOSSIONE CONTRIBUTO IFEL PRELEVANMENTO 16-02-2024 ANNO 2023;26/02/2024;332;0;121;1;Spese correnti;3;Acquisto di beni e servizi;2;Acquisto di servizi;3;Aggi di riscossione;999;Altri aggi di riscossione n.a.c.;29/02/2024
685;1;9999999;17.703,31;17.703,31;ABACO S.P.A.;766214493F;SALDO Fatt.n. 2024120001096  del 09/02/2024 AGGIO SU RISCOSSIONI ESPOSIZIONI PUBBLICITARIE CUP RENDICONTO DELLA GESTIONE AL 3 1/01/2024 Codice Identificativo Gara (CIG): 766214493F;27/02/2024;332;0;1228;1;Spese correnti;3;Acquisto di beni e servizi;2;Acquisto di servizi;3;Aggi di riscossione;999;Altri aggi di riscossione n.a.c.;29/02/2024
686;1;9999999;2.427,65;2.427,65;ABACO S.P.A.;766214493F;SALDO Fatt.n. 2024120001095  del 09/02/2024 AGGIO SU RISCOSSIONI OCCUPAZIONE SUOLO PUBBLICO CUP RENDICONTO DELLA GESTIONE AL 3 1/01/2024 Codice Identificativo Gara (CIG): 766214493F;27/02/2024;332;0;1228;1;Spese correnti;3;Acquisto di beni e servizi;2;Acquisto di servizi;3;Aggi di riscossione;999;Altri aggi di riscossione n.a.c.;29/02/2024
687;1;9999999;1.071,60;1.071,60;ABACO S.P.A.;766214493F;SALDO Fatt.n. 2024140000682  del 08/02/2024 AGGIO SU RISCOSSIONI - ICI IMU T ASI LOTTO 10-11-12-13-14-15-16-17-18- 19-20DET. 788-19 RENDICONTO DELLA GESTIONE AL 3 1/01/2024 CIG 766214493F;27/02/2024;332;0;1228;1;Spese correnti;3;Acquisto di beni e servizi;2;Acquisto di servizi;3;Aggi di riscossione;999;Altri aggi di riscossione n.a.c.;29/02/2024
688;1;9999999;9.420,84;9.420,84;OMESSO NOMINATIVO NEL RISPETTO DELLA NORMATIVA SULLA PROTEZIONE DATI PERSONALI;Z583DBBA2D;SALDO Fatt.n. 193/1  del 13/02/2024 CANONE ANNUALE LICENZE MICROSOFT 365;27/02/2024;748;0;1043;1;Spese correnti;3;Acquisto di beni e servizi;2;Acquisto di servizi;19;Servizi informatici e di telecomunicazioni;1;Gestione e manutenzione applicazioni;29/02/2024
689;1;9999999;6.374,50;6.374,50;DEDA NEXT SRL;Z733DD895F;SALDO Fatt.n. 3016000447  del 31/01/2024 CNONE ANNUALE DI MANUTENZIONE SOFTWARE UFFICIO TECNICO;27/02/2024;748;0;1090;1;Spese correnti;3;Acquisto di beni e servizi;2;Acquisto di servizi;19;Servizi informatici e di telecomunicazioni;1;Gestione e manutenzione applicazioni;29/02/2024
690;1;9999999;102,67;102,67;ABACO S.P.A.;766214493F;ACCONTO Fatt.n. 2024140000683  del 08/02/2024 AGGIO SU RISCOSSO - CDS- DET. 705 DEL 3-11-22 RENDICONTO DELLA GESTIONE AL 3 1/01/2024 Codice Identificativo Gara (CIG): 766214493F;27/02/2024;1132;0;30;1;Spese correnti;3;Acquisto di beni e servizi;2;Acquisto di servizi;3;Aggi di riscossione;999;Altri aggi di riscossione n.a.c.;29/02/2024
691;1;9999999;340,69;340,69;ABACO S.P.A.;766214493F;SALDO Fatt.n. 2024140000683  del 08/02/2024 AGGIO SU RISCOSSO - CDS- DET. 705 DEL 3-11-22 RENDICONTO DELLA GESTIONE AL 3 1/01/2024 Codice Identificativo Gara (CIG): 766214493F;27/02/2024;1132;0;945;1;Spese correnti;3;Acquisto di beni e servizi;2;Acquisto di servizi;3;Aggi di riscossione;999;Altri aggi di riscossione n.a.c.;29/02/2024
692;1;9999999;32.839,13;32.839,13;UNICREDIT LEASING SPA;202734562;SALDO Fatt.n. 2024/24/0000083  del 13/02/2024 N. 60 CANONE DI LEASING IMMOBILIARE CONTRATTO N. IC01217653;27/02/2024;1337;0;177;1;Spese correnti;3;Acquisto di beni e servizi;2;Acquisto di servizi;8;Leasing operativo;999;Leasing operativo di altri beni;29/02/2024
693;1;9999999;32.839,13;32.839,13;UNICREDIT LEASING SPA;202734562;SALDO Fatt.n. 2024/24/0000082  del 13/02/2024 N. 59 CANONE DI LEASING IMMOBILIARE  CONTRATTO N. IC01217653;27/02/2024;1337;0;177;1;Spese correnti;3;Acquisto di beni e servizi;2;Acquisto di servizi;8;Leasing operativo;999;Leasing operativo di altri beni;29/02/2024
694;1;9999999;33,58;33,58;SIAE; ;SALDO Fatt.n. 1624006562  del 15/02/2024 DIRITTI AMMINISTRATIVI DI PROCEDURA PER PROIEZIONE DEL FILM LA SCELTA DI SOPHIE PRESSO LA SALA CONSILIARE IN OCCASIONE DEL GIORNO DELLA MEMORIA;27/02/2024;1831;0;45;1;Spese correnti;3;Acquisto di beni e servizi;2;Acquisto di servizi;2;Organizzazione eventi, pubblicita` e servizi per trasferta;999;Altre spese per relazioni pubbliche, convegni e mostre, pubblicita` n.a.c;29/02/2024
695;1;9999999;1.897,60;1.897,60;INFOCLIP SRL;B053AE44D8;SALDO Fatt.n. FVL209  del 19/02/2024 ATTIVAZIONE E GESTIONE ABBONAMENTI A RIVISTE ANNO 2024;27/02/2024;1821;0;66;1;Spese correnti;3;Acquisto di beni e servizi;1;Acquisto di beni;2;Altri beni di consumo;999;Altri beni e materiali di consumo n.a.c.;29/02/2024
696;1;9999999;6.039,00;6.039,00;SOCIETA' AGRICOLA VIVAI GARDIN S.S.;ZA83DB1282;SALDO Fatt.n. 4/A  del 30/01/2024 FORNITURA E MESSA A DIMORA DI LAGERSTROEMIE NEL TERRITORIO COMUNALE;27/02/2024;2549;0;1058;1;Spese correnti;3;Acquisto di beni e servizi;2;Acquisto di servizi;99;Altri servizi;9;Acquisto di sevizi per verde e arredo urbano;29/02/2024
697;1;9999999;4.094,35;4.094,35;NUOVA RADAR COOP. S.C.R.L.;ZC63D71324;ACCONTO Fatt.n. 03//0000018  del 29/01/2024 ACQUISTO TABELLONI BASKET PER PALESTRA DI VETERNIGO;27/02/2024;7581;0;988;2;Spese in conto capitale;2;Investimenti fissi lordi e acquisto di terreni;1;Beni materiali;5;Attrezzature;999;Attrezzature n.a.c.;29/02/2024
698;1;9999999;4.094,35;4.094,35;NUOVA RADAR COOP. S.C.R.L.;ZC63D71324;SALDO Fatt.n. 03//0000018  del 29/01/2024 ACQUISTO TABELLONI BASKET PER PALESTRA DI VETERNIGO;27/02/2024;7581;0;988;2;Spese in conto capitale;2;Investimenti fissi lordi e acquisto di terreni;1;Beni materiali;5;Attrezzature;999;Attrezzature n.a.c.;29/02/2024
699;1;9999999;2.654,48;2.654,48;HSE HERA SERVIZI ENERGIA SPA;B000905318;SALDO Fatt.n. 332400000695  del 15/02/2024 LAVORI DI INSTALLAZIONE PROVVISORIA DI DUE GENERATORI DI CALORE PRESSO LA SEDE MUNICIPALE;27/02/2024;522;0;68;1;Spese correnti;3;Acquisto di beni e servizi;1;Acquisto di beni;2;Altri beni di consumo;999;Altri beni e materiali di consumo n.a.c.;29/02/2024
700;1;9999999;140,3;140,3;VEDETTA 2 MONDIALPOL SPA;ZD032B120B;SALDO Fatt.n. V9-495  del 07/02/2024 GENNAIO 2024 SERVIZIO DI VIGILANZA MAGAZZINO -PROTEZIONE CIVILE V.LE FERRARIS - VILLA FARSETTI;27/02/2024;548;0;688;1;Spese correnti;3;Acquisto di beni e servizi;2;Acquisto di servizi;9;Manutenzione ordinaria e riparazioni;8;Manutenzione ordinaria e riparazioni di beni immobili;29/02/2024
701;1;9999999;70;70;KAIROSFORMA  SRL IMPRESA SOCIALE;B01DF63BDC;SALDO Fatt.n. 59/PA  del 31/01/2024 CONVEGNO - LA SCIA IN EDILIZIA-RISTRUTTURAZIONE-DISTANZE TRA FABBRICATI-PGRA E QUOTA PRIMO CALPESTIO - IL 26-01-2024;27/02/2024;833;0;39;1;Spese correnti;3;Acquisto di beni e servizi;2;Acquisto di servizi;4;Acquisto di servizi per formazione e addestramento del personale dell'ente;4;Acquisto di servizi per formazione obbligatoria;29/02/2024
702;1;9999999;366;366;SCM TECNOLOGIE SRLS;Z3F3D5AC2E;SALDO Fatt.n. 3  del 31/01/2024 MANUTENZIONE ORDINARIA IMPIANTO EVAC SCUOLA SECONDARIA DEL CAPOLUOGO;27/02/2024;1338;0;979;1;Spese correnti;3;Acquisto di beni e servizi;2;Acquisto di servizi;9;Manutenzione ordinaria e riparazioni;5;Manutenzione ordinaria e riparazioni di attrezzature;29/02/2024
703;1;9999999;446,81;446,81;HERA COMM. SPA;B03C9BA008;SALDO Fatt.n. 412401791784  del 30/01/2024 FORNITURA SERVIZIO GAS DICEMBRE 2023 - IMP. SPORT. SMS;27/02/2024;1934;0;69;1;Spese correnti;3;Acquisto di beni e servizi;2;Acquisto di servizi;5;Utenze e canoni;6;Gas;29/02/2024
704;1;9999999;1.114,97;1.114,97;HERA COMM. SPA;B03C9BA008;SALDO Fatt.n. 412402464606  del 06/02/2024 FORNITURA SERVIZIO GAS GENNAIO 2024 - IMP. SPORT. SMS;27/02/2024;1934;0;69;1;Spese correnti;3;Acquisto di beni e servizi;2;Acquisto di servizi;5;Utenze e canoni;6;Gas;29/02/2024
705;1;9999999;656,93;656,93;ENERGIA PULITA SRL;Z893D4E28A;SALDO Fatt.n. GN00056167/2024  del 12/02/2024 SERVIZIO DI FORNITURA GAS NATURALE GENNAIO 2024 -  IMPIANTO SPORTIVO VETERNIGO;27/02/2024;1934;0;947;1;Spese correnti;3;Acquisto di beni e servizi;2;Acquisto di servizi;5;Utenze e canoni;6;Gas;29/02/2024
706;1;9999999;15.024,30;15.024,30;SOCIETA' AGRICOLA VIVAI GARDIN S.S.;Z643A5BDC8;SALDO Fatt.n. 15/M  del 31/01/2024 POTATURA ESSENZE ARBOREE IN VILLA FARSETTI SMS;27/02/2024;2549;0;326;1;Spese correnti;3;Acquisto di beni e servizi;2;Acquisto di servizi;99;Altri servizi;9;Acquisto di sevizi per verde e arredo urbano;29/02/2024
707;1;9999999;663,02;663,02;V.E.R.I.T.A.S. SPA; ;SALDO Fatt.n. 9500000193  del 14/02/2024 DERATIZZAZIONE- DISINFESTAZIONE  IV TRIMESTRE 2023;27/02/2024;2549;0;300;1;Spese correnti;3;Acquisto di beni e servizi;2;Acquisto di servizi;99;Altri servizi;9;Acquisto di sevizi per verde e arredo urbano;29/02/2024
708;1;9999999;9.950,00;9.950,00;BASSO III SRL;A0295A30CC;SALDO Fatt.n. 13  del 31/01/2024 LAVORI DI MANUTENZIONE ORDINARIA STRADE;27/02/2024;3538;0;935;1;Spese correnti;3;Acquisto di beni e servizi;2;Acquisto di servizi;9;Manutenzione ordinaria e riparazioni;8;Manutenzione ordinaria e riparazioni di beni immobili;29/02/2024
709;1;9999999;4.347,80;4.347,80;AEC ILLUMINAZIONE SRL;ZF83D6965F;SALDO Fatt.n. 1000VCI24000011  del 31/01/2024 FORNITURA DI CORPI ILLUMINANTI PER LA MANUTENZIONE DEGLI IMPIANTI ELETTRICI COMUNALI;27/02/2024;3538;0;986;1;Spese correnti;3;Acquisto di beni e servizi;2;Acquisto di servizi;9;Manutenzione ordinaria e riparazioni;4;Manutenzione ordinaria e riparazioni di impianti e macchinari;29/02/2024
710;1;9999999;123,22;123,22;PNEUS ELITE DRIVESERVICE DI MICHELE GIACOMELLO;ZB23DB1148;SALDO Fatt.n. 20  del 25/01/2024 RIPARAZIONE PNEUMATICO ESCAVATORE;27/02/2024;3538;0;1037;1;Spese correnti;3;Acquisto di beni e servizi;2;Acquisto di servizi;9;Manutenzione ordinaria e riparazioni;1;Manutenzione ordinaria e riparazioni di mezzi di trasporto ad uso civile, di sicurezza e ordine pubblico;29/02/2024
711;1;9999999;1.460,14;1.460,14;E.N.P.A. ONLUS SEZ. DI MIRA; ;ACCONTO Fatt.n. 462/PA  del 12/02/2024 CUSTODIA CANI VAGANTI PERIODO NOVEMBRE - DICEMBRE 2023;27/02/2024;3659;0;40;1;Spese correnti;4;Trasferimenti correnti;4;Trasferimenti correnti a Istituzioni Sociali Private;1;Trasferimenti correnti a Istituzioni Sociali Private;1;Trasferimenti correnti a Istituzioni Sociali Private;29/02/2024
